Workbook

Sheet Menu
B3: Vyučtovanie 2016 | F3: Vyučtovanie 2017 | J3: Vyučtovanie 2018
B4: vyučtovanie december 2016 | F4: vyučtovanie Január 2017 | J4: vyučtovanie Január 2018
F5: vyučtovanie Február 2017 | J5: vyučtovanie Február 2018
F6: vyučtovanie Marec 2017 | J6: vyučtovanie Marec 2018
F7: vyučtovanie Apríl 2017 | J7: vyučtovanie Apríl 2018
F8: vyučtovanie Máj 2017 | J8: vyučtovanie Máj 2018
F9: vyučtovanie Jún 2017 | J9: vyučtovanie Jún 2018
F10: vyučtovanie Júl 2017 | J10: vyučtovanie Júl 2018
F11: vyučtovanie August 2017 | J11: vyučtovanie August 2018
F12: vyučtovanie September 2017 | J12: vyučtovanie September 2018
F13: vyučtovanie Oktober 2017 | J13: vyučtovanie Október 2018
F14: vyučtovanie November 2017 | J14: vyučtovanie November 2018
F15: vyučtovanie December 2017 | J15: vyuctovanie December 2018
B19: Tlač vyučtovaný:

Sheet Originál
D1: Vyučtovanie výčapu | J1: /2019 | O1: Denný sumár
N2: Juniorka | O2: Meno: | P2: =I2 -> 0
N3: Šipulová | O3: Dátum: | P3: =I3 -> 0 | Q3: /2019
N4: Hermanová
G5: Meno:
G7: Dátum: | J7: /2019
C10: Strana 1: | O10: Strana 1:
B11: P.Č. | C11: Názov tovaru | D11: Poč. stav | E11: Denný príjem | F11: Spolu | G11: Zostatok v sklade | I11: Denný predaj | J11: Cena € | K11: Suma celkom € | L11: J.M. | O11: Nákupná cena | P11: Predajná cena | Q11: Tržba | R11: Zisk | S11: Zisk po zdanení | U11: Zostatok v krčme | V11: Suma tovaru
B13: 1. | C13: Pernštejn čap. 10˚ | F13: =D13+E13 -> 0 | I13: =D13+E13-G13 -> 0 | J13: 2 | K13: =I13*J13 -> 0 | L13: l. | O13: 1.032 | P13: =J13 -> 2 | Q13: =I13*J13 -> 0 | R13: =(P13-O13)*I13 -> 0 | S13: =R13*0.8 -> 0 | U13: =G13 -> 0 | V13: =U13*O13 -> 0
B14: 2. | C14: Malinovka čap. | F14: 0 | I14: 0 | J14: 2 | K14: =I14*J14 -> 0 | L14: l. | O14: 0.493 | P14: =J14 -> 2 | Q14: =I14*J14 -> 0 | R14: =(P14-O14)*I14 -> 0 | S14: =R14*0.8 -> 0 | U14: =G14 -> 0 | V14: =U14*O14 -> 0
B15: 3. | C15: Radler čap. | F15: 0 | I15: 0 | J15: 2.6 | K15: 0 | L15: l. | O15: 1.52 | P15: 2.6 | Q15: 0 | R15: =(P15-O15)*I15 -> 0 | S15: 0 | U15: 0 | V15: 0
B16: 4. | F16: 0 | I16: 0 | K16: 0 | P16: 0 | Q16: 0 | R16: 0 | S16: 0 | U16: 0 | V16: 0
B17: 5. | C17: Šariš 10˚ fľaša | F17: 0 | I17: 0 | J17: 0.8 | K17: 0 | L17: ks. | O17: 0.34 | P17: 0.8 | Q17: 0 | R17: 0 | S17: 0 | U17: 0 | V17: 0
B18: 6. | C18: Kozel 10˚ fľaša | F18: 0 | I18: 0 | J18: 0.9 | K18: 0 | L18: ks. | O18: 0.47 | P18: 0.9 | Q18: 0 | R18: 0 | S18: 0 | U18: 0 | V18: 0
B19: 7. | C19: Birell nealko fľaša | F19: 0 | I19: 0 | J19: 1.2 | K19: 0 | L19: ks. | O19: 0.64 | P19: 1.2 | Q19: 0 | R19: 0 | S19: 0 | U19: 0 | V19: 0
B20: 8. | C20: Gambrinus fľaša | F20: 0 | I20: 0 | J20: 0.9 | K20: 0 | L20: ks. | O20: 0.56 | P20: 0.9 | Q20: 0 | R20: 0 | S20: 0 | U20: 0 | V20: 0
B21: 9. | C21: Plzeň 12˚ fľaša | F21: 0 | I21: 0 | J21: 1.3 | K21: 0 | L21: ks. | O21: 0.694 | P21: 1.3 | Q21: 0 | R21: 0 | S21: 0 | U21: 0 | V21: 0
B22: 10. | F22: 0 | I22: 0 | K22: 0 | L22: ks. | P22: 0 | Q22: 0 | R22: 0 | S22: 0 | U22: 0 | V22: 0
B23: 11. | C23: Gambrinus plech. | F23: 0 | I23: 0 | J23: 1 | K23: 0 | L23: ks. | O23: 0.49 | P23: 1 | Q23: 0 | R23: 0 | S23: 0 | U23: 0 | V23: 0
B24: 12. | F24: 0 | I24: 0 | K24: 0 | L24: ks. | O24: 0.42 | P24: 0 | Q24: 0 | R24: 0 | S24: 0 | U24: 0 | V24: 0
B25: 13. | F25: 0 | I25: 0 | K25: 0 | L25: ks. | O25: 0.75 | P25: 0 | Q25: 0 | R25: 0 | S25: 0 | U25: 0 | V25: 0
B26: 14. | F26: 0 | I26: 0 | K26: 0 | P26: 0 | Q26: 0 | R26: 0 | S26: 0 | U26: 0 | V26: 0
B27: 15. | C27: Práznde sudy | F27: 0 | I27: 0 | K27: 0 | L27: ks. | P27: 0 | Q27: 0 | R27: 0 | S27: 0 | U27: 0 | V27: 0
B28: 16. | C28: Práznde fľaše | F28: 0 | I28: 0 | K28: 0 | L28: ks. | P28: 0 | Q28: 0 | R28: 0 | S28: 0 | U28: 0 | V28: 0
B29: 17. | F29: 0 | I29: 0 | K29: 0 | P29: 0 | Q29: 0 | R29: 0 | S29: 0 | U29: 0 | V29: 0
B30: 18. | F30: 0 | I30: 0 | K30: 0 | P30: 0 | Q30: 0 | R30: 0 | S30: 0 | U30: 0 | V30: 0
B31: 19. | C31: Víno biele | F31: 0 | I31: 0 | J31: 3 | K31: 0 | L31: l. | O31: 1.29 | P31: 3 | Q31: 0 | R31: 0 | S31: 0 | U31: 0 | V31: 0
B32: 20. | C32: Víno červené | F32: 0 | I32: 0 | J32: 3 | K32: 0 | L32: l. | O32: 1.29 | P32: 3 | Q32: 0 | R32: 0 | S32: 0 | U32: 0 | V32: 0
B33: 21. | F33: 0 | I33: 0 | K33: 0 | P33: 0 | Q33: 0 | R33: 0 | S33: 0 | U33: 0 | V33: 0
B34: 22. | C34: Vodka | F34: 0 | I34: 0 | J34: 12 | K34: 0 | L34: l. | O34: 6.54 | P34: 12 | Q34: 0 | R34: 0 | S34: 0 | U34: 0 | V34: 0
B35: 23. | C35: Borovička | F35: 0 | I35: 0 | J35: 12 | K35: 0 | L35: l. | O35: 6.56 | P35: 12 | Q35: 0 | R35: 0 | S35: 0 | U35: 0 | V35: 0
B36: 24. | C36: Koniferka | F36: 0 | I36: 0 | J36: 14 | K36: 0 | L36: l. | O36: 5.95 | P36: 14 | Q36: 0 | R36: 0 | S36: 0 | U36: 0 | V36: 0
B37: 25. | C37: RUM | F37: 0 | I37: 0 | J37: 12 | K37: 0 | L37: l. | O37: 5.78 | P37: 12 | Q37: 0 | R37: 0 | S37: 0 | U37: 0 | V37: 0
B38: 26. | C38: Hruška | F38: 0 | I38: 0 | J38: 14 | K38: 0 | L38: l. | O38: 7.2 | P38: 14 | Q38: 0 | R38: 0 | S38: 0 | U38: 0 | V38: 0
B39: 27. | C39: Spišská borovička | F39: 0 | I39: 0 | J39: 14 | K39: 0 | L39: l. | O39: 8.55 | P39: 14 | Q39: 0 | R39: 0 | S39: 0 | U39: 0 | V39: 0
B40: 28. | C40: Trenčianské hradné | F40: 0 | I40: 0 | J40: 12 | K40: 0 | L40: l. | O40: 6.636 | P40: 12 | Q40: 0 | R40: 0 | S40: 0 | U40: 0 | V40: 0
B41: 29. | C41: Karpatská horká | F41: 0 | I41: 0 | J41: 12 | K41: 0 | L41: l. | O41: 5.32 | P41: 12 | Q41: 0 | R41: 0 | S41: 0 | U41: 0 | V41: 0
B42: 30. | C42: Vodka Peach | F42: 0 | I42: 0 | J42: 14 | K42: 0 | L42: l. | O42: 4.41 | P42: 14 | Q42: 0 | R42: 0 | S42: 0 | U42: 0 | V42: 0
B43: 31. | C43: Becherovka | F43: 0 | I43: 0 | J43: 20 | K43: 0 | L43: l. | O43: 10.67 | P43: 20 | Q43: 0 | R43: 0 | S43: 0 | U43: 0 | V43: 0
B44: 32. | C44: Fernet | F44: 0 | I44: 0 | J44: 20 | K44: 0 | L44: l. | O44: 9.69 | P44: 20 | Q44: 0 | R44: 0 | S44: 0 | U44: 0 | V44: 0
B45: 33. | C45: Slivka | F45: 0 | I45: 0 | J45: 14 | K45: 0 | L45: l. | O45: 7.21 | P45: 14 | Q45: 0 | R45: 0 | S45: 0 | U45: 0 | V45: 0
B46: 34. | C46: Bošácka slivovica | F46: 0 | I46: 0 | J46: 24 | K46: 0 | L46: l. | O46: 17.61 | P46: 24 | Q46: 0 | R46: 0 | S46: 0 | U46: 0 | V46: 0
B47: 35. | C47: Karpatská KB | F47: 0 | I47: 0 | J47: 20 | K47: 0 | L47: l. | O47: 5.998 | P47: 20 | Q47: 0 | R47: 0 | S47: 0 | U47: 0 | V47: 0
B48: 36. | C48: Fernet Citrus | F48: 0 | I48: 0 | J48: 20 | K48: 0 | L48: l. | O48: 9.69 | P48: 20 | Q48: 0 | R48: 0 | S48: 0 | U48: 0 | V48: 0
B49: 37. | C49: Pepermint | F49: 0 | I49: 0 | J49: 12 | K49: 0 | L49: l. | O49: 5.2 | P49: 12 | Q49: 0 | R49: 0 | S49: 0 | U49: 0 | V49: 0
B50: 38. | C50: Nicolaus vodka | F50: 0 | I50: 0 | J50: 18 | K50: 0 | L50: l. | O50: 8.62 | P50: 18 | Q50: 0 | R50: 0 | S50: 0 | U50: 0 | V50: 0
B51: 39. | C51: Captain Morgan | F51: 0 | I51: 0 | J51: 24 | K51: 0 | L51: l. | O51: 11.74 | P51: 24 | Q51: 0 | R51: 0 | S51: 0 | U51: 0 | V51: 0
B52: 40. | F52: 0 | I52: 0 | K52: 0 | P52: 0 | Q52: 0 | R52: 0 | S52: 0 | U52: 0 | V52: 0
B53: 41. | F53: 0 | I53: 0 | K53: 0 | P53: 0 | Q53: 0 | R53: 0 | S53: 0 | U53: 0 | V53: 0
P54: 0
D55: =SUM(D13:D53) -> 0 | G55: =SUM(G13:G53) -> 0 | J55: Celkom: | K55: =SUM(K13:K53) -> 0 | P55: Celkom: | Q55: =SUM(Q13:Q53) -> 0 | R55: =SUM(R13:R53) -> 0 | S55: =SUM(S13:S53) -> 0 | U55: Za tovar: | V55: =SUM(V13:V53) -> 0
C62: Strana 2: | O62: Strana 2:
B63: P.Č. | C63: Názov tovaru | D63: Poč. stav | E63: Denný príjem | F63: Spolu | G63: Zostatok v sklade | I63: Denný predaj | J63: Cena € | K63: Suma celkom € | O63: Nákupná cena | P63: Predajná cena | Q63: Tržba | R63: Zisk | S63: Zisk po zdanení | U63: Zostatok v krčme | V63: Suma tovaru
B65: 42. | C65: PEPSI + 7UP 0,5l | F65: =D65+E65 -> 0 | I65: =D65+E65-G65 -> 0 | J65: 1.1 | K65: =I65*J65 -> 0 | L65: ks. | O65: 0.78 | P65: =J65 -> 1.1 | Q65: =I65*J65 -> 0 | R65: =(P65-O65)*I65 -> 0 | S65: =R65*0.8 -> 0 | U65: =G65 -> 0 | V65: =U65*O65 -> 0
B66: 43. | C66: Sprite +Tonic | F66: =D66+E66 -> 0 | I66: =D66+E66-G66 -> 0 | J66: 2 | K66: =I66*J66 -> 0 | L66: ks. | O66: 0.726 | P66: =J66 -> 2 | Q66: =I66*J66 -> 0 | R66: =(P66-O66)*I66 -> 0 | S66: =R66*0.8 -> 0 | U66: =G66 -> 0 | V66: =U66*O66 -> 0
B67: 44. | C67: Minerálka 0,5l | F67: 0 | I67: 0 | J67: 1 | K67: 0 | L67: ks. | O67: 0.528 | P67: 1 | Q67: 0 | R67: =(P67-O67)*I67 -> 0 | S67: 0 | U67: 0 | V67: 0
B68: 45. | C68: Kofola 0,5l | F68: 0 | I68: 0 | J68: 1.1 | K68: 0 | L68: ks. | O68: 0.49 | P68: 1.1 | Q68: 0 | R68: 0 | S68: 0 | U68: 0 | V68: 0
B69: 46. | C69: Džús krabička | F69: 0 | I69: 0 | J69: 0.5 | K69: 0 | L69: ks. | O69: 0.17 | P69: 0.5 | Q69: 0 | R69: 0 | S69: 0 | U69: 0 | V69: 0
B70: 47. | C70: Energetický nápoj | F70: 0 | I70: 0 | J70: 2 | K70: 0 | L70: ks. | O70: 0.25 | P70: 2 | Q70: 0 | R70: 0 | S70: 0 | U70: 0 | V70: 0
B71: 48. | C71: Limo 0,33l fľaša | F71: 0 | I71: 0 | J71: 0.5 | K71: 0 | L71: ks. | O71: 0.1 | P71: 0.5 | Q71: 0 | R71: 0 | S71: 0 | U71: 0 | V71: 0
B72: 49. | C72: Minerálka 2l | D72: 0 | F72: 0 | I72: 0 | J72: 1.5 | K72: 0 | L72: l. | O72: 0.23 | P72: 1.5 | Q72: 0 | R72: 0 | S72: 0 | U72: 0 | V72: 0
B73: 50. | C73: Relax džús fľaška | F73: 0 | I73: 0 | J73: 1 | K73: 0 | L73: ks. | O73: 0.55 | P73: 1 | Q73: 0 | R73: 0 | S73: 0 | U73: 0 | V73: 0
B74: 51. | C74: Ďžús nalievaný | F74: 0 | I74: 0 | J74: 3 | K74: 0 | L74: l. | O74: 1.188 | P74: 3 | Q74: 0 | R74: 0 | S74: 0 | U74: 0 | V74: 0
B75: 52. | C75: Toma | F75: 0 | I75: 0 | J75: 1.1 | K75: 0 | L75: l. | O75: 0.33 | P75: 1.1 | Q75: 0 | R75: 0 | S75: 0 | U75: 0 | V75: 0
B76: 53. | C76: HELLO Jupík | F76: 0 | I76: 0 | J76: 0.8 | K76: 0 | L76: ks. | O76: 0.33 | P76: 0.8 | Q76: 0 | R76: 0 | S76: 0 | U76: 0 | V76: 0
B77: 54. | C77: COCA COLA | F77: 0 | I77: 0 | J77: 1.1 | K77: 0 | L77: ks. | O77: 0.624 | P77: 1.1 | Q77: 0 | R77: 0 | S77: 0 | U77: 0 | V77: 0
B78: 55. | C78: Vinea | F78: 0 | I78: 0 | J78: 1.1 | K78: 0 | L78: ks. | O78: 0.504 | P78: 1.1 | Q78: 0 | R78: 0 | S78: 0 | U78: 0 | V78: 0
B79: 56. | C79: ALOE VERA | F79: 0 | I79: 0 | J79: 1.2 | K79: 0 | L79: ks. | O79: 0.65 | P79: 1.2 | Q79: 0 | R79: 0 | S79: 0 | U79: 0 | V79: 0
B80: 57. | F80: 0 | I80: 0 | K80: 0 | P80: 0 | Q80: 0 | R80: 0 | S80: 0 | U80: 0 | V80: 0
B81: 58. | C81: Káva turecká | F81: 0 | I81: =(D81+E81-G81)/7 -> 0 | J81: 0.5 | K81: 0 | L81: gr. | O81: 0.034 | P81: 0.5 | Q81: =K81 -> 0 | R81: 0 | S81: 0 | U81: 0 | V81: 0
B82: 59. | C82: Nescafé 3v1 | F82: 0 | I82: 0 | J82: 0.5 | K82: 0 | L82: ks. | O82: 0.14 | P82: 0.5 | Q82: 0 | R82: 0 | S82: 0 | U82: 0 | V82: 0
B83: 60. | C83: Čaj | F83: 0 | I83: 0 | J83: 0.5 | K83: =I83*J83 -> 0 | L83: ks. | O83: 0.058 | P83: 0.5 | Q83: =I83*J83 -> 0 | R83: 0 | S83: 0 | U83: 0 | V83: =U83*O84 -> 0
B84: 61. | C84: Mlieko do kávy | F84: 0 | I84: 0 | J84: 0.1 | K84: =I84*J84 -> 0 | L84: ks. | O84: 0.036 | P84: 0.1 | Q84: =I84*J84 -> 0 | R84: 0 | S84: 0 | U84: 0 | V84: =U84*O85 -> 0
B85: 62. | C85: Cukor HB | F85: 0 | I85: 0 | J85: 0.05 | K85: =I85*J85 -> 0 | L85: ks. | O85: 0.008 | P85: 0.05 | Q85: =I85*J85 -> 0 | R85: 0 | S85: 0 | U85: 0 | V85: =U85*O86 -> 0
B86: 63. | F86: 0 | I86: 0 | K86: =I86*J86 -> 0 | P86: 0 | Q86: =I86*J86 -> 0 | R86: 0 | S86: 0 | U86: 0 | V86: =U86*O87 -> 0
B87: 64. | F87: 0 | I87: 0 | K87: 0 | P87: 0 | Q87: 0 | R87: =(P87-O87)*I87 -> 0 | S87: 0 | U87: 0 | V87: 0
B88: 65. | F88: 0 | I88: 0 | K88: 0 | P88: 0 | Q88: 0 | R88: 0 | S88: 0 | U88: 0 | V88: 0
B89: 66. | C89: Golden | F89: 0 | I89: 0 | J89: 3.4 | K89: 0 | L89: ks. | O89: 3.22 | P89: 3.4 | Q89: 0 | R89: 0 | S89: 0 | U89: 0 | V89: 0
B90: 67. | C90: Petra 3,40€ | F90: 0 | I90: 0 | J90: 3.4 | K90: 0 | L90: ks. | O90: 3.23 | P90: 3.4 | Q90: 0 | R90: 0 | S90: 0 | U90: 0 | V90: 0
B91: 68. | C91: Malboro 3,70€ | F91: 0 | I91: 0 | J91: 3.7 | K91: 0 | L91: ks. | O91: 3.51 | P91: 3.7 | Q91: 0 | R91: 0 | S91: 0 | U91: 0 | V91: 0
B92: 69. | C92: LM 3,40€ | F92: 0 | I92: 0 | J92: 3.4 | K92: 0 | L92: ks. | O92: 3.23 | P92: 3.4 | Q92: 0 | R92: 0 | S92: 0 | U92: 0 | V92: 0
B93: 70. | C93: Mars | F93: 0 | I93: 0 | J93: 3.4 | K93: 0 | L93: ks. | O93: 3.22 | P93: 3.4 | Q93: 0 | R93: 0 | S93: 0 | U93: 0 | V93: 0
B94: 71. | C94: West | F94: 0 | I94: 0 | J94: 3.2 | K94: 0 | L94: ks. | O94: 3.04 | P94: 3.2 | Q94: 0 | R94: 0 | S94: 0 | U94: 0 | V94: 0
B95: 72. | F95: 0 | I95: 0 | K95: 0 | P95: 0 | Q95: 0 | R95: 0 | S95: 0 | U95: 0 | V95: 0
B96: 73. | C96: Malboro 4,00€ | F96: 0 | I96: 0 | J96: 4 | K96: 0 | L96: ks. | O96: 3.9 | P96: 4 | Q96: 0 | R96: 0 | S96: 0 | U96: 0 | V96: 0
B97: 74. | F97: 0 | I97: 0 | K97: 0 | P97: 0 | Q97: 0 | R97: 0 | S97: 0 | U97: 0 | V97: 0
B98: 75. | F98: 0 | I98: 0 | K98: 0 | P98: 0 | Q98: 0 | R98: 0 | S98: 0 | U98: 0 | V98: 0
B99: 76. | F99: 0 | I99: 0 | K99: 0 | P99: 0 | Q99: 0 | R99: 0 | S99: 0 | U99: 0 | V99: 0
B100: 77. | C100: Hyg. vreckovky | F100: 0 | I100: 0 | J100: 0.2 | K100: 0 | L100: ks. | O100: 0.089 | P100: 0.2 | Q100: 0 | R100: 0 | S100: 0 | U100: 0 | V100: 0
B101: 78. | C101: Zapaľovač | F101: 0 | I101: 0 | J101: 0.5 | K101: 0 | L101: ks. | O101: 0.17 | P101: 0.5 | Q101: 0 | R101: 0 | S101: 0 | U101: 0 | V101: 0
B102: 79. | C102: Zápalky | F102: 0 | I102: 0 | J102: 0.1 | K102: 0 | L102: ks. | O102: 0.04 | P102: 0.1 | Q102: 0 | R102: 0 | S102: 0 | U102: 0 | V102: 0
B103: 80. | F103: 0 | I103: 0 | K103: 0 | P103: 0 | Q103: 0 | R103: 0 | S103: 0 | U103: 0 | V103: 0
B104: 81. | F104: 0 | I104: 0 | K104: 0 | P104: 0 | Q104: 0 | R104: 0 | S104: 0 | U104: 0 | V104: 0
B105: 82. | F105: 0 | I105: 0 | K105: 0 | P105: 0 | Q105: 0 | R105: 0 | S105: 0 | U105: 0 | V105: 0
D107: =SUM(D65:D105) -> 0 | G107: =SUM(G65:G105) -> 0 | J107: Celkom : | K107: =SUM(K65:K105) -> 0 | P107: Celkom: | Q107: =SUM(Q65:Q105) -> 0 | R107: =SUM(R65:R105) -> 0 | S107: =SUM(S65:S105) -> 0 | U107: Za tovar: | V107: =SUM(V65:V105) -> 0
C114: Strana 3: | O114: Strana 3:
B115: P.Č. | C115: Názov tovaru | D115: Poč. stav | E115: Denný príjem | F115: Spolu | G115: Zostatok v sklade | I115: Denný predaj | J115: Cena € | K115: Suma celkom € | O115: Nákupná cena | P115: Predajná cena | Q115: Tržba | R115: Zisk | S115: Zisk po zdanení | U115: Zostatok v krčme | V115: Suma tovaru
B117: 83. | C117: Kinderko | F117: =D117+E117 -> 0 | I117: =D117+E117-G117 -> 0 | J117: 1.5 | K117: =I117*J117 -> 0 | L117: ks. | O117: 0.93 | P117: =J117 -> 1.5 | Q117: =I117*J117 -> 0 | R117: =(P117-O117)*I117 -> 0 | S117: =R117*0.8 -> 0 | U117: =G117 -> 0 | V117: =U117*O117 -> 0
B118: 84. | C118: Horalka | F118: =D118+E118 -> 0 | I118: =D118+E118-G118 -> 0 | J118: 0.6 | K118: =I118*J118 -> 0 | L118: ks. | O118: 0.31 | P118: =J118 -> 0.6 | Q118: =I118*J118 -> 0 | R118: =(P118-O118)*I118 -> 0 | S118: =R118*0.8 -> 0 | U118: =G118 -> 0 | V118: =U118*O118 -> 0
B119: 85. | C119: Kávenky | F119: 0 | I119: 0 | J119: 0.6 | K119: 0 | L119: ks. | O119: 0.28 | P119: 0.6 | Q119: 0 | R119: =(P119-O119)*I119 -> 0 | S119: 0 | U119: 0 | V119: 0
B120: 86. | C120: Kinder čokoláda | F120: 0 | I120: 0 | J120: 1.8 | K120: 0 | L120: ks. | O120: 0.9 | P120: 1.8 | Q120: 0 | R120: 0 | S120: 0 | U120: 0 | V120: 0
B121: 87. | C121: 3-BIT | F121: 0 | I121: 0 | J121: 0.6 | K121: 0 | L121: ks. | O121: 0.32 | P121: 0.6 | Q121: 0 | R121: 0 | S121: 0 | U121: 0 | V121: 0
B122: 88. | C122: Banán | F122: 0 | I122: 0 | J122: 0.6 | K122: 0 | L122: ks. | O122: 0.26 | P122: 0.6 | Q122: 0 | R122: 0 | S122: 0 | U122: 0 | V122: 0
B123: 89. | C123: Margot | F123: 0 | I123: 0 | J123: 0.6 | K123: 0 | L123: ks. | O123: 0.4 | P123: 0.6 | Q123: 0 | R123: 0 | S123: 0 | U123: 0 | V123: 0
B124: 90. | C124: Lízatko 2 | F124: 0 | I124: 0 | J124: 0.2 | K124: 0 | L124: ks. | O124: 0.04 | P124: 0.2 | Q124: 0 | R124: 0 | S124: 0 | U124: 0 | V124: 0
B125: 91. | C125: Mila | F125: 0 | I125: 0 | J125: 0.6 | K125: 0 | L125: ks. | O125: 0.37 | P125: 0.6 | Q125: 0 | R125: 0 | S125: 0 | U125: 0 | V125: 0
B126: 92. | C126: Lízatko | F126: 0 | I126: 0 | J126: 0.3 | K126: 0 | L126: ks. | O126: 0.1 | P126: 0.3 | Q126: 0 | R126: 0 | S126: 0 | U126: 0 | V126: 0
B127: 93. | C127: Chipsy | F127: 0 | I127: 0 | J127: 1 | K127: 0 | L127: ks. | O127: 0.42 | P127: 1 | Q127: 0 | R127: 0 | S127: 0 | U127: 0 | V127: 0
B128: 94. | C128: Tofife | F128: 0 | I128: 0 | J128: 3 | K128: 0 | L128: ks. | O128: 1.62 | P128: 3 | Q128: 0 | R128: 0 | S128: 0 | U128: 0 | V128: 0
B129: 95. | C129: Milka čok. | F129: 0 | I129: 0 | J129: 1.8 | K129: 0 | L129: ks. | O129: 0.73 | P129: 1.8 | Q129: 0 | R129: 0 | S129: 0 | U129: 0 | V129: 0
B130: 96. | C130: Tyčinky DRU | F130: 0 | I130: 0 | J130: 0.5 | K130: 0 | L130: ks. | O130: 0.23 | P130: 0.5 | Q130: 0 | R130: 0 | S130: 0 | U130: 0 | V130: 0
B131: 97. | C131: Arašidy | F131: 0 | I131: 0 | J131: 0.8 | K131: 0 | L131: ks. | O131: 0.41 | P131: 0.8 | Q131: 0 | R131: 0 | S131: 0 | U131: 0 | V131: 0
B132: 98. | C132: TIC-TAC | F132: 0 | I132: 0 | J132: 0.6 | K132: 0 | L132: ks. | O132: 0.3 | P132: 0.6 | Q132: 0 | R132: 0 | S132: 0 | U132: 0 | V132: 0
B133: 99. | C133: Žuvažky plátky | F133: 0 | I133: 0 | J133: 0.1 | K133: 0 | L133: ks. | O133: 0.052 | P133: 0.1 | Q133: 0 | R133: 0 | S133: 0 | U133: 0 | V133: 0
B134: 100. | C134: Žuvažky dražé | F134: 0 | I134: 0 | J134: 0.6 | K134: 0 | L134: ks. | O134: 0.37 | P134: 0.6 | Q134: 0 | R134: 0 | S134: 0 | U134: 0 | V134: 0
B135: 101. | C135: Hašlerky | F135: 0 | I135: 0 | J135: 0.9 | K135: 0 | L135: ks. | O135: 0.54 | P135: 0.9 | Q135: 0 | R135: 0 | S135: 0 | U135: 0 | V135: 0
B136: 102. | C136: Žuvačky guličky | F136: 0 | I136: 0 | J136: 0.7 | K136: 0 | L136: ks. | O136: 0.3 | P136: 0.7 | Q136: 0 | R136: 0 | S136: 0 | U136: 0 | V136: 0
B137: 103. | C137: Chrumky | F137: 0 | I137: 0 | J137: 0.6 | K137: 0 | L137: ks. | O137: 0.27 | P137: 0.6 | Q137: 0 | R137: 0 | S137: 0 | U137: 0 | V137: 0
B138: 104. | F138: 0 | I138: 0 | K138: 0 | P138: 0 | Q138: 0 | R138: 0 | S138: 0 | U138: 0 | V138: 0
B139: 105. | F139: 0 | I139: 0 | K139: 0 | P139: 0 | Q139: 0 | R139: 0 | S139: 0 | U139: 0 | V139: 0
B140: 106. | F140: 0 | I140: 0 | K140: 0 | P140: 0 | Q140: 0 | R140: 0 | S140: 0 | U140: 0 | V140: 0
B141: 107. | F141: 0 | I141: 0 | K141: 0 | P141: 0 | Q141: 0 | R141: 0 | S141: 0 | U141: 0 | V141: 0
B142: 108. | F142: 0 | I142: 0 | K142: 0 | P142: 0 | Q142: 0 | R142: 0 | S142: 0 | U142: 0 | V142: 0
U143: 0 | V143: 0
D144: =SUM(D117:D142) -> 0 | G144: =SUM(G117:G142) -> 0 | J144: Celkom: | K144: =SUM(K117:K142) -> 0 | P144: Celkom: | Q144: =SUM(Q117:Q142) -> 0 | R144: =SUM(R117:R142) -> 0 | S144: =SUM(S117:S142) -> 0 | U144: Za tovar: | V144: =SUM(V117:V142) -> 0
D147: Stávková: | I147: Strana 1: | J147: =K55 -> 0 | P147: Strana 1 | Q147: =Q55 -> 0 | R147: =R55 -> 0 | S147: =S55 -> 0 | U147: Strana 1: | V147: =V55 -> 0
D148: Refil: | I148: Strana 2: | J148: =K107 -> 0 | P148: Strana 2 | Q148: =Q107 -> 0 | R148: =R107 -> 0 | S148: =S107 -> 0 | U148: Strana 2: | V148: =V107 -> 0
D149: Výdavky: | I149: Strana 3: | J149: =K144 -> 0 | P149: Strana 3 | Q149: =Q144 -> 0 | R149: =R144 -> 0 | S149: =S144 -> 0 | U149: Strana 3: | V149: =V144 -> 0
E151: Spolu: | F151: =SUM(F147:F149) -> 0 | I151: Spolu: | J151: =SUM(J147:J149) -> 0 | P151: Spolu: | Q151: =SUM(Q147:Q149) -> 0 | R151: =SUM(R147:R149) -> 0 | S151: =SUM(S147:S149) -> 0 | U151: Spolu: | V151: =SUM(V147:V149) -> 0
P153: Spolu: | Q153: =Q151-F151 -> 0 | R153: =R151-G151 -> 0 | S153: =S151-H151 -> 0
I154: Celkom : | J154: =J151-F151 -> 0
C156: Zostatok hotovosť:
C158: rozdiel: | D158: =D156-J154 -> 0

Sheet Tlač
D1: Vyučtovanie výčapu | J1: /2019
G5: Meno:
G7: Dátum: | J7: /2019
C10: Strana 1:
B11: P.Č. | C11: Názov tovaru | D11: Poč. stav | E11: Denný príjem | F11: Spolu | G11: Zostatok v sklade | I11: Denný predaj | J11: Cena € | K11: Suma celkom € | L11: J.M.
B13: 1. | C13: Pernštejn čap. 10˚ | F13: =D13+E13 -> 0 | I13: =D13+E13-G13 -> 0 | J13: 2 | K13: =I13*J13 -> 0 | L13: l.
B14: 2. | C14: Malinovka čap. | F14: 0 | I14: 0 | J14: 2 | K14: =I14*J14 -> 0 | L14: l.
B15: 3. | C15: Radler čap. | F15: 0 | I15: 0 | J15: 2.6 | K15: 0 | L15: l.
B16: 4. | F16: 0 | I16: 0 | K16: 0
B17: 5. | C17: Šariš 10˚ fľaša | F17: 0 | I17: 0 | J17: 0.8 | K17: 0 | L17: ks.
B18: 6. | C18: Kozel 10˚ fľaša | F18: 0 | I18: 0 | J18: 0.9 | K18: 0 | L18: ks.
B19: 7. | C19: Birell nealko fľaša | F19: 0 | I19: 0 | J19: 1.2 | K19: 0 | L19: ks.
B20: 8. | C20: Gambrinus fľaša | F20: 0 | I20: 0 | J20: 0.9 | K20: 0 | L20: ks.
B21: 9. | C21: Plzeň 12˚ fľaša | F21: 0 | I21: 0 | J21: 1.3 | K21: 0 | L21: ks.
B22: 10. | F22: 0 | I22: 0 | K22: 0 | L22: ks.
B23: 11. | C23: Gambrinus plech. | F23: 0 | I23: 0 | J23: 1 | K23: 0 | L23: ks.
B24: 12. | F24: 0 | I24: 0 | K24: 0 | L24: ks.
B25: 13. | F25: 0 | I25: 0 | K25: 0 | L25: ks.
B26: 14. | F26: 0 | I26: 0 | K26: 0
B27: 15. | C27: Práznde sudy | F27: 0 | I27: 0 | K27: 0 | L27: ks.
B28: 16. | C28: Práznde fľaše | F28: 0 | I28: 0 | K28: 0 | L28: ks.
B29: 17. | F29: 0 | I29: 0 | K29: 0
B30: 18. | F30: 0 | I30: 0 | K30: 0
B31: 19. | C31: Víno biele | F31: 0 | I31: 0 | J31: 3 | K31: 0 | L31: l.
B32: 20. | C32: Víno červené | F32: 0 | I32: 0 | J32: 3 | K32: 0 | L32: l.
B33: 21. | F33: 0 | I33: 0 | K33: 0
B34: 22. | C34: Vodka | F34: 0 | I34: 0 | J34: 12 | K34: 0 | L34: l.
B35: 23. | C35: Borovička | F35: 0 | I35: 0 | J35: 12 | K35: 0 | L35: l.
B36: 24. | C36: Koniferka | F36: 0 | I36: 0 | J36: 14 | K36: 0 | L36: l.
B37: 25. | C37: RUM | F37: 0 | I37: 0 | J37: 12 | K37: 0 | L37: l.
B38: 26. | C38: Hruška | F38: 0 | I38: 0 | J38: 14 | K38: 0 | L38: l.
B39: 27. | C39: Spišská borovička | F39: 0 | I39: 0 | J39: 14 | K39: 0 | L39: l.
B40: 28. | C40: Trenčianské hradné | F40: 0 | I40: 0 | J40: 12 | K40: 0 | L40: l.
B41: 29. | C41: Karpatská horká | F41: 0 | I41: 0 | J41: 12 | K41: 0 | L41: l.
B42: 30. | C42: Vodka Peach | F42: 0 | I42: 0 | J42: 14 | K42: 0 | L42: l.
B43: 31. | C43: Becherovka | F43: 0 | I43: 0 | J43: 20 | K43: 0 | L43: l.
B44: 32. | C44: Fernet | F44: 0 | I44: 0 | J44: 20 | K44: 0 | L44: l.
B45: 33. | C45: Slivka | F45: 0 | I45: 0 | J45: 14 | K45: 0 | L45: l.
B46: 34. | C46: Bošácka slivovica | F46: 0 | I46: 0 | J46: 24 | K46: 0 | L46: l.
B47: 35. | C47: Karpatská KB | F47: 0 | I47: 0 | J47: 20 | K47: 0 | L47: l.
B48: 36. | C48: Fernet Citrus | F48: 0 | I48: 0 | J48: 20 | K48: 0 | L48: l.
B49: 37. | C49: Pepermint | F49: 0 | I49: 0 | J49: 12 | K49: 0 | L49: l.
B50: 38. | C50: Nicolaus vodka | F50: 0 | I50: 0 | J50: 18 | K50: 0 | L50: l.
B51: 39. | C51: Captain Morgan | F51: 0 | I51: 0 | J51: 24 | K51: 0 | L51: l.
B52: 40. | F52: 0 | I52: 0 | K52: 0
B53: 41. | F53: 0 | I53: 0 | K53: 0
D55: =SUM(D13:D53) -> 0 | G55: =SUM(G13:G53) -> 0 | J55: Celkom: | K55: =SUM(K13:K53) -> 0
C62: Strana 2:
B63: P.Č. | C63: Názov tovaru | D63: Poč. stav | E63: Denný príjem | F63: Spolu | G63: Zostatok v sklade | I63: Denný predaj | J63: Cena € | K63: Suma celkom €
B65: 42. | C65: PEPSI + 7UP 0,5l | F65: =D65+E65 -> 0 | I65: =D65+E65-G65 -> 0 | J65: 1.1 | K65: =I65*J65 -> 0 | L65: ks.
B66: 43. | C66: Sprite +Tonic | F66: =D66+E66 -> 0 | I66: =D66+E66-G66 -> 0 | J66: 2 | K66: =I66*J66 -> 0 | L66: ks.
B67: 44. | C67: Minerálka 0,5l | F67: 0 | I67: 0 | J67: 1 | K67: 0 | L67: ks.
B68: 45. | C68: Kofola 0,5l | F68: 0 | I68: 0 | J68: 1.1 | K68: 0 | L68: ks.
B69: 46. | C69: Džús krabička | F69: 0 | I69: 0 | J69: 0.5 | K69: 0 | L69: ks.
B70: 47. | C70: Energetický nápoj | F70: 0 | I70: 0 | J70: 2 | K70: 0 | L70: ks.
B71: 48. | C71: Limo 0,33l fľaša | F71: 0 | I71: 0 | J71: 0.5 | K71: 0 | L71: ks.
B72: 49. | C72: Minerálka 2l | D72: 0 | F72: 0 | I72: 0 | J72: 1.5 | K72: 0 | L72: l.
B73: 50. | C73: Relax džús fľaška | F73: 0 | I73: 0 | J73: 1 | K73: 0 | L73: ks.
B74: 51. | C74: Ďžús nalievaný | F74: 0 | I74: 0 | J74: 3 | K74: 0 | L74: l.
B75: 52. | C75: Toma | F75: 0 | I75: 0 | J75: 1.1 | K75: 0 | L75: l.
B76: 53. | C76: HELLO Jupík | F76: 0 | I76: 0 | J76: 0.8 | K76: 0 | L76: ks.
B77: 54. | C77: COCA COLA | F77: 0 | I77: 0 | J77: 1.1 | K77: 0 | L77: ks.
B78: 55. | C78: Vinea | F78: 0 | I78: 0 | J78: 1.1 | K78: 0 | L78: ks.
B79: 56. | C79: ALOE VERA | F79: 0 | I79: 0 | J79: 1.2 | K79: 0 | L79: ks.
B80: 57. | F80: 0 | I80: 0 | K80: 0
B81: 58. | C81: Káva turecká | F81: 0 | I81: =(D81+E81-G81)/7 -> 0 | J81: 0.5 | K81: 0 | L81: gr.
B82: 59. | C82: Nescafé 3v1 | F82: 0 | I82: 0 | J82: 0.5 | K82: 0 | L82: ks.
B83: 60. | C83: Čaj | F83: 0 | I83: 0 | J83: 0.5 | K83: =I83*J83 -> 0 | L83: ks.
B84: 61. | C84: Mlieko do kávy | F84: 0 | I84: 0 | J84: 0.1 | K84: =I84*J84 -> 0 | L84: ks.
B85: 62. | C85: Cukor HB | F85: 0 | I85: 0 | J85: 0.05 | K85: =I85*J85 -> 0 | L85: ks.
B86: 63. | F86: 0 | I86: 0 | K86: =I86*J86 -> 0
B87: 64. | F87: 0 | I87: 0 | K87: 0
B88: 65. | F88: 0 | I88: 0 | K88: 0
B89: 66. | C89: Golden | F89: 0 | I89: 0 | J89: 3.4 | K89: 0 | L89: ks.
B90: 67. | C90: Petra 3,40€ | F90: 0 | I90: 0 | J90: 3.4 | K90: 0 | L90: ks.
B91: 68. | C91: Malboro 3,70€ | F91: 0 | I91: 0 | J91: 3.7 | K91: 0 | L91: ks.
B92: 69. | C92: LM 3,40€ | F92: 0 | I92: 0 | J92: 3.4 | K92: 0 | L92: ks.
B93: 70. | C93: Mars | F93: 0 | I93: 0 | J93: 3.4 | K93: 0 | L93: ks.
B94: 71. | C94: West | F94: 0 | I94: 0 | J94: 3.2 | K94: 0 | L94: ks.
B95: 72. | F95: 0 | I95: 0 | K95: 0
B96: 73. | C96: Malboro 4,00€ | F96: 0 | I96: 0 | J96: 4 | K96: 0 | L96: ks.
B97: 74. | F97: 0 | I97: 0 | K97: 0
B98: 75. | F98: 0 | I98: 0 | K98: 0
B99: 76. | F99: 0 | I99: 0 | K99: 0
B100: 77. | C100: Hyg. vreckovky | F100: 0 | I100: 0 | J100: 0.2 | K100: 0 | L100: ks.
B101: 78. | C101: Zapaľovač | F101: 0 | I101: 0 | J101: 0.5 | K101: 0 | L101: ks.
B102: 79. | C102: Zápalky | F102: 0 | I102: 0 | J102: 0.1 | K102: 0 | L102: ks.
B103: 80. | F103: 0 | I103: 0 | K103: 0
B104: 81. | F104: 0 | I104: 0 | K104: 0
B105: 82. | F105: 0 | I105: 0 | K105: 0
D107: =SUM(D65:D105) -> 0 | G107: =SUM(G65:G105) -> 0 | J107: Celkom : | K107: =SUM(K65:K105) -> 0
C114: Strana 3:
B115: P.Č. | C115: Názov tovaru | D115: Poč. stav | E115: Denný príjem | F115: Spolu | G115: Zostatok v sklade | I115: Denný predaj | J115: Cena € | K115: Suma celkom €
B117: 83. | C117: Kinderko | F117: =D117+E117 -> 0 | I117: =D117+E117-G117 -> 0 | J117: 1.5 | K117: =I117*J117 -> 0 | L117: ks.
B118: 84. | C118: Horalka | F118: =D118+E118 -> 0 | I118: =D118+E118-G118 -> 0 | J118: 0.6 | K118: =I118*J118 -> 0 | L118: ks.
B119: 85. | C119: Kávenky | F119: 0 | I119: 0 | J119: 0.6 | K119: 0 | L119: ks.
B120: 86. | C120: Kinder čokoláda | F120: 0 | I120: 0 | J120: 1.8 | K120: 0 | L120: ks.
B121: 87. | C121: 3-BIT | F121: 0 | I121: 0 | J121: 0.6 | K121: 0 | L121: ks.
B122: 88. | C122: Banán | F122: 0 | I122: 0 | J122: 0.6 | K122: 0 | L122: ks.
B123: 89. | C123: Margot | F123: 0 | I123: 0 | J123: 0.6 | K123: 0 | L123: ks.
B124: 90. | C124: Lízatko 2 | F124: 0 | I124: 0 | J124: 0.2 | K124: 0 | L124: ks.
B125: 91. | C125: Mila | F125: 0 | I125: 0 | J125: 0.6 | K125: 0 | L125: ks.
B126: 92. | C126: Lízatko | F126: 0 | I126: 0 | J126: 0.3 | K126: 0 | L126: ks.
B127: 93. | C127: Chipsy | F127: 0 | I127: 0 | J127: 1 | K127: 0 | L127: ks.
B128: 94. | C128: Tofife | F128: 0 | I128: 0 | J128: 3 | K128: 0 | L128: ks.
B129: 95. | C129: Milka čok. | F129: 0 | I129: 0 | J129: 1.8 | K129: 0 | L129: ks.
B130: 96. | C130: Tyčinky DRU | F130: 0 | I130: 0 | J130: 0.5 | K130: 0 | L130: ks.
B131: 97. | C131: Arašidy | F131: 0 | I131: 0 | J131: 0.8 | K131: 0 | L131: ks.
B132: 98. | C132: TIC-TAC | F132: 0 | I132: 0 | J132: 0.6 | K132: 0 | L132: ks.
B133: 99. | C133: Žuvažky plátky | F133: 0 | I133: 0 | J133: 0.1 | K133: 0 | L133: ks.
B134: 100. | C134: Žuvažky dražé | F134: 0 | I134: 0 | J134: 0.6 | K134: 0 | L134: ks.
B135: 101. | C135: Hašlerky | F135: 0 | I135: 0 | J135: 0.9 | K135: 0 | L135: ks.
B136: 102. | C136: Žuvačky guličky | F136: 0 | I136: 0 | J136: 0.7 | K136: 0 | L136: ks.
B137: 103. | C137: Chrumky | F137: 0 | I137: 0 | J137: 0.6 | K137: 0 | L137: ks.
B138: 104. | F138: 0 | I138: 0 | K138: 0
B139: 105. | F139: 0 | I139: 0 | K139: 0
B140: 106. | F140: 0 | I140: 0 | K140: 0
B141: 107. | F141: 0 | I141: 0 | K141: 0
B142: 108. | F142: 0 | I142: 0 | K142: 0
D144: =SUM(D117:D142) -> 0 | G144: =SUM(G117:G142) -> 0 | J144: Celkom: | K144: =SUM(K117:K142) -> 0
D147: Stávková: | I147: Strana 1: | J147: =K55 -> 0
D148: Refil: | I148: Strana 2: | J148: =K107 -> 0
D149: Výdavky: | I149: Strana 3: | J149: =K144 -> 0
E151: Spolu: | F151: =SUM(F147:F149) -> 0 | I151: Spolu: | J151: =SUM(J147:J149) -> 0
I154: Celkom : | J154: =J151-F151 -> 0
C156: Zostatok hotovosť:

Sheet Sumár
A1: 10 | B1: Mesačný sumár | L1: Jún | M1: /2019 | Q1: Mesačný sumár
G2: Meno: | R2: =H2 -> 0
G3: Dátum: | R3: =H3 -> 0
B11: P.Č. | C11: Názov tovaru | D11: Poč. stav | E11: Mesačný príjem | F11: Spolu | G11: Zostatok v sklade | H11: Mesačný predaj | I11: J.M. | K11: Cena € | L11: Mesačný nákup celkom | M11: Mesačný predaj celkom | Q11: Nákupná cena | R11: Predajná cena | S11: Tržba | T11: Zisk | U11: Zisk po zdanení
B13: 1. | C13: Pernštejn čap. 10˚ | D13: 146.45 | E13: =SUM('0:3'!E13) -> 0 | F13: =D13+E13 -> 146.45 | G13: 201.4 | H13: =SUM('0:3'!I13) -> 192.5 | I13: l. | K13: 2 | L13: =E13*Q13 -> 0 | M13: =H13*K13 -> 385 | Q13: 1.032 | R13: =K13 -> 2 | S13: =H13*K13 -> 385 | T13: =(R13-Q13)*H13 -> 186.34 | U13: =T13*0.8 -> 149.072
B14: 2. | C14: Malinovka čap. | D14: 53.2 | E14: =SUM('0:3'!E14) -> 80 | F14: 133.2 | G14: 125.2 | H14: =SUM('0:3'!I14) -> 124.5 | I14: l. | K14: 2 | L14: 39.44 | M14: 249 | Q14: 0.493 | R14: 2 | S14: 249 | T14: 187.6215 | U14: 150.0972
B15: 3. | C15: Radler čap. | D15: 10 | E15: =SUM('0:3'!E15) -> 30 | F15: 40 | G15: 8 | H15: =SUM('0:3'!I15) -> 22.9 | I15: l. | K15: 2.6 | L15: 45.6 | M15: 59.54 | Q15: 1.52 | R15: 2.6 | S15: 59.54 | T15: 24.732 | U15: 19.7856
B16: 4. | E16: =SUM('0:3'!E16) -> 0 | F16: 0 | H16: =SUM('0:3'!I16) -> 0 | L16: 0 | M16: 0 | R16: 0 | S16: 0 | T16: 0 | U16: 0
B17: 5. | C17: Šariš 10˚ fľaša | D17: 7 | E17: =SUM('0:3'!E17) -> 20 | F17: 27 | G17: 26 | H17: =SUM('0:3'!I17) -> 17 | I17: ks. | K17: 0.8 | L17: 6.8 | M17: 13.6 | Q17: 0.34 | R17: 0.8 | S17: 13.6 | T17: 7.82 | U17: 6.256
B18: 6. | C18: Kozel 10˚ fľaša | D18: 16 | E18: =SUM('0:3'!E18) -> 20 | F18: 36 | G18: 33 | H18: =SUM('0:3'!I18) -> 17 | I18: ks. | K18: 0.9 | L18: 9.4 | M18: 15.3 | Q18: 0.47 | R18: 0.9 | S18: 15.3 | T18: 7.31 | U18: 5.848
B19: 7. | C19: Birell nealko fľaša | D19: 61 | E19: =SUM('0:3'!E19) -> -20 | F19: 41 | G19: 52 | H19: =SUM('0:3'!I19) -> 11 | I19: ks. | K19: 1.2 | L19: -12.8 | M19: 13.2 | Q19: 0.64 | R19: 1.2 | S19: 13.2 | T19: 6.16 | U19: 4.928
B20: 8. | C20: Gambrinus fľaša | D20: 6 | E20: =SUM('0:3'!E20) -> 20 | F20: 26 | G20: 40 | H20: =SUM('0:3'!I20) -> 43 | I20: ks. | K20: 0.9 | L20: 11.2 | M20: 38.7 | Q20: 0.56 | R20: 0.9 | S20: 38.7 | T20: 14.62 | U20: 11.696
B21: 9. | C21: Plzeň 12˚ fľaša | D21: 41 | E21: =SUM('0:3'!E21) -> 0 | F21: 41 | G21: 29 | H21: =SUM('0:3'!I21) -> 36 | I21: ks. | K21: 1.3 | L21: 0 | M21: 46.8 | Q21: 0.694 | R21: 1.3 | S21: 46.8 | T21: 21.816 | U21: 17.4528
B22: 10. | E22: =SUM('0:3'!E22) -> 0 | F22: 0 | H22: =SUM('0:3'!I22) -> 0 | I22: ks. | L22: 0 | M22: 0 | R22: 0 | S22: 0 | T22: 0 | U22: 0
B23: 11. | C23: Gambrinus plech. | D23: 18 | E23: =SUM('0:3'!E23) -> 0 | F23: 18 | G23: 17 | H23: =SUM('0:3'!I23) -> 13 | I23: ks. | K23: 0.9 | L23: 0 | M23: 11.7 | Q23: 0.49 | R23: 0.9 | S23: 11.7 | T23: 5.33 | U23: 4.264
B24: 12. | E24: =SUM('0:3'!E24) -> 0 | F24: 0 | H24: =SUM('0:3'!I24) -> 0 | I24: ks. | L24: 0 | M24: 0 | Q24: 0.42 | R24: 0 | S24: 0 | T24: 0 | U24: 0
B25: 13. | E25: =SUM('0:3'!E25) -> 0 | F25: 0 | H25: =SUM('0:3'!I25) -> 0 | I25: ks. | L25: 0 | M25: 0 | Q25: 0.75 | R25: 0 | S25: 0 | T25: 0 | U25: 0
B26: 14. | E26: =SUM('0:3'!E26) -> 0 | F26: 0 | H26: =SUM('0:3'!I26) -> 0 | L26: 0 | M26: 0 | R26: 0 | S26: 0 | T26: 0 | U26: 0
B27: 15. | C27: Práznde sudy | E27: =SUM('0:3'!E27) -> 0 | F27: 0 | H27: =SUM('0:3'!I27) -> 0 | I27: ks. | L27: 0 | M27: 0 | R27: 0 | S27: 0 | T27: 0 | U27: 0
B28: 16. | C28: Práznde fľaše | E28: =SUM('0:3'!E28) -> 0 | F28: 0 | H28: =SUM('0:3'!I28) -> 0 | I28: ks. | L28: 0 | M28: 0 | R28: 0 | S28: 0 | T28: 0 | U28: 0
B29: 17. | E29: =SUM('0:3'!E29) -> 0 | F29: 0 | H29: =SUM('0:3'!I29) -> 0 | L29: 0 | M29: 0 | R29: 0 | S29: 0 | T29: 0 | U29: 0
B30: 18. | E30: =SUM('0:3'!E30) -> 0 | F30: 0 | H30: =SUM('0:3'!I30) -> 0 | L30: 0 | M30: 0 | R30: 0 | S30: 0 | T30: 0 | U30: 0
B31: 19. | C31: Víno biele | D31: 54.4 | E31: =SUM('0:3'!E31) -> 24 | F31: 78.4 | G31: 49.8 | H31: =SUM('0:3'!I31) -> 15.6 | I31: l. | K31: 3 | L31: 30.96 | M31: 46.8 | Q31: 1.29 | R31: 3 | S31: 46.8 | T31: 26.676 | U31: 21.3408
B32: 20. | C32: Víno červené | D32: 28.4 | E32: =SUM('0:3'!E32) -> 12 | F32: 40.4 | G32: 27.3 | H32: =SUM('0:3'!I32) -> 7.4 | I32: l. | K32: 3 | L32: 15.48 | M32: 22.2 | Q32: 1.29 | R32: 3 | S32: 22.2 | T32: 12.654 | U32: 10.1232
B33: 21. | E33: =SUM('0:3'!E33) -> 0 | F33: 0 | H33: =SUM('0:3'!I33) -> 0 | L33: 0 | M33: 0 | R33: 0 | S33: 0 | T33: 0 | U33: 0
B34: 22. | C34: Vodka | D34: 51.1 | E34: =SUM('0:3'!E34) -> 24 | F34: 75.1 | G34: 43 | H34: =SUM('0:3'!I34) -> 22.1 | I34: l. | K34: 12 | L34: 152.4 | M34: 265.2 | Q34: 6.35 | R34: 12 | S34: 265.2 | T34: 124.865 | U34: 99.892
B35: 23. | C35: Borovička | D35: 45.2 | E35: =SUM('0:3'!E35) -> 36 | F35: 81.2 | G35: 34.8 | H35: =SUM('0:3'!I35) -> 23.2 | I35: l. | K35: 12 | L35: 228.6 | M35: 278.4 | Q35: 6.35 | R35: 12 | S35: 278.4 | T35: 131.08 | U35: 104.864
B36: 24. | C36: Koniferka | D36: 13.15 | E36: =SUM('0:3'!E36) -> 8.4 | F36: 21.55 | G36: 11.4 | H36: =SUM('0:3'!I36) -> 4.9 | I36: l. | K36: 14 | L36: 48.972 | M36: 68.6 | Q36: 5.83 | R36: 14 | S36: 68.6 | T36: 40.033 | U36: 32.0264
B37: 25. | C37: RUM | D37: 14.85 | E37: =SUM('0:3'!E37) -> 6 | F37: 20.85 | G37: 11.2 | H37: =SUM('0:3'!I37) -> 4.4 | I37: l. | K37: 12 | L37: 34.68 | M37: 52.8 | Q37: 5.78 | R37: 12 | S37: 52.8 | T37: 27.368 | U37: 21.8944
B38: 26. | C38: Hruška | D38: 5.45 | E38: =SUM('0:3'!E38) -> 5 | F38: 10.45 | G38: 4.25 | H38: =SUM('0:3'!I38) -> 2.5 | I38: l. | K38: 14 | L38: 35.5 | M38: 35 | Q38: 7.1 | R38: 14 | S38: 35 | T38: 17.25 | U38: 13.8
B39: 27. | C39: Spišská borovička | D39: 0.9 | E39: =SUM('0:3'!E39) -> 0 | F39: 0.9 | G39: 0.3 | H39: =SUM('0:3'!I39) -> 0.4 | I39: l. | K39: 14 | L39: 0 | M39: 5.6 | Q39: 5.74 | R39: 14 | S39: 5.6 | T39: 3.304 | U39: 2.6432
B40: 28. | C40: Trenčianské hradné | D40: 18.35 | E40: =SUM('0:3'!E40) -> 12 | F40: 30.35 | G40: 15.8 | H40: =SUM('0:3'!I40) -> 7.85 | I40: l. | K40: 12 | L40: 74.04 | M40: 94.2 | Q40: 6.17 | R40: 12 | S40: 94.2 | T40: 45.7655 | U40: 36.6124
B41: 29. | C41: Karpatská horká | D41: 15.85 | E41: =SUM('0:3'!E41) -> 0 | F41: 15.85 | G41: 12.5 | H41: =SUM('0:3'!I41) -> 7.45 | I41: l. | K41: 12 | L41: 0 | M41: 89.4 | Q41: 4.92 | R41: 12 | S41: 89.4 | T41: 52.746 | U41: 42.1968
B42: 30. | C42: Vodka Peach | D42: 3.15 | E42: =SUM('0:3'!E42) -> 2 | F42: 5.15 | G42: 2.5 | H42: =SUM('0:3'!I42) -> 2.1 | I42: l. | K42: 14 | L42: 8.76 | M42: 29.4 | Q42: 4.38 | R42: 14 | S42: 29.4 | T42: 20.202 | U42: 16.1616
B43: 31. | C43: Becherovka | D43: 1.95 | E43: =SUM('0:3'!E43) -> 2 | F43: 3.95 | G43: 1.6 | H43: =SUM('0:3'!I43) -> 1.6 | I43: l. | K43: 20 | L43: 21.6 | M43: 32 | Q43: 10.8 | R43: 20 | S43: 32 | T43: 14.72 | U43: 11.776
B44: 32. | C44: Fernet | D44: 3.5 | E44: =SUM('0:3'!E44) -> 6 | F44: 9.5 | G44: 3 | H44: =SUM('0:3'!I44) -> 2.3 | I44: l. | K44: 20 | L44: 58.14 | M44: 46 | Q44: 9.69 | R44: 20 | S44: 46 | T44: 23.713 | U44: 18.9704
B45: 33. | C45: Slivka | D45: 2.05 | E45: =SUM('0:3'!E45) -> 0 | F45: =D45+E45 -> 2.05 | G45: 1.75 | H45: =SUM('0:3'!I45) -> 0.35 | I45: l. | K45: 14 | L45: =E45*Q45 -> 0 | M45: =H45*K45 -> 4.9 | Q45: 7.15 | R45: =K45 -> 14 | S45: =H45*K45 -> 4.9 | T45: =(R45-Q45)*H45 -> 2.3975 | U45: =T45*0.8 -> 1.918
B46: 34. | C46: Bošácka slivovica | D46: 3.25 | E46: =SUM('0:3'!E46) -> 5 | F46: 8.25 | G46: 2.7 | H46: =SUM('0:3'!I46) -> 1.3 | I46: l. | K46: 24 | L46: 84.55 | M46: 31.2 | Q46: 16.91 | R46: 24 | S46: 31.2 | T46: 9.217 | U46: 7.3736
B47: 35. | C47: Karpatská KB | E47: =SUM('0:3'!E47) -> 0 | F47: 0 | H47: =SUM('0:3'!I47) -> 0 | I47: l. | K47: 20 | L47: 0 | M47: 0 | Q47: 5.998 | R47: 20 | S47: 0 | T47: 0 | U47: 0
B48: 36. | C48: Fernet Citrus | E48: =SUM('0:3'!E48) -> 0 | F48: 0 | H48: =SUM('0:3'!I48) -> 0 | I48: l. | K48: 20 | L48: 0 | M48: 0 | Q48: 9.69 | R48: 20 | S48: 0 | T48: 0 | U48: 0
B49: 37. | C49: Pepermint | D49: 4.3 | E49: =SUM('0:3'!E49) -> 3 | F49: 7.3 | G49: 4.25 | H49: =SUM('0:3'!I49) -> 1.15 | I49: l. | K49: 12 | L49: 15.24 | M49: 13.8 | Q49: 5.08 | R49: 12 | S49: 13.8 | T49: 7.958 | U49: 6.3664
B50: 38. | C50: Nicolaus vodka | D50: 1.45 | E50: =SUM('0:3'!E50) -> 3 | F50: 4.45 | G50: 0.75 | H50: =SUM('0:3'!I50) -> 1 | I50: l. | K50: 18 | L50: 14.7 | M50: 18 | Q50: 4.9 | R50: 18 | S50: 18 | T50: 13.1 | U50: 10.48
B51: 39. | C51: Captain Morgan | D51: 2.35 | E51: =SUM('0:3'!E51) -> 0 | F51: 2.35 | G51: 2.35 | H51: =SUM('0:3'!I51) -> 0.7 | I51: l. | K51: 24 | L51: 0 | M51: 16.8 | Q51: 11.45 | R51: 24 | S51: 16.8 | T51: 8.785 | U51: 7.028
B52: 40. | E52: =SUM('0:3'!E52) -> 0 | F52: 0 | H52: =SUM('0:3'!I52) -> 0 | L52: 0 | M52: 0 | R52: 0 | S52: 0 | T52: 0 | U52: 0
B53: 41. | E53: =SUM('0:3'!E53) -> 0 | F53: 0 | H53: =SUM('0:3'!I53) -> 0 | L53: 0 | M53: 0 | R53: 0 | S53: 0 | T53: 0 | U53: 0
B54: 42. | C54: PEPSI + 7UP 0,5l | D54: 9 | E54: =SUM('0:3'!E65) -> 0 | F54: 9 | G54: 9 | H54: =SUM('0:3'!I65) -> 0 | I54: ks. | K54: 1.1 | L54: 0 | M54: 0 | Q54: 0.78 | R54: 1.1 | S54: 0 | T54: 0 | U54: 0
B55: 43. | C55: Sprite +Tonic | D55: 34.6 | E55: =SUM('0:3'!E66) -> 0 | F55: 34.6 | G55: 32.3 | H55: =SUM('0:3'!I66) -> 7.4 | I55: ks. | K55: 2 | L55: 0 | M55: 14.8 | Q55: 0.726 | R55: 2 | S55: 14.8 | T55: 9.4276 | U55: 7.54208
B56: 44. | C56: Minerálka 0,5l | D56: 19 | E56: =SUM('0:3'!E67) -> 36 | F56: 55 | G56: 17 | H56: =SUM('0:3'!I67) -> 36 | I56: ks. | K56: 0.9 | L56: 19.008 | M56: 32.4 | Q56: 0.528 | R56: 0.9 | S56: 32.4 | T56: 13.392 | U56: 10.7136
B57: 45. | C57: Kofola 0,5l | D57: 6 | E57: =SUM('0:3'!E68) -> 0 | F57: 6 | G57: 17 | H57: =SUM('0:3'!I68) -> 6 | I57: ks. | K57: 1.1 | L57: 0 | M57: 6.6 | Q57: 0.49 | R57: 1.1 | S57: 6.6 | T57: 3.66 | U57: 2.928
B58: 46. | C58: Džús krabička | D58: 48 | E58: =SUM('0:3'!E69) -> 0 | F58: 48 | G58: 41 | H58: =SUM('0:3'!I69) -> 9 | I58: ks. | K58: 0.5 | L58: 0 | M58: 4.5 | Q58: 0.17 | R58: 0.5 | S58: 4.5 | T58: 2.97 | U58: 2.376
B59: 47. | C59: Energetický nápoj | D59: 18 | E59: =SUM('0:3'!E70) -> -2 | F59: 16 | G59: 18 | H59: =SUM('0:3'!I70) -> 0 | I59: ks. | K59: 1.8 | L59: -0.5 | M59: 0 | Q59: 0.25 | R59: 1.8 | S59: 0 | T59: 0 | U59: 0
B60: 48. | C60: Limo 0,33l fľaša | D60: 30 | E60: =SUM('0:3'!E71) -> 20 | F60: 50 | G60: 30 | H60: =SUM('0:3'!I71) -> 28 | I60: ks. | K60: 0.5 | L60: 2 | M60: 14 | Q60: 0.1 | R60: 0.5 | S60: 14 | T60: 11.2 | U60: 8.96
B61: 49. | C61: Minerálka 2l | D61: 30 | E61: =SUM('0:3'!E72) -> 0 | F61: 30 | G61: 25.7 | H61: =SUM('0:3'!I72) -> 12.5 | I61: l. | K61: 1.5 | L61: 0 | M61: 18.75 | Q61: 0.23 | R61: 1.5 | S61: 18.75 | T61: 15.875 | U61: 12.7
B62: 50. | C62: Relax džús fľaška | D62: 41 | E62: =SUM('0:3'!E73) -> 48 | F62: 89 | G62: 36 | H62: =SUM('0:3'!I73) -> 10 | I62: ks. | K62: 1 | L62: 22.08 | M62: 10 | Q62: 0.46 | R62: 1 | S62: 10 | T62: 5.4 | U62: 4.32
B63: 51. | C63: Ďžús nalievaný | D63: 11.2 | E63: =SUM('0:3'!E74) -> 0 | F63: 11.2 | G63: 9 | H63: =SUM('0:3'!I74) -> 3.4 | I63: l. | K63: 3 | L63: 0 | M63: 10.2 | Q63: 1.188 | R63: 3 | S63: 10.2 | T63: 6.1608 | U63: 4.92864
B64: 52. | C64: Toma | D64: 3 | E64: =SUM('0:3'!E75) -> 0 | F64: 3 | G64: 15 | H64: =SUM('0:3'!I75) -> 6 | I64: l. | K64: 1.1 | L64: 0 | M64: 6.6 | Q64: 0.33 | R64: 1.1 | S64: 6.6 | T64: 4.62 | U64: 3.696
B65: 53. | C65: HELLO Jupík | D65: 20 | E65: =SUM('0:3'!E65) -> 0 | F65: 20 | G65: 17 | H65: =SUM('0:3'!I76) -> 3 | I65: ks. | K65: 0.8 | L65: 0 | M65: 2.4 | Q65: 0.176 | R65: 0.8 | S65: 2.4 | T65: 1.872 | U65: 1.4976
B66: 54. | C66: COCA COLA | D66: 7 | E66: =SUM('0:3'!E66) -> 0 | F66: 7 | G66: 19 | H66: =SUM('0:3'!I77) -> 5 | I66: ks. | K66: 1.1 | L66: 0 | M66: 5.5 | Q66: 0.624 | R66: 1.1 | S66: 5.5 | T66: 2.38 | U66: 1.904
B67: 55. | C67: Vinea | D67: 1 | E67: =SUM('0:3'!E67) -> 36 | F67: 37 | G67: 25 | H67: =SUM('0:3'!I78) -> 6 | I67: ks. | K67: 1.1 | L67: 18.144 | M67: 6.6 | Q67: 0.504 | R67: 1.1 | S67: 6.6 | T67: 3.576 | U67: 2.8608
B68: 56. | C68: ALOE VERA | D68: 7 | E68: =SUM('0:3'!E68) -> 0 | F68: 7 | G68: 7 | H68: =SUM('0:3'!I79) -> 5 | I68: ks. | K68: 1.2 | L68: 0 | M68: 6 | Q68: 0.64 | R68: 1.2 | S68: 6 | T68: 2.8 | U68: 2.24
B69: 57. | E69: =SUM('0:3'!E69) -> 0 | F69: 0 | H69: =SUM('0:3'!I80) -> 0 | L69: 0 | M69: 0 | R69: 0 | S69: 0 | T69: 0 | U69: 0
B70: 58. | C70: Káva turecká | D70: 500 | E70: =SUM('0:3'!E70) -> -2 | F70: 498 | G70: 900 | H70: =SUM('0:3'!I81) -> 54.28571429 | I70: gr. | K70: 0.5 | L70: -0.068 | M70: 27.14285714 | Q70: 0.034 | R70: 0.5 | S70: =M70 -> 27.14285714 | T70: 25.29714286 | U70: 20.23771429
B71: 59. | C71: Nescafé 3v1 | D71: 34 | E71: =SUM('0:3'!E71) -> 20 | F71: 54 | G71: 31 | H71: =SUM('0:3'!I82) -> 6 | I71: ks. | K71: 0.5 | L71: 2.8 | M71: 3 | Q71: 0.14 | R71: 0.5 | S71: =H71*K71 -> 3 | T71: 2.16 | U71: 1.728
B72: 60. | C72: Čaj | D72: 74 | E72: =SUM('0:3'!E72) -> 0 | F72: 74 | G72: 64 | H72: =SUM('0:3'!I83) -> 4 | I72: ks. | K72: 0.5 | L72: 0 | M72: 2 | Q72: 0.058 | R72: 0.5 | S72: 2 | T72: 1.768 | U72: 1.4144
B73: 61. | C73: Mlieko do kávy | D73: 43 | E73: =SUM('0:3'!E73) -> 48 | F73: 91 | G73: 38 | H73: =SUM('0:3'!I84) -> 15 | I73: ks. | K73: 0.1 | L73: 1.728 | M73: 1.5 | Q73: 0.036 | R73: 0.1 | S73: 1.5 | T73: 0.96 | U73: 0.768
B74: 62. | C74: Cukor HB | D74: 914 | E74: =SUM('0:3'!E74) -> 0 | F74: 914 | G74: 858 | H74: =SUM('0:3'!I85) -> 111 | I74: ks. | K74: 0.05 | L74: 0 | M74: 5.55 | Q74: 0.008 | R74: 0.05 | S74: 5.55 | T74: 4.662 | U74: 3.7296
B75: 63. | E75: =SUM('0:3'!E75) -> 0 | F75: 0 | H75: =SUM('0:3'!I86) -> 0 | L75: 0 | M75: 0 | R75: 0 | S75: 0 | T75: 0 | U75: 0
B76: 64. | E76: =SUM('0:3'!E76) -> 6 | F76: 6 | H76: =SUM('0:3'!I87) -> 0 | L76: 0 | M76: 0 | R76: 0 | S76: 0 | T76: 0 | U76: 0
B77: 65. | E77: =SUM('0:3'!E77) -> 0 | F77: =D77+E77 -> 0 | H77: =SUM('0:3'!I88) -> 0 | L77: =E77*Q77 -> 0 | M77: =H77*K77 -> 0 | R77: =K77 -> 0 | S77: 0 | T77: =(R77-Q77)*H77 -> 0 | U77: =T77*0.8 -> 0
B78: 66. | C78: Golden | D78: 44 | E78: =SUM('0:3'!E78) -> 6 | F78: 50 | G78: 36 | H78: =SUM('0:3'!I89) -> 37 | I78: ks. | K78: 3.4 | L78: 18.24 | M78: 125.8 | Q78: 3.04 | R78: 3.4 | S78: 125.8 | T78: 13.32 | U78: 10.656
B79: 67. | C79: Petra 3,40€ | D79: 22 | E79: =SUM('0:3'!E79) -> 24 | F79: 46 | G79: 18 | H79: =SUM('0:3'!I90) -> 15 | I79: ks. | K79: 3.4 | L79: 76.8 | M79: 51 | Q79: 3.2 | R79: 3.4 | S79: 51 | T79: 3 | U79: 2.4
B80: 68. | C80: Malboro 3,70€ | D80: 9 | E80: =SUM('0:3'!E80) -> 0 | F80: 9 | G80: 8 | H80: =SUM('0:3'!I91) -> 28 | I80: ks. | K80: 3.7 | L80: 0 | M80: 103.6 | Q80: 2.95 | R80: 3.7 | S80: 103.6 | T80: 21 | U80: 16.8
B81: 69. | C81: LM 3,40€ | D81: 58 | E81: =SUM('0:3'!E81) -> 500 | F81: 558 | G81: 40 | H81: =SUM('0:3'!I92) -> 59 | I81: ks. | K81: 3.4 | L81: 1520 | M81: 200.6 | Q81: 3.04 | R81: 3.4 | S81: 200.6 | T81: 21.24 | U81: 16.992
B82: 70. | C82: Mars | D82: 12 | E82: =SUM('0:3'!E82) -> 0 | F82: 12 | G82: 10 | H82: =SUM('0:3'!I93) -> 6 | I82: ks. | K82: 3.4 | L82: 0 | M82: 20.4 | Q82: 3.04 | R82: 3.4 | S82: 20.4 | T82: 2.16 | U82: 1.728
B83: 71. | C83: West | D83: 33 | E83: =SUM('0:3'!E83) -> 0 | F83: 33 | G83: 17 | H83: =SUM('0:3'!I94) -> 32 | I83: ks. | K83: 3.2 | L83: 0 | M83: 102.4 | Q83: 2.94 | R83: 3.2 | S83: 102.4 | T83: 8.32 | U83: 6.656
B84: 72. | E84: =SUM('0:3'!E84) -> 100 | F84: 100 | H84: =SUM('0:3'!I95) -> 0 | L84: 0 | M84: 0 | R84: 0 | S84: 0 | T84: 0 | U84: 0
B85: 73. | C85: Malboro 4,00€ | E85: =SUM('0:3'!E85) -> 950 | F85: 950 | H85: =SUM('0:3'!I96) -> 0 | I85: ks. | K85: 4 | L85: 3705 | M85: 0 | Q85: 3.9 | R85: 4 | S85: 0 | T85: 0 | U85: 0
B86: 74. | E86: =SUM('0:3'!E86) -> 0 | F86: 0 | H86: =SUM('0:3'!I97) -> 0 | L86: 0 | M86: 0 | R86: 0 | S86: 0 | T86: 0 | U86: 0
B87: 75. | E87: =SUM('0:3'!E87) -> 0 | F87: 0 | H87: =SUM('0:3'!I98) -> 0 | L87: 0 | M87: 0 | R87: 0 | S87: 0 | T87: 0 | U87: 0
B88: 76. | E88: =SUM('0:3'!E88) -> 0 | F88: 0 | H88: =SUM('0:3'!I99) -> 0 | L88: 0 | M88: 0 | R88: 0 | S88: 0 | T88: 0 | U88: 0
B89: 77. | C89: Hyg. vreckovky | D89: 31 | E89: =SUM('0:3'!E89) -> 60 | F89: 91 | G89: 27 | H89: =SUM('0:3'!I100) -> 8 | I89: ks. | K89: 0.2 | L89: 5.34 | M89: 1.6 | Q89: 0.089 | R89: 0.2 | S89: 1.6 | T89: 0.888 | U89: 0.7104
B90: 78. | C90: Zapaľovač | D90: 61 | E90: =SUM('0:3'!E90) -> 20 | F90: 81 | G90: 59 | H90: =SUM('0:3'!I101) -> 8 | I90: ks. | K90: 0.5 | L90: 3.4 | M90: 4 | Q90: 0.17 | R90: 0.5 | S90: 4 | T90: 2.64 | U90: 2.112
B91: 79. | C91: Zápalky | D91: 83 | E91: =SUM('0:3'!E91) -> 20 | F91: 103 | G91: 81 | H91: =SUM('0:3'!I102) -> 3 | I91: ks. | K91: 0.1 | L91: 0.8 | M91: 0.3 | Q91: 0.04 | R91: 0.1 | S91: 0.3 | T91: 0.18 | U91: 0.144
B92: 80. | E92: =SUM('0:3'!E92) -> 60 | F92: 60 | H92: =SUM('0:3'!I103) -> 0 | L92: 0 | M92: 0 | R92: 0 | S92: 0 | T92: 0 | U92: 0
B93: 81. | E93: =SUM('0:3'!E93) -> 10 | F93: 10 | H93: =SUM('0:3'!I104) -> 0 | L93: 0 | M93: 0 | R93: 0 | S93: 0 | T93: 0 | U93: 0
B94: 82. | E94: =SUM('0:3'!E94) -> 59 | F94: 59 | H94: =SUM('0:3'!I105) -> 0 | L94: 0 | M94: 0 | R94: 0 | S94: 0 | T94: 0 | U94: 0
B95: 83. | C95: Kinderko | D95: 4 | E95: =SUM('0:3'!E95) -> 0 | F95: 4 | G95: 2 | H95: =SUM('0:3'!I117) -> 0 | I95: ks. | K95: 1.2 | L95: 0 | M95: 0 | Q95: 0.73 | R95: 1.2 | S95: 0 | T95: 0 | U95: 0
B96: 84. | C96: Horalka | D96: 32 | E96: =SUM('0:3'!E96) -> 0 | F96: 32 | G96: 26 | H96: =SUM('0:3'!I118) -> 14 | I96: ks. | K96: 0.6 | L96: 0 | M96: 8.4 | Q96: 0.26 | R96: 0.6 | S96: 8.4 | T96: 4.76 | U96: 3.808
B97: 85. | C97: Kávenky | D97: 14 | E97: =SUM('0:3'!E97) -> 0 | F97: 14 | G97: 13 | H97: =SUM('0:3'!I119) -> 2 | I97: ks. | K97: 0.6 | L97: 0 | M97: 1.2 | Q97: 0.25 | R97: 0.6 | S97: 1.2 | T97: 0.7 | U97: 0.56
B98: 86. | C98: Kinder čokoláda | D98: 4 | E98: =SUM('0:3'!E98) -> 0 | F98: 4 | G98: 4 | H98: =SUM('0:3'!I120) -> 4 | I98: ks. | K98: 1.5 | L98: 0 | M98: 6 | Q98: 0.9 | R98: 1.5 | S98: 6 | T98: 2.4 | U98: 1.92
B99: 87. | C99: 3-BIT | D99: 4 | E99: =SUM('0:3'!E99) -> 0 | F99: 4 | G99: 4 | H99: =SUM('0:3'!I121) -> 1 | I99: ks. | K99: 0.6 | L99: 0 | M99: 0.6 | Q99: 0.32 | R99: 0.6 | S99: 0.6 | T99: 0.28 | U99: 0.224
B100: 88. | C100: Banán | D100: 9 | E100: =SUM('0:3'!E100) -> 0 | F100: 9 | G100: 9 | H100: =SUM('0:3'!I122) -> 8 | I100: ks. | K100: 0.6 | L100: 0 | M100: 4.8 | Q100: 0.26 | R100: 0.6 | S100: 4.8 | T100: 2.72 | U100: 2.176
B101: 89. | C101: Margot | D101: 3 | E101: =SUM('0:3'!E101) -> 0 | F101: 3 | G101: 42 | H101: =SUM('0:3'!I123) -> 5 | I101: ks. | K101: 0.6 | L101: 0 | M101: 3 | Q101: 0.4 | R101: 0.6 | S101: 3 | T101: 1 | U101: 0.8
B102: 90. | C102: Lízatko 2 | D102: 30 | E102: =SUM('0:3'!E102) -> 0 | F102: 30 | G102: 30 | H102: =SUM('0:3'!I124) -> 0 | I102: ks. | K102: 0.2 | L102: 0 | M102: 0 | Q102: 0.04 | R102: 0.2 | S102: 0 | T102: 0 | U102: 0
B103: 91. | C103: Mila | D103: 25 | E103: =SUM('0:3'!E103) -> 0 | F103: 25 | G103: 24 | H103: =SUM('0:3'!I125) -> 9 | I103: ks. | K103: 0.6 | L103: 0 | M103: 5.4 | Q103: 0.33 | R103: 0.6 | S103: =H103*K103 -> 5.4 | T103: 2.43 | U103: 1.944
B104: 92. | C104: Lízatko | D104: 20 | E104: =SUM('0:3'!E104) -> 0 | F104: 20 | G104: 115 | H104: =SUM('0:3'!I126) -> 10 | I104: ks. | K104: 0.3 | L104: 0 | M104: 3 | Q104: 0.1 | R104: 0.3 | S104: 3 | T104: 2 | U104: 1.6
B105: 93. | C105: Chipsy | D105: 38 | E105: =SUM('0:3'!E105) -> 0 | F105: 38 | G105: 24 | H105: =SUM('0:3'!I127) -> 20 | I105: ks. | K105: 1 | L105: 0 | M105: 20 | Q105: 0.42 | R105: 1 | S105: 20 | T105: 11.6 | U105: 9.28
B106: 94. | C106: Tofife | D106: 11 | E106: =SUM('0:3'!E128) -> 0 | F106: 11 | G106: 11 | H106: =SUM('0:3'!I128) -> 0 | I106: ks. | K106: 2.6 | L106: 0 | M106: 0 | Q106: 1.62 | R106: 2.6 | S106: 0 | T106: 0 | U106: 0
B107: 95. | C107: Milka čok. | D107: 3 | E107: =SUM('0:3'!E129) -> 5 | F107: 8 | G107: 3 | H107: =SUM('0:3'!I129) -> 2 | I107: ks. | K107: 1.5 | L107: 3.65 | M107: 3 | Q107: 0.73 | R107: 1.5 | S107: 3 | T107: 1.54 | U107: 1.232
B108: 96. | C108: Tyčinky DRU | D108: 10 | E108: =SUM('0:3'!E130) -> 0 | F108: 10 | G108: 7 | H108: =SUM('0:3'!I130) -> 2 | I108: ks. | K108: 0.5 | L108: 0 | M108: 1 | Q108: 0.23 | R108: 0.5 | S108: 1 | T108: 0.54 | U108: 0.432
B109: 97. | C109: Arašidy | D109: 4 | E109: =SUM('0:3'!E131) -> 0 | F109: =D109+E109 -> 4 | G109: 4 | H109: =SUM('0:3'!I131) -> 0 | I109: ks. | K109: 0.8 | L109: =E109*Q109 -> 0 | M109: =H109*K109 -> 0 | Q109: 0.33 | R109: =K109 -> 0.8 | S109: 0 | T109: =(R109-Q109)*H109 -> 0 | U109: =T109*0.8 -> 0
B110: 98. | C110: TIC-TAC | D110: 59 | E110: =SUM('0:3'!E132) -> 0 | F110: 59 | G110: 55 | H110: =SUM('0:3'!I132) -> 7 | I110: ks. | K110: 0.6 | L110: 0 | M110: 4.2 | Q110: 0.3 | R110: 0.6 | S110: 4.2 | T110: 2.1 | U110: 1.68
B111: 99. | C111: Žuvažky plátky | D111: 132 | E111: =SUM('0:3'!E133) -> 0 | F111: 132 | G111: 130 | H111: =SUM('0:3'!I133) -> 16 | I111: ks. | K111: 0.1 | L111: 0 | M111: 1.6 | Q111: 0.052 | R111: 0.1 | S111: 1.6 | T111: 0.768 | U111: 0.6144
B112: 100. | C112: Žuvažky dražé | D112: 35 | E112: =SUM('0:3'!E134) -> 60 | F112: 95 | G112: 31 | H112: =SUM('0:3'!I134) -> 14 | I112: ks. | K112: 0.6 | L112: 22.2 | M112: 8.4 | Q112: 0.37 | R112: 0.6 | S112: 8.4 | T112: 3.22 | U112: 2.576
B113: 101. | C113: Hašlerky | D113: 4 | E113: =SUM('0:3'!E135) -> 0 | F113: 4 | G113: 4 | H113: =SUM('0:3'!I135) -> 0 | I113: ks. | K113: 0.9 | L113: 0 | M113: 0 | Q113: 0.54 | R113: 0.9 | S113: 0 | T113: 0 | U113: 0
B114: 102. | C114: Žuvačky guličky | D114: 2 | E114: =SUM('0:3'!E136) -> 0 | F114: 2 | G114: 42 | H114: =SUM('0:3'!I136) -> 4 | I114: ks. | K114: 0.7 | L114: 0 | M114: 2.8 | Q114: 0.3 | R114: 0.7 | S114: 2.8 | T114: 1.6 | U114: 1.28
B115: 103. | C115: Chrumky | E115: =SUM('0:3'!E137) -> 0 | F115: 0 | H115: =SUM('0:3'!I137) -> 0 | I115: ks. | K115: 0.6 | L115: 0 | M115: 0 | Q115: 0.27 | R115: 0.6 | S115: 0 | T115: 0 | U115: 0
B116: 104. | E116: =SUM('0:3'!E138) -> 0 | F116: 0 | H116: =SUM('0:3'!I138) -> 0 | L116: 0 | M116: 0 | R116: 0 | S116: 0 | T116: 0 | U116: 0
B117: 105. | E117: =SUM('0:3'!E117) -> 0 | F117: 0 | H117: =SUM('0:3'!I139) -> 0 | L117: 0 | M117: 0 | R117: 0 | S117: 0 | T117: 0 | U117: 0
B118: 106. | E118: =SUM('0:3'!E118) -> 0 | F118: 0 | H118: =SUM('0:3'!I140) -> 0 | L118: 0 | M118: 0 | R118: 0 | S118: 0 | T118: 0 | U118: 0
B119: 107. | E119: =SUM('0:3'!E119) -> 0 | F119: 0 | H119: =SUM('0:3'!I141) -> 0 | L119: 0 | M119: 0 | R119: 0 | S119: 0 | T119: 0 | U119: 0
B120: 108. | E120: =SUM('0:3'!E120) -> 0 | F120: 0 | H120: =SUM('0:3'!I142) -> 0 | L120: 0 | M120: 0 | R120: 0 | S120: 0 | T120: 0 | U120: 0
E121: =SUM('0:3'!E121) -> 0
D122: =SUM(D95:D120) -> 443 | G122: =SUM(G95:G120) -> 580 | K122: Celkom: | L122: =SUM(L13:L120) -> 6343.884 | M122: =SUM(M13:M120) -> 2843.782857 | R122: Celkom: | S122: =SUM(S13:S120) -> 2843.782857 | T122: =SUM(T13:T120) -> 1272.170043 | U122: =SUM(U13:U120) -> 1017.736034
F123: =SUM(F119:F121) -> 0 | K123: =SUM(K119:K121) -> 0 | T123: =SUM(T119:T121) -> 0 | U123: =SUM(U119:U121) -> 0
K126: Zisk bez výdavkov: | L126: =M122-L122 -> -3500.101143
E140: =SUM('0:3'!E140) -> 0
E141: =SUM('0:3'!E141) -> 0
E142: =SUM('0:3'!E142) -> 0 | I142: =SUM('0:3'!I142) -> 0

Sheet Inventár
B1: Inventár | C1: Apríl | E1: 2019
B4: Názov tovaru | C4: Zostatok v sklade | D4: J.M. | E4: Suma tovaru
B6: Pernštejn čap. 10˚ | C6: 194.4 | D6: l. | E6: 200.6208
B7: Malinovka čap. | C7: 161.2 | D7: l. | E7: 79.4716
B8: Radler čap. | C8: 30 | D8: l. | E8: 45.6
E9: 0
B10: Šariš 10˚ fľaša | C10: 39 | D10: ks. | E10: 13.26
B11: Kozel 10˚ fľaša | C11: 16 | D11: ks. | E11: 7.52
B12: Birell nealko fľaša | C12: 65 | D12: ks. | E12: 41.6
B13: Gambrinus fľaša | C13: 39 | D13: ks. | E13: 21.84
B14: Plzeň 12˚ fľaša | C14: 35 | D14: ks. | E14: 24.29
D15: ks. | E15: 0
B16: Gambrinus plech. | C16: 11 | D16: ks. | E16: 5.39
D17: ks. | E17: 0
D18: ks. | E18: 0
E19: 0
B20: Práznde sudy | D20: ks. | E20: 0
B21: Práznde fľaše | D21: ks. | E21: 0
E22: 0
E23: 0
B24: Víno biele | C24: 32.2 | D24: l. | E24: 41.538
B25: Víno červené | C25: 14.9 | D25: l. | E25: 19.221
E26: 0
B27: Vodka | C27: 40.1 | D27: l. | E27: 254.635
B28: Borovička | C28: 73.85 | D28: l. | E28: 468.9475
B29: Koniferka | C29: 12.65 | D29: l. | E29: 73.7495
B30: RUM | C30: 12.5 | D30: l. | E30: 72.25
B31: Hruška | C31: 6.9 | D31: l. | E31: 48.99
B32: Spišská borovička | C32: 3.15 | D32: l. | E32: 27.2475
B33: Trenčianské hradné | C33: 20.45 | D33: l. | E33: 126.1765
B34: Karpatská horká | C34: 18.35 | D34: l. | E34: 90.282
B35: Vodka Peach | C35: 6.6 | D35: l. | E35: 29.106
B36: Becherovka | C36: 5.45 | D36: l. | E36: 58.1515
B37: Fernet | C37: 6 | D37: l. | E37: 58.14
B38: Slivka | C38: 2.85 | D38: l. | E38: 20.5485
B39: Bošácka slivovica | C39: 4.75 | D39: l. | E39: 80.3225
B40: Karpatská KB | D40: l. | E40: 0
B41: Fernet Citrus | D41: l. | E41: 0
B42: Pepermint | C42: 4.6 | D42: l. | E42: 23.368
B43: Nicolaus vodka | C43: 2.85 | D43: l. | E43: 24.5385
B44: Captain Morgan | C44: 0.8 | D44: l. | E44: 9.16
E45: 0
E46: 0
B47: PEPSI + 7UP 0,5l | D47: ks. | E47: 0
B48: Sprite +Tonic | C48: 3.7 | D48: ks. | E48: 2.6862
B49: Minerálka 0,5l | C49: 31 | D49: ks. | E49: 16.368
B50: Kofola 0,5l | C50: 22 | D50: ks. | E50: 10.78
B51: Džús krabička | C51: 61 | D51: ks. | E51: 10.37
B52: Energetický nápoj | C52: 12 | D52: ks. | E52: 3
B53: Limo 0,33l fľaša | C53: 38 | D53: ks. | E53: 3.8
B54: Minerálka 2l | C54: 30.6 | D54: l. | E54: 7.038
B55: Relax džús fľaška | C55: 59 | D55: ks. | E55: 32.45
B56: Ďžús nalievaný | C56: 9.3 | D56: ks. | E56: 11.0484
B57: Toma | C57: 34 | D57: l. | E57: 11.22
B58: HELLO Jupík | C58: 26 | D58: ks. | E58: 8.58
B59: COCA COLA | C59: 16 | D59: ks. | E59: 9.984
B60: Vinea | C60: 28 | D60: ks. | E60: 14.112
B61: ALOE VERA | C61: 2 | D61: ks. | E61: 1.28
E62: 0
B63: Káva turecká | C63: 900 | D63: gr. | E63: 30.6
B64: Nescafé 3v1 | C64: 60 | D64: ks. | E64: 8.4
B65: Čaj | C65: 135 | D65: ks. | E65: 4.86
B66: Mlieko do kávy | C66: 76 | D66: ks. | E66: 0.608
B67: Cukor HB | C67: 1181 | D67: ks. | E67: 0
E68: 0
E69: 0
D70: ks. | E70: 0
B71: Golden | C71: 24 | D71: ks. | E71: 77.28
B72: Petra 3,40€ | C72: 19 | D72: ks. | E72: 61.37
B73: Malboro 3,70€ | C73: 19 | D73: ks. | E73: 66.69
B74: LM 3,40€ | C74: 97 | D74: ks. | E74: 313.31
B75: Mars | C75: 10 | D75: ks. | E75: 32.2
B76: West | C76: 34 | D76: ks. | E76: 103.36
D77: ks. | E77: 0
B78: Malboro 4,00€ | D78: ks. | E78: 0
D79: ks. | E79: 0
E80: 0
E81: 0
B82: Hyg. vreckovky | C82: 46 | D82: ks. | E82: 4.094
B83: Zapaľovač | C83: 72 | D83: ks. | E83: 12.24
B84: Zápalky | C84: 42 | D84: ks. | E84: 1.68
E85: 0
E86: 0
E87: 0
B88: Kinderko | C88: 16 | D88: ks. | E88: 14.88
B89: Horalka | C89: 36 | D89: ks. | E89: 11.16
B90: Kávenky | C90: 19 | D90: ks. | E90: 5.32
B91: Kinder čokoláda | C91: 9 | D91: ks. | E91: 8.1
B92: 3-BIT | C92: 10 | D92: ks. | E92: 3.2
B93: Banán | C93: 15 | D93: ks. | E93: 4.95
B94: Margot | C94: 10 | D94: ks. | E94: 4
B95: Lízatko 2 | C95: 9 | D95: ks. | E95: 0.36
B96: Mila | C96: 24 | D96: ks. | E96: 8.4
B97: Lízatko | C97: 81 | D97: ks. | E97: 8.1
B98: Chipsy | C98: 32 | D98: ks. | E98: 13.44
B99: Tofife | C99: 9 | D99: ks. | E99: 14.58
B100: Milka čok. | C100: 9 | D100: ks. | E100: 6.57
B101: Tyčinky DRU | C101: 13 | D101: ks. | E101: 2.99
B102: Arašidy | C102: 2 | D102: ks. | E102: 0.66
B103: TIC-TAC | C103: 25 | D103: ks. | E103: 7.5
B104: Žuvažky plátky | C104: 155 | D104: ks. | E104: 8.06
B105: Žuvažky dražé | C105: 40 | D105: ks. | E105: 14.8
B106: Hašlerky | C106: 2 | D106: ks. | E106: 1.08
B107: Žuvačky guličky | C107: 33 | D107: ks. | E107: 9.9
B108: Chrumky | D108: ks. | E108: 0
D109: ks. | E109: 0
E110: 0
E111: 0
E112: 0
E113: 0
E114: 0
D153: Celkom: | E153: =SUBTOTAL(9,E6:E150) -> 2973.423

Sheet Sklad
B1: Evidencia skladu 2019 | D1: Meno: | G1: Dátum: | J1: /2019
B3: Názov tovaru | C3: Sklad | D3: Predajňa | E3: Spolu | G3: Názov tovaru | H3: Sklad | I3: Predajňa | J3: Spolu
B4: =Originál!C13 -> Pernštejn čap. 10˚ | G4: =Originál!C81 -> Káva turecká
B5: =Originál!C14 -> Malinovka čap. | G5: =Originál!C82 -> Nescafé 3v1
B6: =Originál!C15 -> Radler čap. | G6: =Originál!C83 -> Čaj
G7: =Originál!C84 -> Mlieko do kávy
B8: =Originál!C17 -> Šariš 10˚ fľaša | G8: =Originál!C85 -> Cukor HB
B9: =Originál!C18 -> Kozel 10˚ fľaša
B10: =Originál!C19 -> Birell nealko fľaša | G10: =Originál!C89 -> Golden
B11: =Originál!C20 -> Gambrinus fľaša | G11: =Originál!C90 -> Petra 3,40€
B12: =Originál!C21 -> Plzeň 12˚ fľaša | G12: =Originál!C91 -> Malboro 3,70€
B13: =Originál!C23 -> Gambrinus plech. | G13: =Originál!C92 -> LM 3,40€
G14: =Originál!C93 -> Mars
B15: =Originál!C27 -> Práznde sudy | G15: =Originál!C94 -> West
B16: =Originál!C28 -> Práznde fľaše | G16: =Originál!C96 -> Malboro 4,00€
B18: =Originál!C31 -> Víno biele
B19: =Originál!C32 -> Víno červené | G19: =Originál!C100 -> Hyg. vreckovky
G20: =Originál!C101 -> Zapaľovač
B21: =Originál!C34 -> Vodka | G21: =Originál!C102 -> Zápalky
B22: =Originál!C35 -> Borovička
B23: =Originál!C36 -> Koniferka | G23: =Originál!C117 -> Kinderko
B24: =Originál!C37 -> RUM | G24: =Originál!C118 -> Horalka
B25: =Originál!C38 -> Hruška | G25: =Originál!C119 -> Kávenky
B26: =Originál!C39 -> Spišská borovička | G26: =Originál!C120 -> Kinder čokoláda
B27: =Originál!C40 -> Trenčianské hradné | G27: =Originál!C121 -> 3-BIT
B28: =Originál!C41 -> Karpatská horká | G28: =Originál!C122 -> Banán
B29: =Originál!C42 -> Vodka Peach | G29: =Originál!C123 -> Margot
B30: =Originál!C43 -> Becherovka | G30: =Originál!C124 -> Lízatko 2
B31: =Originál!C44 -> Fernet | G31: =Originál!C125 -> Mila
B32: =Originál!C45 -> Slivka | G32: =Originál!C126 -> Lízatko
B33: =Originál!C46 -> Bošácka slivovica | G33: =Originál!C127 -> Chipsy
B34: =Originál!C47 -> Karpatská KB | G34: =Originál!C128 -> Tofife
B35: =Originál!C48 -> Fernet Citrus | G35: =Originál!C129 -> Milka čok.
B36: =Originál!C49 -> Pepermint | G36: =Originál!C130 -> Tyčinky DRU
B37: =Originál!C50 -> Nicolaus vodka | G37: =Originál!C131 -> Arašidy
B38: =Originál!C51 -> Captain Morgan | G38: =Originál!C132 -> TIC-TAC
G39: =Originál!C133 -> Žuvažky plátky
B40: =Originál!C65 -> PEPSI + 7UP 0,5l | G40: =Originál!C134 -> Žuvažky dražé
B41: =Originál!C66 -> Sprite +Tonic | G41: =Originál!C135 -> Hašlerky
B42: =Originál!C67 -> Minerálka 0,5l | G42: =Originál!C136 -> Žuvačky guličky
B43: =Originál!C68 -> Kofola 0,5l | G43: =Originál!C137 -> Chrumky
B44: =Originál!C69 -> Džús krabička
B45: =Originál!C70 -> Energetický nápoj
B46: =Originál!C71 -> Limo 0,33l fľaša
B47: =Originál!C72 -> Minerálka 2l
B48: =Originál!C73 -> Relax džús fľaška
B49: =Originál!C74 -> Ďžús nalievaný
B50: =Originál!C75 -> Toma
B51: =Originál!C76 -> HELLO Jupík
B52: =Originál!C77 -> COCA COLA
B53: =Originál!C78 -> Vinea
B54: =Originál!C79 -> ALOE VERA
B56: Výdavky: | D56: Stávková: | H56: Hotovosť:

Sheet 0
D1: Vyučtovanie výčapu | G1: august | J1: /2019 | O1: Denný sumár
N2: Juniorka | O2: Meno: | P2: =I2 -> 0
N3: Šipulová | O3: Dátum: | P3: =I3 -> 0 | Q3: /2019
N4: Hermanová
G5: Meno:
G7: Dátum: | J7: /2019
C10: Strana 1: | O10: Strana 1:
B11: P.Č. | C11: Názov tovaru | D11: Poč. stav | E11: Denný príjem | F11: Spolu | G11: Zostatok v sklade | I11: Denný predaj | J11: Cena € | K11: Suma celkom € | L11: J.M. | O11: Nákupná cena | P11: Predajná cena | Q11: Tržba | R11: Zisk | S11: Zisk po zdanení | U11: Zostatok v krčme | V11: Suma tovaru
B13: 1. | C13: Pernštejn čap. 10˚ | D13: 332.3 | F13: =D13+E13 -> 332.3 | G13: 289.8 | I13: =D13+E13-G13 -> 42.5 | J13: 2 | K13: =I13*J13 -> 85 | L13: l. | O13: 1.032 | P13: =J13 -> 2 | Q13: =I13*J13 -> 85 | R13: =(P13-O13)*I13 -> 41.14 | S13: =R13*0.8 -> 32.912 | U13: =G13 -> 289.8 | V13: =U13*O13 -> 299.0736
B14: 2. | C14: Malinovka čap. | D14: 146.6 | F14: 146.6 | G14: 116.3 | I14: 30.3 | J14: 2 | K14: =I14*J14 -> 60.6 | L14: l. | O14: 0.493 | P14: =J14 -> 2 | Q14: =I14*J14 -> 60.6 | R14: =(P14-O14)*I14 -> 45.6621 | S14: =R14*0.8 -> 36.52968 | U14: =G14 -> 116.3 | V14: =U14*O14 -> 57.3359
B15: 3. | C15: Radler čap. | D15: 22.9 | F15: 22.9 | G15: 17.1 | I15: 5.8 | J15: 2.6 | K15: 15.08 | L15: l. | O15: 1.52 | P15: 2.6 | Q15: 15.08 | R15: =(P15-O15)*I15 -> 6.264 | S15: 5.0112 | U15: 17.1 | V15: 25.992
B16: 4. | F16: 0 | I16: 0 | K16: 0 | P16: 0 | Q16: 0 | R16: 0 | S16: 0 | U16: 0 | V16: 0
B17: 5. | C17: Šariš 10˚ fľaša | D17: 25 | F17: 25 | G17: 20 | I17: 5 | J17: 0.8 | K17: 4 | L17: ks. | O17: 0.34 | P17: 0.8 | Q17: 4 | R17: 2.3 | S17: 1.84 | U17: 20 | V17: 6.8
B18: 6. | C18: Kozel 10˚ fľaša | D18: 23 | F18: 23 | G18: 21 | I18: 2 | J18: 0.9 | K18: 1.8 | L18: ks. | O18: 0.47 | P18: 0.9 | Q18: 1.8 | R18: 0.86 | S18: 0.688 | U18: 21 | V18: 9.87
B19: 7. | C19: Birell nealko fľaša | D19: 61 | E19: -20 | F19: 41 | G19: 39 | I19: 2 | J19: 1.2 | K19: 2.4 | L19: ks. | O19: 0.64 | P19: 1.2 | Q19: 2.4 | R19: 1.12 | S19: 0.896 | U19: 39 | V19: 24.96
B20: 8. | C20: Gambrinus fľaša | D20: 50 | F20: 50 | G20: 43 | I20: 7 | J20: 0.9 | K20: 6.3 | L20: ks. | O20: 0.56 | P20: 0.9 | Q20: 6.3 | R20: 2.38 | S20: 1.904 | U20: 43 | V20: 24.08
B21: 9. | C21: Plzeň 12˚ fľaša | D21: 50 | F21: 50 | G21: 46 | I21: 4 | J21: 1.3 | K21: 5.2 | L21: ks. | O21: 0.694 | P21: 1.3 | Q21: 5.2 | R21: 2.424 | S21: 1.9392 | U21: 46 | V21: 31.924
B22: 10. | F22: 0 | I22: 0 | K22: 0 | L22: ks. | P22: 0 | Q22: 0 | R22: 0 | S22: 0 | U22: 0 | V22: 0
B23: 11. | C23: Gambrinus plech. | D23: 39 | F23: 39 | G23: 36 | I23: 3 | J23: 0.9 | K23: 2.7 | L23: ks. | O23: 0.49 | P23: 0.9 | Q23: 2.7 | R23: 1.23 | S23: 0.984 | U23: 36 | V23: 17.64
B24: 12. | F24: 0 | I24: 0 | K24: 0 | L24: ks. | O24: 0.42 | P24: 0 | Q24: 0 | R24: 0 | S24: 0 | U24: 0 | V24: 0
B25: 13. | F25: 0 | I25: 0 | K25: 0 | L25: ks. | O25: 0.75 | P25: 0 | Q25: 0 | R25: 0 | S25: 0 | U25: 0 | V25: 0
B26: 14. | F26: 0 | I26: 0 | K26: 0 | P26: 0 | Q26: 0 | R26: 0 | S26: 0 | U26: 0 | V26: 0
B27: 15. | C27: Práznde sudy | F27: 0 | I27: 0 | K27: 0 | L27: ks. | P27: 0 | Q27: 0 | R27: 0 | S27: 0 | U27: 0 | V27: 0
B28: 16. | C28: Práznde fľaše | F28: 0 | I28: 0 | K28: 0 | L28: ks. | P28: 0 | Q28: 0 | R28: 0 | S28: 0 | U28: 0 | V28: 0
B29: 17. | F29: 0 | I29: 0 | K29: 0 | P29: 0 | Q29: 0 | R29: 0 | S29: 0 | U29: 0 | V29: 0
B30: 18. | F30: 0 | I30: 0 | K30: 0 | P30: 0 | Q30: 0 | R30: 0 | S30: 0 | U30: 0 | V30: 0
B31: 19. | C31: Víno biele | D31: 29.8 | F31: 29.8 | G31: 25 | I31: 4.8 | J31: 3 | K31: 14.4 | L31: l. | O31: 1.29 | P31: 3 | Q31: 14.4 | R31: 8.208 | S31: 6.5664 | U31: 25 | V31: 32.25
B32: 20. | C32: Víno červené | D32: 17.2 | F32: 17.2 | G32: 15 | I32: 2.2 | J32: 3 | K32: 6.6 | L32: l. | O32: 1.29 | P32: 3 | Q32: 6.6 | R32: 3.762 | S32: 3.0096 | U32: 15 | V32: 19.35
B33: 21. | F33: 0 | I33: 0 | K33: 0 | P33: 0 | Q33: 0 | R33: 0 | S33: 0 | U33: 0 | V33: 0
B34: 22. | C34: Vodka | D34: 40.1 | F34: 40.1 | G34: 36.65 | I34: 3.45 | J34: 12 | K34: 41.4 | L34: l. | O34: 6.54 | P34: 12 | Q34: 41.4 | R34: 18.837 | S34: 15.0696 | U34: 36.65 | V34: 239.691
B35: 23. | C35: Borovička | D35: 43.2 | F35: 43.2 | G35: 41.3 | I35: 1.9 | J35: 12 | K35: 22.8 | L35: l. | O35: 6.56 | P35: 12 | Q35: 22.8 | R35: 10.336 | S35: 8.2688 | U35: 41.3 | V35: 270.928
B36: 24. | C36: Koniferka | D36: 6.2 | F36: 6.2 | G36: 4.95 | I36: 1.25 | J36: 14 | K36: 17.5 | L36: l. | O36: 5.95 | P36: 14 | Q36: 17.5 | R36: 10.0625 | S36: 8.05 | U36: 4.95 | V36: 29.4525
B37: 25. | C37: RUM | D37: 10.45 | F37: 10.45 | G37: 9.6 | I37: 0.85 | J37: 12 | K37: 10.2 | L37: l. | O37: 5.78 | P37: 12 | Q37: 10.2 | R37: 5.287 | S37: 4.2296 | U37: 9.6 | V37: 55.488
B38: 26. | C38: Hruška | D38: 4.3 | F38: 4.3 | G38: 3.8 | I38: 0.5 | J38: 14 | K38: 7 | L38: l. | O38: 7.2 | P38: 14 | Q38: 7 | R38: 3.4 | S38: 2.72 | U38: 3.8 | V38: 27.36
B39: 27. | C39: Spišská borovička | D39: 4.5 | F39: 4.5 | G39: 4.4 | I39: 0.1 | J39: 14 | K39: 1.4 | L39: l. | O39: 8.55 | P39: 14 | Q39: 1.4 | R39: 0.545 | S39: 0.436 | U39: 4.4 | V39: 37.62
B40: 28. | C40: Trenčianské hradné | D40: 7.8 | F40: 7.8 | G40: 6.8 | I40: 1 | J40: 12 | K40: 12 | L40: l. | O40: 6.636 | P40: 12 | Q40: 12 | R40: 5.364 | S40: 4.2912 | U40: 6.8 | V40: 45.1248
B41: 29. | C41: Karpatská horká | D41: 14.15 | F41: 14.15 | G41: 13.1 | I41: 1.05 | J41: 12 | K41: 12.6 | L41: l. | O41: 5.32 | P41: 12 | Q41: 12.6 | R41: 7.014 | S41: 5.6112 | U41: 13.1 | V41: 69.692
B42: 30. | C42: Vodka Peach | D42: 4.75 | F42: 4.75 | G42: 4.55 | I42: 0.2 | J42: 14 | K42: 2.8 | L42: l. | O42: 4.41 | P42: 14 | Q42: 2.8 | R42: 1.918 | S42: 1.5344 | U42: 4.55 | V42: 20.0655
B43: 31. | C43: Becherovka | D43: 4.6 | F43: 4.6 | G43: 4.5 | I43: 0.1 | J43: 20 | K43: 2 | L43: l. | O43: 10.67 | P43: 20 | Q43: 2 | R43: 0.933 | S43: 0.7464 | U43: 4.5 | V43: 48.015
B44: 32. | C44: Fernet | D44: 1.8 | F44: 1.8 | G44: 0.95 | I44: 0.85 | J44: 20 | K44: 17 | L44: l. | O44: 9.69 | P44: 20 | Q44: 17 | R44: 8.7635 | S44: 7.0108 | U44: 0.95 | V44: 9.2055
B45: 33. | C45: Slivka | D45: 5.2 | F45: 5.2 | G45: 5.2 | I45: 0 | J45: 14 | K45: 0 | L45: l. | O45: 7.21 | P45: 14 | Q45: 0 | R45: 0 | S45: 0 | U45: 5.2 | V45: 37.492
B46: 34. | C46: Bošácka slivovica | D46: 1.15 | F46: 1.15 | G46: 0.9 | I46: 0.25 | J46: 24 | K46: 6 | L46: l. | O46: 17.61 | P46: 24 | Q46: 6 | R46: 1.5975 | S46: 1.278 | U46: 0.9 | V46: 15.849
B47: 35. | C47: Karpatská KB | F47: 0 | I47: 0 | J47: 20 | K47: 0 | L47: l. | O47: 5.998 | P47: 20 | Q47: 0 | R47: 0 | S47: 0 | U47: 0 | V47: 0
B48: 36. | C48: Fernet Citrus | F48: 0 | I48: 0 | J48: 20 | K48: 0 | L48: l. | O48: 9.69 | P48: 20 | Q48: 0 | R48: 0 | S48: 0 | U48: 0 | V48: 0
B49: 37. | C49: Pepermint | D49: 3.55 | F49: 3.55 | G49: 3.4 | I49: 0.15 | J49: 12 | K49: 1.8 | L49: l. | O49: 5.2 | P49: 12 | Q49: 1.8 | R49: 1.02 | S49: 0.816 | U49: 3.4 | V49: 17.68
B50: 38. | C50: Nicolaus vodka | D50: 0.8 | F50: 0.8 | G50: 0.8 | I50: 0 | J50: 18 | K50: 0 | L50: l. | O50: 8.62 | P50: 18 | Q50: 0 | R50: 0 | S50: 0 | U50: 0.8 | V50: 6.896
B51: 39. | C51: Captain Morgan | D51: 2.75 | F51: 2.75 | G51: 2.65 | I51: 0.1 | J51: 24 | K51: 2.4 | L51: l. | O51: 11.74 | P51: 24 | Q51: 2.4 | R51: 1.226 | S51: 0.9808 | U51: 2.65 | V51: 31.111
B52: 40. | F52: 0 | I52: 0 | K52: 0 | P52: 0 | Q52: 0 | R52: 0 | S52: 0 | U52: 0 | V52: 0
B53: 41. | F53: 0 | I53: 0 | K53: 0 | P53: 0 | Q53: 0 | R53: 0 | S53: 0 | U53: 0 | V53: 0
P54: 0
D55: =SUM(D13:D53) -> 952.1 | G55: =SUM(G13:G53) -> 811.75 | J55: Celkom: | K55: =SUM(K13:K53) -> 360.98 | P55: Celkom: | Q55: =SUM(Q13:Q53) -> 360.98 | R55: =SUM(R13:R53) -> 191.6536 | S55: =SUM(S13:S53) -> 153.32288 | U55: Za tovar: | V55: =SUM(V13:V53) -> 1510.9458
C62: Strana 2: | O62: Strana 2:
B63: P.Č. | C63: Názov tovaru | D63: Poč. stav | E63: Denný príjem | F63: Spolu | G63: Zostatok v sklade | I63: Denný predaj | J63: Cena € | K63: Suma celkom € | O63: Nákupná cena | P63: Predajná cena | Q63: Tržba | R63: Zisk | S63: Zisk po zdanení | U63: Zostatok v krčme | V63: Suma tovaru
B65: 42. | C65: PEPSI + 7UP 0,5l | F65: =D65+E65 -> 0 | I65: =D65+E65-G65 -> 0 | J65: 1.1 | K65: =I65*J65 -> 0 | L65: ks. | O65: 0.78 | P65: =J65 -> 1.1 | Q65: =I65*J65 -> 0 | R65: =(P65-O65)*I65 -> 0 | S65: =R65*0.8 -> 0 | U65: =G65 -> 0 | V65: =U65*O65 -> 0
B66: 43. | C66: Sprite +Tonic | D66: 22.5 | F66: =D66+E66 -> 22.5 | G66: 20.2 | I66: =D66+E66-G66 -> 2.3 | J66: 2 | K66: =I66*J66 -> 4.6 | L66: ks. | O66: 0.726 | P66: =J66 -> 2 | Q66: =I66*J66 -> 4.6 | R66: =(P66-O66)*I66 -> 2.9302 | S66: =R66*0.8 -> 2.34416 | U66: =G66 -> 20.2 | V66: =U66*O66 -> 14.6652
B67: 44. | C67: Minerálka 0,5l | D67: 44 | E67: 36 | F67: 80 | G67: 73 | I67: 7 | J67: 0.9 | K67: 6.3 | L67: ks. | O67: 0.528 | P67: 0.9 | Q67: 6.3 | R67: =(P67-O67)*I67 -> 2.604 | S67: 2.0832 | U67: 73 | V67: 38.544
B68: 45. | C68: Kofola 0,5l | D68: 18 | F68: 18 | G68: 14 | I68: 4 | J68: 1.1 | K68: 4.4 | L68: ks. | O68: 0.49 | P68: 1.1 | Q68: 4.4 | R68: 2.44 | S68: 1.952 | U68: 14 | V68: 6.86
B69: 46. | C69: Džús krabička | D69: 67 | F69: 67 | G69: 65 | I69: 2 | J69: 0.5 | K69: 1 | L69: ks. | O69: 0.17 | P69: 0.5 | Q69: 1 | R69: 0.66 | S69: 0.528 | U69: 65 | V69: 11.05
B70: 47. | C70: Energetický nápoj | D70: 6 | F70: 6 | G70: 6 | I70: 0 | J70: 1.8 | K70: 0 | L70: ks. | O70: 0.25 | P70: 1.8 | Q70: 0 | R70: 0 | S70: 0 | U70: 6 | V70: 1.5
B71: 48. | C71: Limo 0,33l fľaša | D71: 68 | F71: 68 | G71: 64 | I71: 4 | J71: 0.5 | K71: 2 | L71: ks. | O71: 0.1 | P71: 0.5 | Q71: 2 | R71: 1.6 | S71: 1.28 | U71: 64 | V71: 6.4
B72: 49. | C72: Minerálka 2l | D72: 56.6 | F72: 56.6 | G72: 56 | I72: 0.6 | J72: 1.5 | K72: 0.9 | L72: l. | O72: 0.23 | P72: 1.5 | Q72: 0.9 | R72: 0.762 | S72: 0.6096 | U72: 56 | V72: 12.88
B73: 50. | C73: Relax džús fľaška | D73: 23 | F73: 23 | G73: 21 | I73: 2 | J73: 1 | K73: 2 | L73: ks. | O73: 0.55 | P73: 1 | Q73: 2 | R73: 0.9 | S73: 0.72 | U73: 21 | V73: 11.55
B74: 51. | C74: Ďžús nalievaný | D74: 17.6 | F74: 17.6 | G74: 17.6 | I74: 0 | J74: 3 | K74: 0 | L74: l. | O74: 1.188 | P74: 3 | Q74: 0 | R74: 0 | S74: 0 | U74: 17.6 | V74: 20.9088
B75: 52. | C75: Toma | D75: 24 | F75: 24 | G75: 23 | I75: 1 | J75: 1.1 | K75: 1.1 | L75: l. | O75: 0.33 | P75: 1.1 | Q75: 1.1 | R75: 0.77 | S75: 0.616 | U75: 23 | V75: 7.59
B76: 53. | C76: HELLO Jupík | D76: 30 | E76: 6 | F76: 36 | G76: 36 | I76: 0 | J76: 0.8 | K76: 0 | L76: ks. | O76: 0.33 | P76: 0.8 | Q76: 0 | R76: 0 | S76: 0 | U76: 36 | V76: 11.88
B77: 54. | C77: COCA COLA | D77: 27 | F77: 27 | G77: 27 | I77: 0 | J77: 1.1 | K77: 0 | L77: ks. | O77: 0.624 | P77: 1.1 | Q77: 0 | R77: 0 | S77: 0 | U77: 27 | V77: 16.848
B78: 55. | C78: Vinea | D78: 24 | F78: 24 | G78: 22 | I78: 2 | J78: 1.1 | K78: 2.2 | L78: ks. | O78: 0.504 | P78: 1.1 | Q78: 2.2 | R78: 1.192 | S78: 0.9536 | U78: 22 | V78: 11.088
B79: 56. | C79: ALOE VERA | F79: 0 | I79: 0 | J79: 1.2 | K79: 0 | L79: ks. | O79: 0.65 | P79: 1.2 | Q79: 0 | R79: 0 | S79: 0 | U79: 0 | V79: 0
B80: 57. | F80: 0 | I80: 0 | K80: 0 | P80: 0 | Q80: 0 | R80: 0 | S80: 0 | U80: 0 | V80: 0
B81: 58. | C81: Káva turecká | D81: 580 | E81: 500 | F81: 1080 | G81: 1010 | I81: =(D81+E81-G81)/7 -> 10 | J81: 0.5 | K81: 5 | L81: gr. | O81: 0.034 | P81: 0.5 | Q81: =K81 -> 5 | R81: 4.66 | S81: 3.728 | U81: 1010 | V81: 34.34
B82: 59. | C82: Nescafé 3v1 | D82: 56 | F82: 56 | G82: 55 | I82: 1 | J82: 0.5 | K82: 0.5 | L82: ks. | O82: 0.14 | P82: 0.5 | Q82: 0.5 | R82: 0.36 | S82: 0.288 | U82: 55 | V82: 7.7
B83: 60. | C83: Čaj | D83: 106 | F83: 106 | G83: 104 | I83: 2 | J83: 0.5 | K83: =I83*J83 -> 1 | L83: ks. | O83: 0.058 | P83: 0.5 | Q83: =I83*J83 -> 1 | R83: 0.884 | S83: 0.7072 | U83: 104 | V83: =U83*O84 -> 3.744
B84: 61. | C84: Mlieko do kávy | D84: 41 | F84: 41 | G84: 37 | I84: 4 | J84: 0.1 | K84: =I84*J84 -> 0.4 | L84: ks. | O84: 0.036 | P84: 0.1 | Q84: =I84*J84 -> 0.4 | R84: 0.256 | S84: 0.2048 | U84: 37 | V84: =U84*O85 -> 0.296
B85: 62. | C85: Cukor HB | D85: 232 | F85: 232 | G85: 202 | I85: 30 | J85: 0.05 | K85: =I85*J85 -> 1.5 | L85: ks. | O85: 0.008 | P85: 0.05 | Q85: =I85*J85 -> 1.5 | R85: 1.26 | S85: 1.008 | U85: 202 | V85: =U85*O86 -> 0
B86: 63. | F86: 0 | I86: 0 | K86: =I86*J86 -> 0 | P86: 0 | Q86: =I86*J86 -> 0 | R86: 0 | S86: 0 | U86: 0 | V86: =U86*O87 -> 0
B87: 64. | F87: 0 | I87: 0 | K87: 0 | P87: 0 | Q87: 0 | R87: 0 | S87: 0 | U87: 0 | V87: 0
B88: 65. | F88: 0 | I88: 0 | K88: 0 | P88: 0 | Q88: 0 | R88: 0 | S88: 0 | U88: 0 | V88: 0
B89: 66. | C89: Golden | D89: 12 | E89: 30 | F89: 42 | G89: 32 | I89: 10 | J89: 3.4 | K89: 34 | L89: ks. | O89: 3.22 | P89: 3.4 | Q89: 34 | R89: 1.8 | S89: 1.44 | U89: 32 | V89: 103.04
B90: 67. | C90: Petra 3,40€ | D90: 12 | F90: 12 | G90: 10 | I90: 2 | J90: 3.4 | K90: 6.8 | L90: ks. | O90: 3.23 | P90: 3.4 | Q90: 6.8 | R90: 0.34 | S90: 0.272 | U90: 10 | V90: 32.3
B91: 68. | C91: Malboro 3,70€ | D91: 15 | E91: 10 | F91: 25 | G91: 18 | I91: 7 | J91: 3.7 | K91: 25.9 | L91: ks. | O91: 3.51 | P91: 3.7 | Q91: 25.9 | R91: 1.33 | S91: 1.064 | U91: 18 | V91: 63.18
B92: 69. | C92: LM 3,40€ | D92: 51 | F92: 51 | G92: 40 | I92: 11 | J92: 3.4 | K92: 37.4 | L92: ks. | O92: 3.23 | P92: 3.4 | Q92: 37.4 | R92: 1.87 | S92: 1.496 | U92: 40 | V92: 129.2
B93: 70. | C93: Mars | D93: 6 | F93: 6 | G93: 5 | I93: 1 | J93: 3.4 | K93: 3.4 | L93: ks. | O93: 3.22 | P93: 3.4 | Q93: 3.4 | R93: 0.18 | S93: 0.144 | U93: 5 | V93: 16.1
B94: 71. | C94: West | D94: 17 | E94: 39 | F94: 56 | G94: 45 | I94: 11 | J94: 3.2 | K94: 35.2 | L94: ks. | O94: 3.04 | P94: 3.2 | Q94: 35.2 | R94: 1.76 | S94: 1.408 | U94: 45 | V94: 136.8
B95: 72. | F95: 0 | I95: 0 | K95: 0 | P95: 0 | Q95: 0 | R95: 0 | S95: 0 | U95: 0 | V95: 0
B96: 73. | C96: Malboro 4,00€ | F96: 0 | I96: 0 | J96: 4 | K96: 0 | L96: ks. | O96: 3.9 | P96: 4 | Q96: 0 | R96: 0 | S96: 0 | U96: 0 | V96: 0
B97: 74. | F97: 0 | I97: 0 | K97: 0 | P97: 0 | Q97: 0 | R97: 0 | S97: 0 | U97: 0 | V97: 0
B98: 75. | F98: 0 | I98: 0 | K98: 0 | P98: 0 | Q98: 0 | R98: 0 | S98: 0 | U98: 0 | V98: 0
B99: 76. | F99: 0 | I99: 0 | K99: 0 | P99: 0 | Q99: 0 | R99: 0 | S99: 0 | U99: 0 | V99: 0
B100: 77. | C100: Hyg. vreckovky | D100: 16 | F100: 16 | G100: 14 | I100: 2 | J100: 0.2 | K100: 0.4 | L100: ks. | O100: 0.089 | P100: 0.2 | Q100: 0.4 | R100: 0.222 | S100: 0.1776 | U100: 14 | V100: 1.246
B101: 78. | C101: Zapaľovač | D101: 59 | F101: 59 | G101: 58 | I101: 1 | J101: 0.5 | K101: 0.5 | L101: ks. | O101: 0.17 | P101: 0.5 | Q101: 0.5 | R101: 0.33 | S101: 0.264 | U101: 58 | V101: 9.86
B102: 79. | C102: Zápalky | D102: 48 | F102: 48 | G102: 47 | I102: 1 | J102: 0.1 | K102: 0.1 | L102: ks. | O102: 0.04 | P102: 0.1 | Q102: 0.1 | R102: 0.06 | S102: 0.048 | U102: 47 | V102: 1.88
B103: 80. | F103: 0 | I103: 0 | K103: 0 | P103: 0 | Q103: 0 | R103: 0 | S103: 0 | U103: 0 | V103: 0
B104: 81. | F104: 0 | I104: 0 | K104: 0 | P104: 0 | Q104: 0 | R104: 0 | S104: 0 | U104: 0 | V104: 0
B105: 82. | F105: 0 | I105: 0 | K105: 0 | P105: 0 | Q105: 0 | R105: 0 | S105: 0 | U105: 0 | V105: 0
D107: =SUM(D65:D105) -> 1678.7 | G107: =SUM(G65:G105) -> 2121.8 | J107: Celkom : | K107: =SUM(K65:K105) -> 176.6 | P107: Celkom: | Q107: =SUM(Q65:Q105) -> 176.6 | R107: =SUM(R65:R105) -> 29.1702 | S107: =SUM(S65:S105) -> 23.33616 | U107: Za tovar: | V107: =SUM(V65:V105) -> 711.45
C114: Strana 3: | O114: Strana 3:
B115: P.Č. | C115: Názov tovaru | D115: Poč. stav | E115: Denný príjem | F115: Spolu | G115: Zostatok v sklade | I115: Denný predaj | J115: Cena € | K115: Suma celkom € | O115: Nákupná cena | P115: Predajná cena | Q115: Tržba | R115: Zisk | S115: Zisk po zdanení | U115: Zostatok v krčme | V115: Suma tovaru
B117: 83. | C117: Kinderko | F117: =D117+E117 -> 0 | I117: =D117+E117-G117 -> 0 | J117: 1.2 | K117: =I117*J117 -> 0 | L117: ks. | O117: 0.93 | P117: =J117 -> 1.2 | Q117: =I117*J117 -> 0 | R117: =(P117-O117)*I117 -> 0 | S117: =R117*0.8 -> 0 | U117: =G117 -> 0 | V117: =U117*O117 -> 0
B118: 84. | C118: Horalka | D118: 31 | F118: =D118+E118 -> 31 | G118: 27 | I118: =D118+E118-G118 -> 4 | J118: 0.6 | K118: =I118*J118 -> 2.4 | L118: ks. | O118: 0.31 | P118: =J118 -> 0.6 | Q118: =I118*J118 -> 2.4 | R118: =(P118-O118)*I118 -> 1.16 | S118: =R118*0.8 -> 0.928 | U118: =G118 -> 27 | V118: =U118*O118 -> 8.37
B119: 85. | C119: Kávenky | D119: 26 | F119: 26 | G119: 26 | I119: 0 | J119: 0.6 | K119: 0 | L119: ks. | O119: 0.28 | P119: 0.6 | Q119: 0 | R119: =(P119-O119)*I119 -> 0 | S119: 0 | U119: 26 | V119: 7.28
B120: 86. | C120: Kinder čokoláda | D120: 8 | F120: 8 | G120: 6 | I120: 2 | J120: 1.8 | K120: 3.6 | L120: ks. | O120: 0.9 | P120: 1.8 | Q120: 3.6 | R120: 1.8 | S120: 1.44 | U120: 6 | V120: 5.4
B121: 87. | C121: 3-BIT | D121: 16 | F121: 16 | G121: 16 | I121: 0 | J121: 0.6 | K121: 0 | L121: ks. | O121: 0.32 | P121: 0.6 | Q121: 0 | R121: 0 | S121: 0 | U121: 16 | V121: 5.12
B122: 88. | C122: Banán | D122: 12 | F122: 12 | G122: 11 | I122: 1 | J122: 0.6 | K122: 0.6 | L122: ks. | O122: 0.26 | P122: 0.6 | Q122: 0.6 | R122: 0.34 | S122: 0.272 | U122: 11 | V122: 2.86
B123: 89. | C123: Margot | D123: 13 | F123: 13 | G123: 13 | I123: 0 | J123: 0.6 | K123: 0 | L123: ks. | O123: 0.4 | P123: 0.6 | Q123: 0 | R123: 0 | S123: 0 | U123: 13 | V123: 5.2
B124: 90. | C124: Lízatko 2 | F124: 0 | I124: 0 | J124: 0.2 | K124: 0 | L124: ks. | O124: 0.04 | P124: 0.2 | Q124: 0 | R124: 0 | S124: 0 | U124: 0 | V124: 0
B125: 91. | C125: Mila | D125: 19 | F125: 19 | G125: 18 | I125: 1 | J125: 0.6 | K125: 0.6 | L125: ks. | O125: 0.37 | P125: 0.6 | Q125: 0.6 | R125: 0.23 | S125: 0.184 | U125: 18 | V125: 6.66
B126: 92. | C126: Lízatko | D126: 129 | F126: 129 | G126: 126 | I126: 3 | J126: 0.3 | K126: 0.9 | L126: ks. | O126: 0.1 | P126: 0.3 | Q126: 0.9 | R126: 0.6 | S126: 0.48 | U126: 126 | V126: 12.6
B127: 93. | C127: Chipsy | D127: 28 | F127: 28 | G127: 27 | I127: 1 | J127: 1 | K127: 1 | L127: ks. | O127: 0.42 | P127: 1 | Q127: 1 | R127: 0.58 | S127: 0.464 | U127: 27 | V127: 11.34
B128: 94. | C128: Tofife | D128: 9 | F128: 9 | G128: 9 | I128: 0 | J128: 3 | K128: 0 | L128: ks. | O128: 1.62 | P128: 3 | Q128: 0 | R128: 0 | S128: 0 | U128: 9 | V128: 14.58
B129: 95. | C129: Milka čok. | D129: 2 | F129: 2 | G129: 2 | I129: 0 | J129: 1.5 | K129: 0 | L129: ks. | O129: 0.73 | P129: 1.5 | Q129: 0 | R129: 0 | S129: 0 | U129: 2 | V129: 1.46
B130: 96. | C130: Tyčinky DRU | D130: 30 | F130: 30 | G130: 28 | I130: 2 | J130: 0.5 | K130: 1 | L130: ks. | O130: 0.23 | P130: 0.5 | Q130: 1 | R130: 0.54 | S130: 0.432 | U130: 28 | V130: 6.44
B131: 97. | C131: Arašidy | D131: 8 | F131: 8 | G131: 8 | I131: 0 | J131: 0.8 | K131: 0 | L131: ks. | O131: 0.41 | P131: 0.8 | Q131: 0 | R131: 0 | S131: 0 | U131: 8 | V131: 3.28
B132: 98. | C132: TIC-TAC | D132: 76 | F132: 76 | G132: 76 | I132: 0 | J132: 0.6 | K132: 0 | L132: ks. | O132: 0.3 | P132: 0.6 | Q132: 0 | R132: 0 | S132: 0 | U132: 76 | V132: 22.8
B133: 99. | C133: Žuvažky plátky | D133: 61 | F133: 61 | G133: 56 | I133: 5 | J133: 0.1 | K133: 0.5 | L133: ks. | O133: 0.052 | P133: 0.1 | Q133: 0.5 | R133: 0.24 | S133: 0.192 | U133: 56 | V133: 2.912
B134: 100. | C134: Žuvažky dražé | D134: 13 | F134: 13 | G134: 11 | I134: 2 | J134: 0.6 | K134: 1.2 | L134: ks. | O134: 0.37 | P134: 0.6 | Q134: 1.2 | R134: 0.46 | S134: 0.368 | U134: 11 | V134: 4.07
B135: 101. | C135: Hašlerky | D135: 8 | F135: 8 | G135: 8 | I135: 0 | J135: 0.9 | K135: 0 | L135: ks. | O135: 0.54 | P135: 0.9 | Q135: 0 | R135: 0 | S135: 0 | U135: 8 | V135: 4.32
B136: 102. | C136: Žuvačky guličky | D136: 48 | F136: 48 | G136: 45 | I136: 3 | J136: 0.7 | K136: 2.1 | L136: ks. | O136: 0.3 | P136: 0.7 | Q136: 2.1 | R136: 1.2 | S136: 0.96 | U136: 45 | V136: 13.5
B137: 103. | C137: Chrumky | F137: 0 | I137: 0 | J137: 0.6 | K137: 0 | L137: ks. | O137: 0.27 | P137: 0.6 | Q137: 0 | R137: 0 | S137: 0 | U137: 0 | V137: 0
B138: 104. | F138: 0 | I138: 0 | K138: 0 | P138: 0 | Q138: 0 | R138: 0 | S138: 0 | U138: 0 | V138: 0
B139: 105. | F139: 0 | I139: 0 | K139: 0 | P139: 0 | Q139: 0 | R139: 0 | S139: 0 | U139: 0 | V139: 0
B140: 106. | F140: 0 | I140: 0 | K140: 0 | P140: 0 | Q140: 0 | R140: 0 | S140: 0 | U140: 0 | V140: 0
B141: 107. | F141: 0 | I141: 0 | K141: 0 | P141: 0 | Q141: 0 | R141: 0 | S141: 0 | U141: 0 | V141: 0
B142: 108. | F142: 0 | I142: 0 | K142: 0 | P142: 0 | Q142: 0 | R142: 0 | S142: 0 | U142: 0 | V142: 0
U143: 0 | V143: 0
D144: =SUM(D117:D142) -> 537 | G144: =SUM(G117:G142) -> 513 | J144: Celkom: | K144: =SUM(K117:K142) -> 13.9 | P144: Celkom: | Q144: =SUM(Q117:Q142) -> 13.9 | R144: =SUM(R117:R142) -> 7.15 | S144: =SUM(S117:S142) -> 5.72 | U144: Za tovar: | V144: =SUM(V117:V142) -> 138.192
D147: Stávková: | F147: 5.5 | I147: Strana 1: | J147: =K55 -> 360.98 | P147: Strana 1 | Q147: =Q55 -> 360.98 | R147: =R55 -> 191.6536 | S147: =S55 -> 153.32288 | U147: Strana 1: | V147: =V55 -> 1510.9458
D148: Refil: | I148: Strana 2: | J148: =K107 -> 176.6 | P148: Strana 2 | Q148: =Q107 -> 176.6 | R148: =R107 -> 29.1702 | S148: =S107 -> 23.33616 | U148: Strana 2: | V148: =V107 -> 711.45
D149: Výdavky: | F149: 16.5 | I149: Strana 3: | J149: =K144 -> 13.9 | P149: Strana 3 | Q149: =Q144 -> 13.9 | R149: =R144 -> 7.15 | S149: =S144 -> 5.72 | U149: Strana 3: | V149: =V144 -> 138.192
E151: Spolu: | F151: =SUM(F147:F149) -> 22 | I151: Spolu: | J151: =SUM(J147:J149) -> 551.48 | P151: Spolu: | Q151: =SUM(Q147:Q149) -> 551.48 | R151: =SUM(R147:R149) -> 227.9738 | S151: =SUM(S147:S149) -> 182.37904 | U151: Spolu: | V151: =SUM(V147:V149) -> 2360.5878
P153: Spolu: | Q153: =Q151-F151 -> 529.48 | R153: =R151-G151 -> 227.9738 | S153: =S151-H151 -> 182.37904
I154: Celkom : | J154: =J151-F151 -> 529.48
C156: Zostatok hotovosť: | D156: 531
C158: rozdiel: | D158: =D156-J154 -> 1.52

Sheet 1
D1: Vyučtovanie výčapu | G1: august | J1: /2019 | O1: Denný sumár
N2: Juniorka | O2: Meno: | P2: =I2 -> 0
N3: Šipulová | O3: Dátum: | P3: =I3 -> 0 | Q3: /2019
N4: Hermanová
G5: Meno:
G7: Dátum: | J7: /2019
C10: Strana 1: | O10: Strana 1:
B11: P.Č. | C11: Názov tovaru | D11: Poč. stav | E11: Denný príjem | F11: Spolu | G11: Zostatok v sklade | I11: Denný predaj | J11: Cena € | K11: Suma celkom € | L11: J.M. | O11: Nákupná cena | P11: Predajná cena | Q11: Tržba | R11: Zisk | S11: Zisk po zdanení | U11: Zostatok v krčme | V11: Suma tovaru
B13: 1. | C13: Pernštejn čap. 10˚ | D13: 289.8 | F13: =D13+E13 -> 289.8 | G13: 238.8 | I13: =D13+E13-G13 -> 51 | J13: 2 | K13: =I13*J13 -> 102 | L13: l. | O13: 1.032 | P13: =J13 -> 2 | Q13: =I13*J13 -> 102 | R13: =(P13-O13)*I13 -> 49.368 | S13: =R13*0.8 -> 39.4944 | U13: =G13 -> 238.8 | V13: =U13*O13 -> 246.4416
B14: 2. | C14: Malinovka čap. | D14: 116.3 | F14: 116.3 | G14: 78.4 | I14: 37.9 | J14: 2 | K14: =I14*J14 -> 75.8 | L14: l. | O14: 0.493 | P14: =J14 -> 2 | Q14: =I14*J14 -> 75.8 | R14: =(P14-O14)*I14 -> 57.1153 | S14: =R14*0.8 -> 45.69224 | U14: =G14 -> 78.4 | V14: =U14*O14 -> 38.6512
B15: 3. | C15: Radler čap. | D15: 17.1 | F15: 17.1 | G15: 8.9 | I15: 8.2 | J15: 2.6 | K15: 21.32 | L15: l. | O15: 1.52 | P15: 2.6 | Q15: 21.32 | R15: =(P15-O15)*I15 -> 8.856 | S15: 7.0848 | U15: 8.9 | V15: 13.528
B16: 4. | F16: 0 | I16: 0 | K16: 0 | P16: 0 | Q16: 0 | R16: 0 | S16: 0 | U16: 0 | V16: 0
B17: 5. | C17: Šariš 10˚ fľaša | D17: 20 | F17: 20 | G17: 17 | I17: 3 | J17: 0.8 | K17: 2.4 | L17: ks. | O17: 0.34 | P17: 0.8 | Q17: 2.4 | R17: 1.38 | S17: 1.104 | U17: 17 | V17: 5.78
B18: 6. | C18: Kozel 10˚ fľaša | D18: 21 | F18: 21 | G18: 17 | I18: 4 | J18: 0.9 | K18: 3.6 | L18: ks. | O18: 0.47 | P18: 0.9 | Q18: 3.6 | R18: 1.72 | S18: 1.376 | U18: 17 | V18: 7.99
B19: 7. | C19: Birell nealko fľaša | D19: 39 | F19: 39 | G19: 37 | I19: 2 | J19: 1.2 | K19: 2.4 | L19: ks. | O19: 0.64 | P19: 1.2 | Q19: 2.4 | R19: 1.12 | S19: 0.896 | U19: 37 | V19: 23.68
B20: 8. | C20: Gambrinus fľaša | D20: 43 | F20: 43 | G20: 28 | I20: 15 | J20: 0.9 | K20: 13.5 | L20: ks. | O20: 0.56 | P20: 0.9 | Q20: 13.5 | R20: 5.1 | S20: 4.08 | U20: 28 | V20: 15.68
B21: 9. | C21: Plzeň 12˚ fľaša | D21: 46 | F21: 46 | G21: 39 | I21: 7 | J21: 1.3 | K21: 9.1 | L21: ks. | O21: 0.694 | P21: 1.3 | Q21: 9.1 | R21: 4.242 | S21: 3.3936 | U21: 39 | V21: 27.066
B22: 10. | F22: 0 | I22: 0 | K22: 0 | L22: ks. | P22: 0 | Q22: 0 | R22: 0 | S22: 0 | U22: 0 | V22: 0
B23: 11. | C23: Gambrinus plech. | D23: 36 | F23: 36 | G23: 32 | I23: 4 | J23: 0.9 | K23: 3.6 | L23: ks. | O23: 0.49 | P23: 0.9 | Q23: 3.6 | R23: 1.64 | S23: 1.312 | U23: 32 | V23: 15.68
B24: 12. | F24: 0 | I24: 0 | K24: 0 | L24: ks. | O24: 0.42 | P24: 0 | Q24: 0 | R24: 0 | S24: 0 | U24: 0 | V24: 0
B25: 13. | F25: 0 | I25: 0 | K25: 0 | L25: ks. | O25: 0.75 | P25: 0 | Q25: 0 | R25: 0 | S25: 0 | U25: 0 | V25: 0
B26: 14. | F26: 0 | I26: 0 | K26: 0 | P26: 0 | Q26: 0 | R26: 0 | S26: 0 | U26: 0 | V26: 0
B27: 15. | C27: Práznde sudy | F27: 0 | I27: 0 | K27: 0 | L27: ks. | P27: 0 | Q27: 0 | R27: 0 | S27: 0 | U27: 0 | V27: 0
B28: 16. | C28: Práznde fľaše | F28: 0 | I28: 0 | K28: 0 | L28: ks. | P28: 0 | Q28: 0 | R28: 0 | S28: 0 | U28: 0 | V28: 0
B29: 17. | F29: 0 | I29: 0 | K29: 0 | P29: 0 | Q29: 0 | R29: 0 | S29: 0 | U29: 0 | V29: 0
B30: 18. | F30: 0 | I30: 0 | K30: 0 | P30: 0 | Q30: 0 | R30: 0 | S30: 0 | U30: 0 | V30: 0
B31: 19. | C31: Víno biele | D31: 25 | F31: 25 | G31: 22.1 | I31: 2.9 | J31: 3 | K31: 8.7 | L31: l. | O31: 1.29 | P31: 3 | Q31: 8.7 | R31: 4.959 | S31: 3.9672 | U31: 22.1 | V31: 28.509
B32: 20. | C32: Víno červené | D32: 15 | F32: 15 | G32: 13.5 | I32: 1.5 | J32: 3 | K32: 4.5 | L32: l. | O32: 1.29 | P32: 3 | Q32: 4.5 | R32: 2.565 | S32: 2.052 | U32: 13.5 | V32: 17.415
B33: 21. | F33: 0 | I33: 0 | K33: 0 | P33: 0 | Q33: 0 | R33: 0 | S33: 0 | U33: 0 | V33: 0
B34: 22. | C34: Vodka | D34: 36.65 | F34: 36.65 | G34: 27.4 | I34: 9.25 | J34: 12 | K34: 111 | L34: l. | O34: 6.54 | P34: 12 | Q34: 111 | R34: 50.505 | S34: 40.404 | U34: 27.4 | V34: 179.196
B35: 23. | C35: Borovička | D35: 41.3 | F35: 41.3 | G35: 29.95 | I35: 11.35 | J35: 12 | K35: 136.2 | L35: l. | O35: 6.56 | P35: 12 | Q35: 136.2 | R35: 61.744 | S35: 49.3952 | U35: 29.95 | V35: 196.472
B36: 24. | C36: Koniferka | D36: 4.95 | F36: 4.95 | G36: 4.1 | I36: 0.85 | J36: 14 | K36: 11.9 | L36: l. | O36: 5.95 | P36: 14 | Q36: 11.9 | R36: 6.8425 | S36: 5.474 | U36: 4.1 | V36: 24.395
B37: 25. | C37: RUM | D37: 9.6 | F37: 9.6 | G37: 7.5 | I37: 2.1 | J37: 12 | K37: 25.2 | L37: l. | O37: 5.78 | P37: 12 | Q37: 25.2 | R37: 13.062 | S37: 10.4496 | U37: 7.5 | V37: 43.35
B38: 26. | C38: Hruška | D38: 3.8 | F38: 3.8 | G38: 2.9 | I38: 0.9 | J38: 14 | K38: 12.6 | L38: l. | O38: 7.2 | P38: 14 | Q38: 12.6 | R38: 6.12 | S38: 4.896 | U38: 2.9 | V38: 20.88
B39: 27. | C39: Spišská borovička | D39: 4.4 | F39: 4.4 | G39: 4.35 | I39: 0.05 | J39: 14 | K39: 0.7 | L39: l. | O39: 8.55 | P39: 14 | Q39: 0.7 | R39: 0.2725 | S39: 0.218 | U39: 4.35 | V39: 37.1925
B40: 28. | C40: Trenčianské hradné | D40: 6.8 | F40: 6.8 | G40: 2.9 | I40: 3.9 | J40: 12 | K40: 46.8 | L40: l. | O40: 6.636 | P40: 12 | Q40: 46.8 | R40: 20.9196 | S40: 16.73568 | U40: 2.9 | V40: 19.2444
B41: 29. | C41: Karpatská horká | D41: 13.1 | F41: 13.1 | G41: 11.35 | I41: 1.75 | J41: 12 | K41: 21 | L41: l. | O41: 5.32 | P41: 12 | Q41: 21 | R41: 11.69 | S41: 9.352 | U41: 11.35 | V41: 60.382
B42: 30. | C42: Vodka Peach | D42: 4.55 | F42: 4.55 | G42: 3.6 | I42: 0.95 | J42: 14 | K42: 13.3 | L42: l. | O42: 4.41 | P42: 14 | Q42: 13.3 | R42: 9.1105 | S42: 7.2884 | U42: 3.6 | V42: 15.876
B43: 31. | C43: Becherovka | D43: 4.5 | F43: 4.5 | G43: 3.7 | I43: 0.8 | J43: 20 | K43: 16 | L43: l. | O43: 10.67 | P43: 20 | Q43: 16 | R43: 7.464 | S43: 5.9712 | U43: 3.7 | V43: 39.479
B44: 32. | C44: Fernet | D44: 0.95 | F44: 0.95 | G44: 0.15 | I44: 0.8 | J44: 20 | K44: 16 | L44: l. | O44: 9.69 | P44: 20 | Q44: 16 | R44: 8.248 | S44: 6.5984 | U44: 0.15 | V44: 1.4535
B45: 33. | C45: Slivka | D45: 5.2 | F45: 5.2 | G45: 5 | I45: 0.2 | J45: 14 | K45: 2.8 | L45: l. | O45: 7.21 | P45: 14 | Q45: 2.8 | R45: 1.358 | S45: 1.0864 | U45: 5 | V45: 36.05
B46: 34. | C46: Bošácka slivovica | D46: 0.9 | F46: 0.9 | I46: 0.9 | J46: 24 | K46: 21.6 | L46: l. | O46: 17.61 | P46: 24 | Q46: 21.6 | R46: 5.751 | S46: 4.6008 | U46: 0 | V46: 0
B47: 35. | C47: Karpatská KB | F47: 0 | I47: 0 | J47: 20 | K47: 0 | L47: l. | O47: 5.998 | P47: 20 | Q47: 0 | R47: 0 | S47: 0 | U47: 0 | V47: 0
B48: 36. | C48: Fernet Citrus | F48: 0 | I48: 0 | J48: 20 | K48: 0 | L48: l. | O48: 9.69 | P48: 20 | Q48: 0 | R48: 0 | S48: 0 | U48: 0 | V48: 0
B49: 37. | C49: Pepermint | D49: 3.4 | F49: 3.4 | G49: 2.95 | I49: 0.45 | J49: 12 | K49: 5.4 | L49: l. | O49: 5.2 | P49: 12 | Q49: 5.4 | R49: 3.06 | S49: 2.448 | U49: 2.95 | V49: 15.34
B50: 38. | C50: Nicolaus vodka | D50: 0.8 | F50: 0.8 | G50: 0.75 | I50: 0.05 | J50: 18 | K50: 0.9 | L50: l. | O50: 8.62 | P50: 18 | Q50: 0.9 | R50: 0.469 | S50: 0.3752 | U50: 0.75 | V50: 6.465
B51: 39. | C51: Captain Morgan | D51: 2.65 | F51: 2.65 | G51: 2.45 | I51: 0.2 | J51: 24 | K51: 4.8 | L51: l. | O51: 11.74 | P51: 24 | Q51: 4.8 | R51: 2.452 | S51: 1.9616 | U51: 2.45 | V51: 28.763
B52: 40. | F52: 0 | I52: 0 | K52: 0 | P52: 0 | Q52: 0 | R52: 0 | S52: 0 | U52: 0 | V52: 0
B53: 41. | F53: 0 | I53: 0 | K53: 0 | P53: 0 | Q53: 0 | R53: 0 | S53: 0 | U53: 0 | V53: 0
P54: 0
D55: =SUM(D13:D53) -> 811.75 | G55: =SUM(G13:G53) -> 640.75 | J55: Celkom: | K55: =SUM(K13:K53) -> 693.12 | P55: Celkom: | Q55: =SUM(Q13:Q53) -> 693.12 | R55: =SUM(R13:R53) -> 347.1334 | S55: =SUM(S13:S53) -> 277.70672 | U55: Za tovar: | V55: =SUM(V13:V53) -> 1164.9592
C62: Strana 2: | O62: Strana 2:
B63: P.Č. | C63: Názov tovaru | D63: Poč. stav | E63: Denný príjem | F63: Spolu | G63: Zostatok v sklade | I63: Denný predaj | J63: Cena € | K63: Suma celkom € | O63: Nákupná cena | P63: Predajná cena | Q63: Tržba | R63: Zisk | S63: Zisk po zdanení | U63: Zostatok v krčme | V63: Suma tovaru
B65: 42. | C65: PEPSI + 7UP 0,5l | F65: =D65+E65 -> 0 | I65: =D65+E65-G65 -> 0 | J65: 1.1 | K65: =I65*J65 -> 0 | L65: ks. | O65: 0.78 | P65: =J65 -> 1.1 | Q65: =I65*J65 -> 0 | R65: =(P65-O65)*I65 -> 0 | S65: =R65*0.8 -> 0 | U65: =G65 -> 0 | V65: =U65*O65 -> 0
B66: 43. | C66: Sprite +Tonic | D66: 20.2 | F66: =D66+E66 -> 20.2 | G66: 19.8 | I66: =D66+E66-G66 -> 0.4 | J66: 2 | K66: =I66*J66 -> 0.8 | L66: ks. | O66: 0.726 | P66: =J66 -> 2 | Q66: =I66*J66 -> 0.8 | R66: =(P66-O66)*I66 -> 0.5096 | S66: =R66*0.8 -> 0.40768 | U66: =G66 -> 19.8 | V66: =U66*O66 -> 14.3748
B67: 44. | C67: Minerálka 0,5l | D67: 73 | F67: 73 | G67: 67 | I67: 6 | J67: 0.9 | K67: 5.4 | L67: ks. | O67: 0.528 | P67: 0.9 | Q67: 5.4 | R67: =(P67-O67)*I67 -> 2.232 | S67: 1.7856 | U67: 67 | V67: 35.376
B68: 45. | C68: Kofola 0,5l | D68: 14 | F68: 14 | G68: 13 | I68: 1 | J68: 1.1 | K68: 1.1 | L68: ks. | O68: 0.49 | P68: 1.1 | Q68: 1.1 | R68: 0.61 | S68: 0.488 | U68: 13 | V68: 6.37
B69: 46. | C69: Džús krabička | D69: 65 | F69: 65 | G69: 60 | I69: 5 | J69: 0.5 | K69: 2.5 | L69: ks. | O69: 0.17 | P69: 0.5 | Q69: 2.5 | R69: 1.65 | S69: 1.32 | U69: 60 | V69: 10.2
B70: 47. | C70: Energetický nápoj | D70: 6 | F70: 6 | G70: 6 | I70: 0 | J70: 1.8 | K70: 0 | L70: ks. | O70: 0.25 | P70: 1.8 | Q70: 0 | R70: 0 | S70: 0 | U70: 6 | V70: 1.5
B71: 48. | C71: Limo 0,33l fľaša | D71: 64 | F71: 64 | G71: 51 | I71: 13 | J71: 0.5 | K71: 6.5 | L71: ks. | O71: 0.1 | P71: 0.5 | Q71: 6.5 | R71: 5.2 | S71: 4.16 | U71: 51 | V71: 5.1
B72: 49. | C72: Minerálka 2l | D72: 56 | F72: 56 | G72: 52 | I72: 4 | J72: 1.5 | K72: 6 | L72: l. | O72: 0.23 | P72: 1.5 | Q72: 6 | R72: 5.08 | S72: 4.064 | U72: 52 | V72: 11.96
B73: 50. | C73: Relax džús fľaška | D73: 21 | F73: 21 | G73: 15 | I73: 6 | J73: 1 | K73: 6 | L73: ks. | O73: 0.55 | P73: 1 | Q73: 6 | R73: 2.7 | S73: 2.16 | U73: 15 | V73: 8.25
B74: 51. | C74: Ďžús nalievaný | D74: 17.6 | F74: 17.6 | G74: 16.5 | I74: 1.1 | J74: 3 | K74: 3.3 | L74: l. | O74: 1.188 | P74: 3 | Q74: 3.3 | R74: 1.9932 | S74: 1.59456 | U74: 16.5 | V74: 19.602
B75: 52. | C75: Toma | D75: 23 | F75: 23 | G75: 23 | I75: 0 | J75: 1.1 | K75: 0 | L75: l. | O75: 0.33 | P75: 1.1 | Q75: 0 | R75: 0 | S75: 0 | U75: 23 | V75: 7.59
B76: 53. | C76: HELLO Jupík | D76: 36 | F76: 36 | G76: 36 | I76: 0 | J76: 0.8 | K76: 0 | L76: ks. | O76: 0.33 | P76: 0.8 | Q76: 0 | R76: 0 | S76: 0 | U76: 36 | V76: 11.88
B77: 54. | C77: COCA COLA | D77: 27 | F77: 27 | G77: 27 | I77: 0 | J77: 1.1 | K77: 0 | L77: ks. | O77: 0.624 | P77: 1.1 | Q77: 0 | R77: 0 | S77: 0 | U77: 27 | V77: 16.848
B78: 55. | C78: Vinea | D78: 22 | F78: 22 | G78: 21 | I78: 1 | J78: 1.1 | K78: 1.1 | L78: ks. | O78: 0.504 | P78: 1.1 | Q78: 1.1 | R78: 0.596 | S78: 0.4768 | U78: 21 | V78: 10.584
B79: 56. | C79: ALOE VERA | F79: 0 | I79: 0 | J79: 1.2 | K79: 0 | L79: ks. | O79: 0.65 | P79: 1.2 | Q79: 0 | R79: 0 | S79: 0 | U79: 0 | V79: 0
B80: 57. | F80: 0 | I80: 0 | K80: 0 | P80: 0 | Q80: 0 | R80: 0 | S80: 0 | U80: 0 | V80: 0
B81: 58. | C81: Káva turecká | D81: 1010 | F81: 1010 | G81: 860 | I81: =(D81+E81-G81)/7 -> 21.42857143 | J81: 0.5 | K81: 10.71428571 | L81: gr. | O81: 0.034 | P81: 0.5 | Q81: =K81 -> 10.71428571 | R81: 9.985714286 | S81: 7.988571429 | U81: 860 | V81: 29.24
B82: 59. | C82: Nescafé 3v1 | D82: 55 | F82: 55 | G82: 55 | I82: 0 | J82: 0.5 | K82: 0 | L82: ks. | O82: 0.14 | P82: 0.5 | Q82: 0 | R82: 0 | S82: 0 | U82: 55 | V82: 7.7
B83: 60. | C83: Čaj | D83: 104 | F83: 104 | G83: 104 | I83: 0 | J83: 0.5 | K83: =I83*J83 -> 0 | L83: ks. | O83: 0.058 | P83: 0.5 | Q83: =I83*J83 -> 0 | R83: 0 | S83: 0 | U83: 104 | V83: =U83*O84 -> 3.744
B84: 61. | C84: Mlieko do kávy | D84: 37 | F84: 37 | G84: 32 | I84: 5 | J84: 0.1 | K84: =I84*J84 -> 0.5 | L84: ks. | O84: 0.036 | P84: 0.1 | Q84: =I84*J84 -> 0.5 | R84: 0.32 | S84: 0.256 | U84: 32 | V84: =U84*O85 -> 0.256
B85: 62. | C85: Cukor HB | D85: 202 | F85: 202 | G85: 173 | I85: 29 | J85: 0.05 | K85: =I85*J85 -> 1.45 | L85: ks. | O85: 0.008 | P85: 0.05 | Q85: =I85*J85 -> 1.45 | R85: 1.218 | S85: 0.9744 | U85: 173 | V85: =U85*O86 -> 0
B86: 63. | F86: 0 | I86: 0 | K86: =I86*J86 -> 0 | P86: 0 | Q86: =I86*J86 -> 0 | R86: 0 | S86: 0 | U86: 0 | V86: =U86*O87 -> 0
B87: 64. | F87: 0 | I87: 0 | K87: 0 | P87: 0 | Q87: 0 | R87: 0 | S87: 0 | U87: 0 | V87: 0
B88: 65. | F88: 0 | I88: 0 | K88: 0 | P88: 0 | Q88: 0 | R88: 0 | S88: 0 | U88: 0 | V88: 0
B89: 66. | C89: Golden | D89: 32 | F89: 32 | G89: 27 | I89: 5 | J89: 3.4 | K89: 17 | L89: ks. | O89: 3.22 | P89: 3.4 | Q89: 17 | R89: 0.9 | S89: 0.72 | U89: 27 | V89: 86.94
B90: 67. | C90: Petra 3,40€ | D90: 10 | F90: 10 | G90: 3 | I90: 7 | J90: 3.4 | K90: 23.8 | L90: ks. | O90: 3.23 | P90: 3.4 | Q90: 23.8 | R90: 1.19 | S90: 0.952 | U90: 3 | V90: 9.69
B91: 68. | C91: Malboro 3,70€ | D91: 18 | F91: 18 | G91: 10 | I91: 8 | J91: 3.7 | K91: 29.6 | L91: ks. | O91: 3.51 | P91: 3.7 | Q91: 29.6 | R91: 1.52 | S91: 1.216 | U91: 10 | V91: 35.1
B92: 69. | C92: LM 3,40€ | D92: 40 | F92: 40 | G92: 18 | I92: 22 | J92: 3.4 | K92: 74.8 | L92: ks. | O92: 3.23 | P92: 3.4 | Q92: 74.8 | R92: 3.74 | S92: 2.992 | U92: 18 | V92: 58.14
B93: 70. | C93: Mars | D93: 5 | F93: 5 | I93: 5 | J93: 3.4 | K93: 17 | L93: ks. | O93: 3.22 | P93: 3.4 | Q93: 17 | R93: 0.9 | S93: 0.72 | U93: 0 | V93: 0
B94: 71. | C94: West | D94: 45 | F94: 45 | G94: 37 | I94: 8 | J94: 3.2 | K94: 25.6 | L94: ks. | O94: 3.04 | P94: 3.2 | Q94: 25.6 | R94: 1.28 | S94: 1.024 | U94: 37 | V94: 112.48
B95: 72. | F95: 0 | I95: 0 | K95: 0 | P95: 0 | Q95: 0 | R95: 0 | S95: 0 | U95: 0 | V95: 0
B96: 73. | C96: Malboro 4,00€ | F96: 0 | I96: 0 | J96: 4 | K96: 0 | L96: ks. | O96: 3.9 | P96: 4 | Q96: 0 | R96: 0 | S96: 0 | U96: 0 | V96: 0
B97: 74. | F97: 0 | I97: 0 | K97: 0 | P97: 0 | Q97: 0 | R97: 0 | S97: 0 | U97: 0 | V97: 0
B98: 75. | F98: 0 | I98: 0 | K98: 0 | P98: 0 | Q98: 0 | R98: 0 | S98: 0 | U98: 0 | V98: 0
B99: 76. | F99: 0 | I99: 0 | K99: 0 | P99: 0 | Q99: 0 | R99: 0 | S99: 0 | U99: 0 | V99: 0
B100: 77. | C100: Hyg. vreckovky | D100: 14 | F100: 14 | G100: 11 | I100: 3 | J100: 0.2 | K100: 0.6 | L100: ks. | O100: 0.089 | P100: 0.2 | Q100: 0.6 | R100: 0.333 | S100: 0.2664 | U100: 11 | V100: 0.979
B101: 78. | C101: Zapaľovač | D101: 58 | F101: 58 | G101: 52 | I101: 6 | J101: 0.5 | K101: 3 | L101: ks. | O101: 0.17 | P101: 0.5 | Q101: 3 | R101: 1.98 | S101: 1.584 | U101: 52 | V101: 8.84
B102: 79. | C102: Zápalky | D102: 47 | F102: 47 | G102: 46 | I102: 1 | J102: 0.1 | K102: 0.1 | L102: ks. | O102: 0.04 | P102: 0.1 | Q102: 0.1 | R102: 0.06 | S102: 0.048 | U102: 46 | V102: 1.84
B103: 80. | F103: 0 | I103: 0 | K103: 0 | P103: 0 | Q103: 0 | R103: 0 | S103: 0 | U103: 0 | V103: 0
B104: 81. | F104: 0 | I104: 0 | K104: 0 | P104: 0 | Q104: 0 | R104: 0 | S104: 0 | U104: 0 | V104: 0
B105: 82. | F105: 0 | I105: 0 | K105: 0 | P105: 0 | Q105: 0 | R105: 0 | S105: 0 | U105: 0 | V105: 0
D107: =SUM(D65:D105) -> 2121.8 | G107: =SUM(G65:G105) -> 1835.3 | J107: Celkom : | K107: =SUM(K65:K105) -> 236.8642857 | P107: Celkom: | Q107: =SUM(Q65:Q105) -> 236.8642857 | R107: =SUM(R65:R105) -> 43.99751429 | S107: =SUM(S65:S105) -> 35.19801143 | U107: Za tovar: | V107: =SUM(V65:V105) -> 514.5838
C114: Strana 3: | O114: Strana 3:
B115: P.Č. | C115: Názov tovaru | D115: Poč. stav | E115: Denný príjem | F115: Spolu | G115: Zostatok v sklade | I115: Denný predaj | J115: Cena € | K115: Suma celkom € | O115: Nákupná cena | P115: Predajná cena | Q115: Tržba | R115: Zisk | S115: Zisk po zdanení | U115: Zostatok v krčme | V115: Suma tovaru
B117: 83. | C117: Kinderko | F117: =D117+E117 -> 0 | I117: =D117+E117-G117 -> 0 | J117: 1.2 | K117: =I117*J117 -> 0 | L117: ks. | O117: 0.93 | P117: =J117 -> 1.2 | Q117: =I117*J117 -> 0 | R117: =(P117-O117)*I117 -> 0 | S117: =R117*0.8 -> 0 | U117: =G117 -> 0 | V117: =U117*O117 -> 0
B118: 84. | C118: Horalka | D118: 27 | F118: =D118+E118 -> 27 | G118: 23 | I118: =D118+E118-G118 -> 4 | J118: 0.6 | K118: =I118*J118 -> 2.4 | L118: ks. | O118: 0.31 | P118: =J118 -> 0.6 | Q118: =I118*J118 -> 2.4 | R118: =(P118-O118)*I118 -> 1.16 | S118: =R118*0.8 -> 0.928 | U118: =G118 -> 23 | V118: =U118*O118 -> 7.13
B119: 85. | C119: Kávenky | D119: 26 | F119: 26 | G119: 25 | I119: 1 | J119: 0.6 | K119: 0.6 | L119: ks. | O119: 0.28 | P119: 0.6 | Q119: 0.6 | R119: =(P119-O119)*I119 -> 0.32 | S119: 0.256 | U119: 25 | V119: 7
B120: 86. | C120: Kinder čokoláda | D120: 6 | F120: 6 | G120: 5 | I120: 1 | J120: 1.8 | K120: 1.8 | L120: ks. | O120: 0.9 | P120: 1.8 | Q120: 1.8 | R120: 0.9 | S120: 0.72 | U120: 5 | V120: 4.5
B121: 87. | C121: 3-BIT | D121: 16 | F121: 16 | G121: 15 | I121: 1 | J121: 0.6 | K121: 0.6 | L121: ks. | O121: 0.32 | P121: 0.6 | Q121: 0.6 | R121: 0.28 | S121: 0.224 | U121: 15 | V121: 4.8
B122: 88. | C122: Banán | D122: 11 | F122: 11 | G122: 7 | I122: 4 | J122: 0.6 | K122: 2.4 | L122: ks. | O122: 0.26 | P122: 0.6 | Q122: 2.4 | R122: 1.36 | S122: 1.088 | U122: 7 | V122: 1.82
B123: 89. | C123: Margot | D123: 13 | F123: 13 | G123: 13 | I123: 0 | J123: 0.6 | K123: 0 | L123: ks. | O123: 0.4 | P123: 0.6 | Q123: 0 | R123: 0 | S123: 0 | U123: 13 | V123: 5.2
B124: 90. | C124: Lízatko 2 | F124: 0 | I124: 0 | J124: 0.2 | K124: 0 | L124: ks. | O124: 0.04 | P124: 0.2 | Q124: 0 | R124: 0 | S124: 0 | U124: 0 | V124: 0
B125: 91. | C125: Mila | D125: 18 | F125: 18 | G125: 17 | I125: 1 | J125: 0.6 | K125: 0.6 | L125: ks. | O125: 0.37 | P125: 0.6 | Q125: 0.6 | R125: 0.23 | S125: 0.184 | U125: 17 | V125: 6.29
B126: 92. | C126: Lízatko | D126: 126 | F126: 126 | G126: 123 | I126: 3 | J126: 0.3 | K126: 0.9 | L126: ks. | O126: 0.1 | P126: 0.3 | Q126: 0.9 | R126: 0.6 | S126: 0.48 | U126: 123 | V126: 12.3
B127: 93. | C127: Chipsy | D127: 27 | F127: 27 | G127: 24 | I127: 3 | J127: 1 | K127: 3 | L127: ks. | O127: 0.42 | P127: 1 | Q127: 3 | R127: 1.74 | S127: 1.392 | U127: 24 | V127: 10.08
B128: 94. | C128: Tofife | D128: 9 | F128: 9 | G128: 9 | I128: 0 | J128: 3 | K128: 0 | L128: ks. | O128: 1.62 | P128: 3 | Q128: 0 | R128: 0 | S128: 0 | U128: 9 | V128: 14.58
B129: 95. | C129: Milka čok. | D129: 2 | F129: 2 | G129: 2 | I129: 0 | J129: 1.5 | K129: 0 | L129: ks. | O129: 0.73 | P129: 1.5 | Q129: 0 | R129: 0 | S129: 0 | U129: 2 | V129: 1.46
B130: 96. | C130: Tyčinky DRU | D130: 28 | F130: 28 | G130: 28 | I130: 0 | J130: 0.5 | K130: 0 | L130: ks. | O130: 0.23 | P130: 0.5 | Q130: 0 | R130: 0 | S130: 0 | U130: 28 | V130: 6.44
B131: 97. | C131: Arašidy | D131: 8 | F131: 8 | G131: 8 | I131: 0 | J131: 0.8 | K131: 0 | L131: ks. | O131: 0.41 | P131: 0.8 | Q131: 0 | R131: 0 | S131: 0 | U131: 8 | V131: 3.28
B132: 98. | C132: TIC-TAC | D132: 76 | F132: 76 | G132: 74 | I132: 2 | J132: 0.6 | K132: 1.2 | L132: ks. | O132: 0.3 | P132: 0.6 | Q132: 1.2 | R132: 0.6 | S132: 0.48 | U132: 74 | V132: 22.2
B133: 99. | C133: Žuvažky plátky | D133: 56 | F133: 56 | G133: 56 | I133: 0 | J133: 0.1 | K133: 0 | L133: ks. | O133: 0.052 | P133: 0.1 | Q133: 0 | R133: 0 | S133: 0 | U133: 56 | V133: 2.912
B134: 100. | C134: Žuvažky dražé | D134: 11 | F134: 11 | G134: 7 | I134: 4 | J134: 0.6 | K134: 2.4 | L134: ks. | O134: 0.37 | P134: 0.6 | Q134: 2.4 | R134: 0.92 | S134: 0.736 | U134: 7 | V134: 2.59
B135: 101. | C135: Hašlerky | D135: 8 | F135: 8 | G135: 8 | I135: 0 | J135: 0.9 | K135: 0 | L135: ks. | O135: 0.54 | P135: 0.9 | Q135: 0 | R135: 0 | S135: 0 | U135: 8 | V135: 4.32
B136: 102. | C136: Žuvačky guličky | D136: 45 | F136: 45 | G136: 45 | I136: 0 | J136: 0.7 | K136: 0 | L136: ks. | O136: 0.3 | P136: 0.7 | Q136: 0 | R136: 0 | S136: 0 | U136: 45 | V136: 13.5
B137: 103. | C137: Chrumky | F137: 0 | I137: 0 | J137: 0.6 | K137: 0 | L137: ks. | O137: 0.27 | P137: 0.6 | Q137: 0 | R137: 0 | S137: 0 | U137: 0 | V137: 0
B138: 104. | F138: 0 | I138: 0 | K138: 0 | P138: 0 | Q138: 0 | R138: 0 | S138: 0 | U138: 0 | V138: 0
B139: 105. | F139: 0 | I139: 0 | K139: 0 | P139: 0 | Q139: 0 | R139: 0 | S139: 0 | U139: 0 | V139: 0
B140: 106. | F140: 0 | I140: 0 | K140: 0 | P140: 0 | Q140: 0 | R140: 0 | S140: 0 | U140: 0 | V140: 0
B141: 107. | F141: 0 | I141: 0 | K141: 0 | P141: 0 | Q141: 0 | R141: 0 | S141: 0 | U141: 0 | V141: 0
B142: 108. | F142: 0 | I142: 0 | K142: 0 | P142: 0 | Q142: 0 | R142: 0 | S142: 0 | U142: 0 | V142: 0
U143: 0 | V143: 0
D144: =SUM(D117:D142) -> 513 | G144: =SUM(G117:G142) -> 489 | J144: Celkom: | K144: =SUM(K117:K142) -> 15.9 | P144: Celkom: | Q144: =SUM(Q117:Q142) -> 15.9 | R144: =SUM(R117:R142) -> 8.11 | S144: =SUM(S117:S142) -> 6.488 | U144: Za tovar: | V144: =SUM(V117:V142) -> 130.402
D147: Stávková: | I147: Strana 1: | J147: =K55 -> 693.12 | P147: Strana 1 | Q147: =Q55 -> 693.12 | R147: =R55 -> 347.1334 | S147: =S55 -> 277.70672 | U147: Strana 1: | V147: =V55 -> 1164.9592
D148: Refil: | I148: Strana 2: | J148: =K107 -> 236.8642857 | P148: Strana 2 | Q148: =Q107 -> 236.8642857 | R148: =R107 -> 43.99751429 | S148: =S107 -> 35.19801143 | U148: Strana 2: | V148: =V107 -> 514.5838
D149: Výdavky: | I149: Strana 3: | J149: =K144 -> 15.9 | P149: Strana 3 | Q149: =Q144 -> 15.9 | R149: =R144 -> 8.11 | S149: =S144 -> 6.488 | U149: Strana 3: | V149: =V144 -> 130.402
E151: Spolu: | F151: =SUM(F147:F149) -> 0 | I151: Spolu: | J151: =SUM(J147:J149) -> 945.8842857 | P151: Spolu: | Q151: =SUM(Q147:Q149) -> 945.8842857 | R151: =SUM(R147:R149) -> 399.2409143 | S151: =SUM(S147:S149) -> 319.3927314 | U151: Spolu: | V151: =SUM(V147:V149) -> 1809.945
P153: Spolu: | Q153: =Q151-F151 -> 945.8842857 | R153: =R151-G151 -> 399.2409143 | S153: =S151-H151 -> 319.3927314
I154: Celkom : | J154: =J151-F151 -> 945.8842857
C156: Zostatok hotovosť:
C158: rozdiel: | D158: =D156-J154 -> -945.8842857

Sheet 2
D1: Vyučtovanie výčapu | G1: august | J1: /2019 | O1: Denný sumár
N2: Juniorka | O2: Meno: | P2: =I2 -> 0
N3: Šipulová | O3: Dátum: | P3: =I3 -> 0 | Q3: /2019
N4: Hermanová
G5: Meno:
G7: Dátum: | J7: /2019
C10: Strana 1: | O10: Strana 1:
B11: P.Č. | C11: Názov tovaru | D11: Poč. stav | E11: Denný príjem | F11: Spolu | G11: Zostatok v sklade | I11: Denný predaj | J11: Cena € | K11: Suma celkom € | L11: J.M. | O11: Nákupná cena | P11: Predajná cena | Q11: Tržba | R11: Zisk | S11: Zisk po zdanení | U11: Zostatok v krčme | V11: Suma tovaru
B13: 1. | C13: Pernštejn čap. 10˚ | D13: 238.8 | F13: =D13+E13 -> 238.8 | G13: 193.8 | I13: =D13+E13-G13 -> 45 | J13: 2 | K13: =I13*J13 -> 90 | L13: l. | O13: 1.032 | P13: =J13 -> 2 | Q13: =I13*J13 -> 90 | R13: =(P13-O13)*I13 -> 43.56 | S13: =R13*0.8 -> 34.848 | U13: =G13 -> 193.8 | V13: =U13*O13 -> 200.0016
B14: 2. | C14: Malinovka čap. | D14: 78.4 | E14: 80 | F14: 158.4 | G14: 132.8 | I14: 25.6 | J14: 2 | K14: =I14*J14 -> 51.2 | L14: l. | O14: 0.493 | P14: =J14 -> 2 | Q14: =I14*J14 -> 51.2 | R14: =(P14-O14)*I14 -> 38.5792 | S14: =R14*0.8 -> 30.86336 | U14: =G14 -> 132.8 | V14: =U14*O14 -> 65.4704
B15: 3. | C15: Radler čap. | D15: 8.9 | E15: 30 | F15: 38.9 | G15: 34.6 | I15: 4.3 | J15: 2.6 | K15: 11.18 | L15: l. | O15: 1.52 | P15: 2.6 | Q15: 11.18 | R15: =(P15-O15)*I15 -> 4.644 | S15: 3.7152 | U15: 34.6 | V15: 52.592
B16: 4. | F16: 0 | I16: 0 | K16: 0 | P16: 0 | Q16: 0 | R16: 0 | S16: 0 | U16: 0 | V16: 0
B17: 5. | C17: Šariš 10˚ fľaša | D17: 17 | E17: 20 | F17: 37 | G17: 33 | I17: 4 | J17: 0.8 | K17: 3.2 | L17: ks. | O17: 0.34 | P17: 0.8 | Q17: 3.2 | R17: 1.84 | S17: 1.472 | U17: 33 | V17: 11.22
B18: 6. | C18: Kozel 10˚ fľaša | D18: 17 | E18: 20 | F18: 37 | G18: 32 | I18: 5 | J18: 0.9 | K18: 4.5 | L18: ks. | O18: 0.47 | P18: 0.9 | Q18: 4.5 | R18: 2.15 | S18: 1.72 | U18: 32 | V18: 15.04
B19: 7. | C19: Birell nealko fľaša | D19: 37 | F19: 37 | G19: 34 | I19: 3 | J19: 1.2 | K19: 3.6 | L19: ks. | O19: 0.64 | P19: 1.2 | Q19: 3.6 | R19: 1.68 | S19: 1.344 | U19: 34 | V19: 21.76
B20: 8. | C20: Gambrinus fľaša | D20: 28 | E20: 20 | F20: 48 | G20: 37 | I20: 11 | J20: 0.9 | K20: 9.9 | L20: ks. | O20: 0.56 | P20: 0.9 | Q20: 9.9 | R20: 3.74 | S20: 2.992 | U20: 37 | V20: 20.72
B21: 9. | C21: Plzeň 12˚ fľaša | D21: 39 | F21: 39 | G21: 23 | I21: 16 | J21: 1.3 | K21: 20.8 | L21: ks. | O21: 0.694 | P21: 1.3 | Q21: 20.8 | R21: 9.696 | S21: 7.7568 | U21: 23 | V21: 15.962
B22: 10. | F22: 0 | I22: 0 | K22: 0 | L22: ks. | P22: 0 | Q22: 0 | R22: 0 | S22: 0 | U22: 0 | V22: 0
B23: 11. | C23: Gambrinus plech. | D23: 32 | F23: 32 | G23: 30 | I23: 2 | J23: 0.9 | K23: 1.8 | L23: ks. | O23: 0.49 | P23: 0.9 | Q23: 1.8 | R23: 0.82 | S23: 0.656 | U23: 30 | V23: 14.7
B24: 12. | F24: 0 | I24: 0 | K24: 0 | L24: ks. | O24: 0.42 | P24: 0 | Q24: 0 | R24: 0 | S24: 0 | U24: 0 | V24: 0
B25: 13. | F25: 0 | I25: 0 | K25: 0 | L25: ks. | O25: 0.75 | P25: 0 | Q25: 0 | R25: 0 | S25: 0 | U25: 0 | V25: 0
B26: 14. | F26: 0 | I26: 0 | K26: 0 | P26: 0 | Q26: 0 | R26: 0 | S26: 0 | U26: 0 | V26: 0
B27: 15. | C27: Práznde sudy | F27: 0 | I27: 0 | K27: 0 | L27: ks. | P27: 0 | Q27: 0 | R27: 0 | S27: 0 | U27: 0 | V27: 0
B28: 16. | C28: Práznde fľaše | F28: 0 | I28: 0 | K28: 0 | L28: ks. | P28: 0 | Q28: 0 | R28: 0 | S28: 0 | U28: 0 | V28: 0
B29: 17. | F29: 0 | I29: 0 | K29: 0 | P29: 0 | Q29: 0 | R29: 0 | S29: 0 | U29: 0 | V29: 0
B30: 18. | F30: 0 | I30: 0 | K30: 0 | P30: 0 | Q30: 0 | R30: 0 | S30: 0 | U30: 0 | V30: 0
B31: 19. | C31: Víno biele | D31: 22.1 | E31: 24 | F31: 46.1 | G31: 42.1 | I31: 4 | J31: 3 | K31: 12 | L31: l. | O31: 1.29 | P31: 3 | Q31: 12 | R31: 6.84 | S31: 5.472 | U31: 42.1 | V31: 54.309
B32: 20. | C32: Víno červené | D32: 13.5 | E32: 12 | F32: 25.5 | G32: 23.5 | I32: 2 | J32: 3 | K32: 6 | L32: l. | O32: 1.29 | P32: 3 | Q32: 6 | R32: 3.42 | S32: 2.736 | U32: 23.5 | V32: 30.315
B33: 21. | F33: 0 | I33: 0 | K33: 0 | P33: 0 | Q33: 0 | R33: 0 | S33: 0 | U33: 0 | V33: 0
B34: 22. | C34: Vodka | D34: 27.4 | E34: 24 | F34: 51.4 | G34: 47.9 | I34: 3.5 | J34: 12 | K34: 42 | L34: l. | O34: 6.54 | P34: 12 | Q34: 42 | R34: 19.11 | S34: 15.288 | U34: 47.9 | V34: 313.266
B35: 23. | C35: Borovička | D35: 29.95 | E35: 36 | F35: 65.95 | G35: 62.8 | I35: 3.15 | J35: 12 | K35: 37.8 | L35: l. | O35: 6.56 | P35: 12 | Q35: 37.8 | R35: 17.136 | S35: 13.7088 | U35: 62.8 | V35: 411.968
B36: 24. | C36: Koniferka | D36: 4.1 | E36: 8.4 | F36: 12.5 | G36: 10.95 | I36: 1.55 | J36: 14 | K36: 21.7 | L36: l. | O36: 5.95 | P36: 14 | Q36: 21.7 | R36: 12.4775 | S36: 9.982 | U36: 10.95 | V36: 65.1525
B37: 25. | C37: RUM | D37: 7.5 | E37: 6 | F37: 13.5 | G37: 13.5 | I37: 0 | J37: 12 | K37: 0 | L37: l. | O37: 5.78 | P37: 12 | Q37: 0 | R37: 0 | S37: 0 | U37: 13.5 | V37: 78.03
B38: 26. | C38: Hruška | D38: 2.9 | E38: 5 | F38: 7.9 | G38: 7.2 | I38: 0.7 | J38: 14 | K38: 9.8 | L38: l. | O38: 7.2 | P38: 14 | Q38: 9.8 | R38: 4.76 | S38: 3.808 | U38: 7.2 | V38: 51.84
B39: 27. | C39: Spišská borovička | D39: 4.35 | F39: 4.35 | G39: 4.1 | I39: 0.25 | J39: 14 | K39: 3.5 | L39: l. | O39: 8.55 | P39: 14 | Q39: 3.5 | R39: 1.3625 | S39: 1.09 | U39: 4.1 | V39: 35.055
B40: 28. | C40: Trenčianské hradné | D40: 2.9 | E40: 12 | F40: 14.9 | G40: 13.95 | I40: 0.95 | J40: 12 | K40: 11.4 | L40: l. | O40: 6.636 | P40: 12 | Q40: 11.4 | R40: 5.0958 | S40: 4.07664 | U40: 13.95 | V40: 92.5722
B41: 29. | C41: Karpatská horká | D41: 11.35 | F41: 11.35 | G41: 9.75 | I41: 1.6 | J41: 12 | K41: 19.2 | L41: l. | O41: 5.32 | P41: 12 | Q41: 19.2 | R41: 10.688 | S41: 8.5504 | U41: 9.75 | V41: 51.87
B42: 30. | C42: Vodka Peach | D42: 3.6 | E42: 2 | F42: 5.6 | G42: 5.4 | I42: 0.2 | J42: 14 | K42: 2.8 | L42: l. | O42: 4.41 | P42: 14 | Q42: 2.8 | R42: 1.918 | S42: 1.5344 | U42: 5.4 | V42: 23.814
B43: 31. | C43: Becherovka | D43: 3.7 | E43: 2 | F43: 5.7 | G43: 5.15 | I43: 0.55 | J43: 20 | K43: 11 | L43: l. | O43: 10.67 | P43: 20 | Q43: 11 | R43: 5.1315 | S43: 4.1052 | U43: 5.15 | V43: 54.9505
B44: 32. | C44: Fernet | D44: 0.15 | E44: 6 | F44: 6.15 | G44: 6 | I44: 0.15 | J44: 20 | K44: 3 | L44: l. | O44: 9.69 | P44: 20 | Q44: 3 | R44: 1.5465 | S44: 1.2372 | U44: 6 | V44: 58.14
B45: 33. | C45: Slivka | D45: 5 | F45: 5 | G45: 4.9 | I45: 0.1 | J45: 14 | K45: 1.4 | L45: l. | O45: 7.21 | P45: 14 | Q45: 1.4 | R45: 0.679 | S45: 0.5432 | U45: 4.9 | V45: 35.329
B46: 34. | C46: Bošácka slivovica | E46: 5 | F46: 5 | G46: 4.9 | I46: 0.1 | J46: 24 | K46: 2.4 | L46: l. | O46: 17.61 | P46: 24 | Q46: 2.4 | R46: 0.639 | S46: 0.5112 | U46: 4.9 | V46: 86.289
B47: 35. | C47: Karpatská KB | F47: 0 | I47: 0 | J47: 20 | K47: 0 | L47: l. | O47: 5.998 | P47: 20 | Q47: 0 | R47: 0 | S47: 0 | U47: 0 | V47: 0
B48: 36. | C48: Fernet Citrus | F48: 0 | I48: 0 | J48: 20 | K48: 0 | L48: l. | O48: 9.69 | P48: 20 | Q48: 0 | R48: 0 | S48: 0 | U48: 0 | V48: 0
B49: 37. | C49: Pepermint | D49: 2.95 | E49: 3 | F49: 5.95 | G49: 5.9 | I49: 0.05 | J49: 12 | K49: 0.6 | L49: l. | O49: 5.2 | P49: 12 | Q49: 0.6 | R49: 0.34 | S49: 0.272 | U49: 5.9 | V49: 30.68
B50: 38. | C50: Nicolaus vodka | D50: 0.75 | E50: 3 | F50: 3.75 | G50: 3.45 | I50: 0.3 | J50: 18 | K50: 5.4 | L50: l. | O50: 8.62 | P50: 18 | Q50: 5.4 | R50: 2.814 | S50: 2.2512 | U50: 3.45 | V50: 29.739
B51: 39. | C51: Captain Morgan | D51: 2.45 | F51: 2.45 | G51: 2.3 | I51: 0.15 | J51: 24 | K51: 3.6 | L51: l. | O51: 11.74 | P51: 24 | Q51: 3.6 | R51: 1.839 | S51: 1.4712 | U51: 2.3 | V51: 27.002
B52: 40. | F52: 0 | I52: 0 | K52: 0 | P52: 0 | Q52: 0 | R52: 0 | S52: 0 | U52: 0 | V52: 0
B53: 41. | F53: 0 | I53: 0 | K53: 0 | P53: 0 | Q53: 0 | R53: 0 | S53: 0 | U53: 0 | V53: 0
P54: 0
D55: =SUM(D13:D53) -> 640.75 | G55: =SUM(G13:G53) -> 823.95 | J55: Celkom: | K55: =SUM(K13:K53) -> 389.78 | P55: Celkom: | Q55: =SUM(Q13:Q53) -> 389.78 | R55: =SUM(R13:R53) -> 202.506 | S55: =SUM(S13:S53) -> 162.0048 | U55: Za tovar: | V55: =SUM(V13:V53) -> 1947.7872
C62: Strana 2: | O62: Strana 2:
B63: P.Č. | C63: Názov tovaru | D63: Poč. stav | E63: Denný príjem | F63: Spolu | G63: Zostatok v sklade | I63: Denný predaj | J63: Cena € | K63: Suma celkom € | O63: Nákupná cena | P63: Predajná cena | Q63: Tržba | R63: Zisk | S63: Zisk po zdanení | U63: Zostatok v krčme | V63: Suma tovaru
B65: 42. | C65: PEPSI + 7UP 0,5l | F65: =D65+E65 -> 0 | I65: =D65+E65-G65 -> 0 | J65: 1.1 | K65: =I65*J65 -> 0 | L65: ks. | O65: 0.78 | P65: =J65 -> 1.1 | Q65: =I65*J65 -> 0 | R65: =(P65-O65)*I65 -> 0 | S65: =R65*0.8 -> 0 | U65: =G65 -> 0 | V65: =U65*O65 -> 0
B66: 43. | C66: Sprite +Tonic | D66: 19.8 | F66: =D66+E66 -> 19.8 | G66: 16.8 | I66: =D66+E66-G66 -> 3 | J66: 2 | K66: =I66*J66 -> 6 | L66: ks. | O66: 0.726 | P66: =J66 -> 2 | Q66: =I66*J66 -> 6 | R66: =(P66-O66)*I66 -> 3.822 | S66: =R66*0.8 -> 3.0576 | U66: =G66 -> 16.8 | V66: =U66*O66 -> 12.1968
B67: 44. | C67: Minerálka 0,5l | D67: 67 | F67: 67 | G67: 60 | I67: 7 | J67: 0.9 | K67: 6.3 | L67: ks. | O67: 0.528 | P67: 0.9 | Q67: 6.3 | R67: =(P67-O67)*I67 -> 2.604 | S67: 2.0832 | U67: 60 | V67: 31.68
B68: 45. | C68: Kofola 0,5l | D68: 13 | F68: 13 | G68: 12 | I68: 1 | J68: 1.1 | K68: 1.1 | L68: ks. | O68: 0.49 | P68: 1.1 | Q68: 1.1 | R68: 0.61 | S68: 0.488 | U68: 12 | V68: 5.88
B69: 46. | C69: Džús krabička | D69: 60 | F69: 60 | G69: 58 | I69: 2 | J69: 0.5 | K69: 1 | L69: ks. | O69: 0.17 | P69: 0.5 | Q69: 1 | R69: 0.66 | S69: 0.528 | U69: 58 | V69: 9.86
B70: 47. | C70: Energetický nápoj | D70: 6 | E70: -2 | F70: 4 | G70: 4 | I70: 0 | J70: 1.8 | K70: 0 | L70: ks. | O70: 0.25 | P70: 1.8 | Q70: 0 | R70: 0 | S70: 0 | U70: 4 | V70: 1
B71: 48. | C71: Limo 0,33l fľaša | D71: 51 | E71: 20 | F71: 71 | G71: 66 | I71: 5 | J71: 0.5 | K71: 2.5 | L71: ks. | O71: 0.1 | P71: 0.5 | Q71: 2.5 | R71: 2 | S71: 1.6 | U71: 66 | V71: 6.6
B72: 49. | C72: Minerálka 2l | D72: 52 | F72: 52 | G72: 47.6 | I72: 4.4 | J72: 1.5 | K72: 6.6 | L72: l. | O72: 0.23 | P72: 1.5 | Q72: 6.6 | R72: 5.588 | S72: 4.4704 | U72: 47.6 | V72: 10.948
B73: 50. | C73: Relax džús fľaška | D73: 15 | E73: 48 | F73: 63 | G73: 62 | I73: 1 | J73: 1 | K73: 1 | L73: ks. | O73: 0.55 | P73: 1 | Q73: 1 | R73: 0.45 | S73: 0.36 | U73: 62 | V73: 34.1
B74: 51. | C74: Ďžús nalievaný | D74: 16.5 | F74: 16.5 | G74: 15.4 | I74: 1.1 | J74: 3 | K74: 3.3 | L74: l. | O74: 1.188 | P74: 3 | Q74: 3.3 | R74: 1.9932 | S74: 1.59456 | U74: 15.4 | V74: 18.2952
B75: 52. | C75: Toma | D75: 23 | F75: 23 | G75: 23 | I75: 0 | J75: 1.1 | K75: 0 | L75: l. | O75: 0.33 | P75: 1.1 | Q75: 0 | R75: 0 | S75: 0 | U75: 23 | V75: 7.59
B76: 53. | C76: HELLO Jupík | D76: 36 | F76: 36 | G76: 33 | I76: 3 | J76: 0.8 | K76: 2.4 | L76: ks. | O76: 0.33 | P76: 0.8 | Q76: 2.4 | R76: 1.41 | S76: 1.128 | U76: 33 | V76: 10.89
B77: 54. | C77: COCA COLA | D77: 27 | F77: 27 | G77: 25 | I77: 2 | J77: 1.1 | K77: 2.2 | L77: ks. | O77: 0.624 | P77: 1.1 | Q77: 2.2 | R77: 0.952 | S77: 0.7616 | U77: 25 | V77: 15.6
B78: 55. | C78: Vinea | D78: 21 | E78: 6 | F78: 27 | G78: 25 | I78: 2 | J78: 1.1 | K78: 2.2 | L78: ks. | O78: 0.504 | P78: 1.1 | Q78: 2.2 | R78: 1.192 | S78: 0.9536 | U78: 25 | V78: 12.6
B79: 56. | C79: ALOE VERA | E79: 24 | F79: 24 | G79: 24 | I79: 0 | J79: 1.2 | K79: 0 | L79: ks. | O79: 0.65 | P79: 1.2 | Q79: 0 | R79: 0 | S79: 0 | U79: 24 | V79: 15.6
B80: 57. | F80: 0 | I80: 0 | K80: 0 | P80: 0 | Q80: 0 | R80: 0 | S80: 0 | U80: 0 | V80: 0
B81: 58. | C81: Káva turecká | D81: 860 | F81: 860 | G81: 780 | I81: =(D81+E81-G81)/7 -> 11.42857143 | J81: 0.5 | K81: 5.714285714 | L81: gr. | O81: 0.034 | P81: 0.5 | Q81: =K81 -> 5.714285714 | R81: 5.325714286 | S81: 4.260571429 | U81: 780 | V81: 26.52
B82: 59. | C82: Nescafé 3v1 | D82: 55 | F82: 55 | G82: 52 | I82: 3 | J82: 0.5 | K82: 1.5 | L82: ks. | O82: 0.14 | P82: 0.5 | Q82: 1.5 | R82: 1.08 | S82: 0.864 | U82: 52 | V82: 7.28
B83: 60. | C83: Čaj | D83: 104 | F83: 104 | G83: 104 | I83: 0 | J83: 0.5 | K83: =I83*J83 -> 0 | L83: ks. | O83: 0.058 | P83: 0.5 | Q83: =I83*J83 -> 0 | R83: 0 | S83: 0 | U83: 104 | V83: =U83*O84 -> 3.744
B84: 61. | C84: Mlieko do kávy | D84: 32 | E84: 100 | F84: 132 | G84: 128 | I84: 4 | J84: 0.1 | K84: =I84*J84 -> 0.4 | L84: ks. | O84: 0.036 | P84: 0.1 | Q84: =I84*J84 -> 0.4 | R84: 0.256 | S84: 0.2048 | U84: 128 | V84: =U84*O85 -> 1.024
B85: 62. | C85: Cukor HB | D85: 173 | E85: 950 | F85: 1123 | G85: 1095 | I85: 28 | J85: 0.05 | K85: =I85*J85 -> 1.4 | L85: ks. | O85: 0.008 | P85: 0.05 | Q85: =I85*J85 -> 1.4 | R85: 1.176 | S85: 0.9408 | U85: 1095 | V85: =U85*O86 -> 0
B86: 63. | F86: 0 | I86: 0 | K86: =I86*J86 -> 0 | P86: 0 | Q86: =I86*J86 -> 0 | R86: 0 | S86: 0 | U86: 0 | V86: =U86*O87 -> 0
B87: 64. | F87: 0 | I87: 0 | K87: 0 | P87: 0 | Q87: 0 | R87: 0 | S87: 0 | U87: 0 | V87: 0
B88: 65. | F88: 0 | I88: 0 | K88: 0 | P88: 0 | Q88: 0 | R88: 0 | S88: 0 | U88: 0 | V88: 0
B89: 66. | C89: Golden | D89: 27 | E89: 30 | F89: 57 | G89: 43 | I89: 14 | J89: 3.4 | K89: 47.6 | L89: ks. | O89: 3.22 | P89: 3.4 | Q89: 47.6 | R89: 2.52 | S89: 2.016 | U89: 43 | V89: 138.46
B90: 67. | C90: Petra 3,40€ | D90: 3 | E90: 20 | F90: 23 | G90: 22 | I90: 1 | J90: 3.4 | K90: 3.4 | L90: ks. | O90: 3.23 | P90: 3.4 | Q90: 3.4 | R90: 0.17 | S90: 0.136 | U90: 22 | V90: 71.06
B91: 68. | C91: Malboro 3,70€ | D91: 10 | E91: 10 | F91: 20 | G91: 14 | I91: 6 | J91: 3.7 | K91: 22.2 | L91: ks. | O91: 3.51 | P91: 3.7 | Q91: 22.2 | R91: 1.14 | S91: 0.912 | U91: 14 | V91: 49.14
B92: 69. | C92: LM 3,40€ | D92: 18 | E92: 60 | F92: 78 | G92: 61 | I92: 17 | J92: 3.4 | K92: 57.8 | L92: ks. | O92: 3.23 | P92: 3.4 | Q92: 57.8 | R92: 2.89 | S92: 2.312 | U92: 61 | V92: 197.03
B93: 70. | C93: Mars | E93: 10 | F93: 10 | G93: 10 | I93: 0 | J93: 3.4 | K93: 0 | L93: ks. | O93: 3.22 | P93: 3.4 | Q93: 0 | R93: 0 | S93: 0 | U93: 10 | V93: 32.2
B94: 71. | C94: West | D94: 37 | E94: 20 | F94: 57 | G94: 49 | I94: 8 | J94: 3.2 | K94: 25.6 | L94: ks. | O94: 3.04 | P94: 3.2 | Q94: 25.6 | R94: 1.28 | S94: 1.024 | U94: 49 | V94: 148.96
B95: 72. | F95: 0 | I95: 0 | K95: 0 | P95: 0 | Q95: 0 | R95: 0 | S95: 0 | U95: 0 | V95: 0
B96: 73. | C96: Malboro 4,00€ | F96: 0 | I96: 0 | J96: 4 | K96: 0 | L96: ks. | O96: 3.9 | P96: 4 | Q96: 0 | R96: 0 | S96: 0 | U96: 0 | V96: 0
B97: 74. | F97: 0 | I97: 0 | K97: 0 | P97: 0 | Q97: 0 | R97: 0 | S97: 0 | U97: 0 | V97: 0
B98: 75. | F98: 0 | I98: 0 | K98: 0 | P98: 0 | Q98: 0 | R98: 0 | S98: 0 | U98: 0 | V98: 0
B99: 76. | F99: 0 | I99: 0 | K99: 0 | P99: 0 | Q99: 0 | R99: 0 | S99: 0 | U99: 0 | V99: 0
B100: 77. | C100: Hyg. vreckovky | D100: 11 | F100: 11 | G100: 10 | I100: 1 | J100: 0.2 | K100: 0.2 | L100: ks. | O100: 0.089 | P100: 0.2 | Q100: 0.2 | R100: 0.111 | S100: 0.0888 | U100: 10 | V100: 0.89
B101: 78. | C101: Zapaľovač | D101: 52 | F101: 52 | G101: 52 | I101: 0 | J101: 0.5 | K101: 0 | L101: ks. | O101: 0.17 | P101: 0.5 | Q101: 0 | R101: 0 | S101: 0 | U101: 52 | V101: 8.84
B102: 79. | C102: Zápalky | D102: 46 | F102: 46 | G102: 46 | I102: 0 | J102: 0.1 | K102: 0 | L102: ks. | O102: 0.04 | P102: 0.1 | Q102: 0 | R102: 0 | S102: 0 | U102: 46 | V102: 1.84
B103: 80. | F103: 0 | I103: 0 | K103: 0 | P103: 0 | Q103: 0 | R103: 0 | S103: 0 | U103: 0 | V103: 0
B104: 81. | F104: 0 | I104: 0 | K104: 0 | P104: 0 | Q104: 0 | R104: 0 | S104: 0 | U104: 0 | V104: 0
B105: 82. | F105: 0 | I105: 0 | K105: 0 | P105: 0 | Q105: 0 | R105: 0 | S105: 0 | U105: 0 | V105: 0
D107: =SUM(D65:D105) -> 1835.3 | G107: =SUM(G65:G105) -> 2937.8 | J107: Celkom : | K107: =SUM(K65:K105) -> 200.4142857 | P107: Celkom: | Q107: =SUM(Q65:Q105) -> 200.4142857 | R107: =SUM(R65:R105) -> 37.22991429 | S107: =SUM(S65:S105) -> 29.78393143 | U107: Za tovar: | V107: =SUM(V65:V105) -> 879.828
C114: Strana 3: | O114: Strana 3:
B115: P.Č. | C115: Názov tovaru | D115: Poč. stav | E115: Denný príjem | F115: Spolu | G115: Zostatok v sklade | I115: Denný predaj | J115: Cena € | K115: Suma celkom € | O115: Nákupná cena | P115: Predajná cena | Q115: Tržba | R115: Zisk | S115: Zisk po zdanení | U115: Zostatok v krčme | V115: Suma tovaru
B117: 83. | C117: Kinderko | F117: =D117+E117 -> 0 | I117: =D117+E117-G117 -> 0 | J117: 1.2 | K117: =I117*J117 -> 0 | L117: ks. | O117: 0.93 | P117: =J117 -> 1.2 | Q117: =I117*J117 -> 0 | R117: =(P117-O117)*I117 -> 0 | S117: =R117*0.8 -> 0 | U117: =G117 -> 0 | V117: =U117*O117 -> 0
B118: 84. | C118: Horalka | D118: 23 | F118: =D118+E118 -> 23 | G118: 19 | I118: =D118+E118-G118 -> 4 | J118: 0.6 | K118: =I118*J118 -> 2.4 | L118: ks. | O118: 0.31 | P118: =J118 -> 0.6 | Q118: =I118*J118 -> 2.4 | R118: =(P118-O118)*I118 -> 1.16 | S118: =R118*0.8 -> 0.928 | U118: =G118 -> 19 | V118: =U118*O118 -> 5.89
B119: 85. | C119: Kávenky | D119: 25 | F119: 25 | G119: 25 | I119: 0 | J119: 0.6 | K119: 0 | L119: ks. | O119: 0.28 | P119: 0.6 | Q119: 0 | R119: =(P119-O119)*I119 -> 0 | S119: 0 | U119: 25 | V119: 7
B120: 86. | C120: Kinder čokoláda | D120: 5 | F120: 5 | G120: 5 | I120: 0 | J120: 1.8 | K120: 0 | L120: ks. | O120: 0.9 | P120: 1.8 | Q120: 0 | R120: 0 | S120: 0 | U120: 5 | V120: 4.5
B121: 87. | C121: 3-BIT | D121: 15 | F121: 15 | G121: 15 | I121: 0 | J121: 0.6 | K121: 0 | L121: ks. | O121: 0.32 | P121: 0.6 | Q121: 0 | R121: 0 | S121: 0 | U121: 15 | V121: 4.8
B122: 88. | C122: Banán | D122: 7 | E122: 10 | F122: 17 | G122: 14 | I122: 3 | J122: 0.6 | K122: 1.8 | L122: ks. | O122: 0.26 | P122: 0.6 | Q122: 1.8 | R122: 1.02 | S122: 0.816 | U122: 14 | V122: 3.64
B123: 89. | C123: Margot | D123: 13 | F123: 13 | G123: 12 | I123: 1 | J123: 0.6 | K123: 0.6 | L123: ks. | O123: 0.4 | P123: 0.6 | Q123: 0.6 | R123: 0.2 | S123: 0.16 | U123: 12 | V123: 4.8
B124: 90. | C124: Lízatko 2 | F124: 0 | I124: 0 | J124: 0.2 | K124: 0 | L124: ks. | O124: 0.04 | P124: 0.2 | Q124: 0 | R124: 0 | S124: 0 | U124: 0 | V124: 0
B125: 91. | C125: Mila | D125: 17 | F125: 17 | G125: 17 | I125: 0 | J125: 0.6 | K125: 0 | L125: ks. | O125: 0.37 | P125: 0.6 | Q125: 0 | R125: 0 | S125: 0 | U125: 17 | V125: 6.29
B126: 92. | C126: Lízatko | D126: 123 | F126: 123 | G126: 123 | I126: 0 | J126: 0.3 | K126: 0 | L126: ks. | O126: 0.1 | P126: 0.3 | Q126: 0 | R126: 0 | S126: 0 | U126: 123 | V126: 12.3
B127: 93. | C127: Chipsy | D127: 24 | E127: 24 | F127: 48 | G127: 39 | I127: 9 | J127: 1 | K127: 9 | L127: ks. | O127: 0.42 | P127: 1 | Q127: 9 | R127: 5.22 | S127: 4.176 | U127: 39 | V127: 16.38
B128: 94. | C128: Tofife | D128: 9 | F128: 9 | G128: 9 | I128: 0 | J128: 3 | K128: 0 | L128: ks. | O128: 1.62 | P128: 3 | Q128: 0 | R128: 0 | S128: 0 | U128: 9 | V128: 14.58
B129: 95. | C129: Milka čok. | D129: 2 | E129: 5 | F129: 7 | G129: 7 | I129: 0 | J129: 1.5 | K129: 0 | L129: ks. | O129: 0.73 | P129: 1.5 | Q129: 0 | R129: 0 | S129: 0 | U129: 7 | V129: 5.11
B130: 96. | C130: Tyčinky DRU | D130: 28 | F130: 28 | G130: 28 | I130: 0 | J130: 0.5 | K130: 0 | L130: ks. | O130: 0.23 | P130: 0.5 | Q130: 0 | R130: 0 | S130: 0 | U130: 28 | V130: 6.44
B131: 97. | C131: Arašidy | D131: 8 | F131: 8 | G131: 8 | I131: 0 | J131: 0.8 | K131: 0 | L131: ks. | O131: 0.41 | P131: 0.8 | Q131: 0 | R131: 0 | S131: 0 | U131: 8 | V131: 3.28
B132: 98. | C132: TIC-TAC | D132: 74 | F132: 74 | G132: 71 | I132: 3 | J132: 0.6 | K132: 1.8 | L132: ks. | O132: 0.3 | P132: 0.6 | Q132: 1.8 | R132: 0.9 | S132: 0.72 | U132: 71 | V132: 21.3
B133: 99. | C133: Žuvažky plátky | D133: 56 | F133: 56 | G133: 45 | I133: 11 | J133: 0.1 | K133: 1.1 | L133: ks. | O133: 0.052 | P133: 0.1 | Q133: 1.1 | R133: 0.528 | S133: 0.4224 | U133: 45 | V133: 2.34
B134: 100. | C134: Žuvažky dražé | D134: 7 | E134: 60 | F134: 67 | G134: 64 | I134: 3 | J134: 0.6 | K134: 1.8 | L134: ks. | O134: 0.37 | P134: 0.6 | Q134: 1.8 | R134: 0.69 | S134: 0.552 | U134: 64 | V134: 23.68
B135: 101. | C135: Hašlerky | D135: 8 | F135: 8 | G135: 8 | I135: 0 | J135: 0.9 | K135: 0 | L135: ks. | O135: 0.54 | P135: 0.9 | Q135: 0 | R135: 0 | S135: 0 | U135: 8 | V135: 4.32
B136: 102. | C136: Žuvačky guličky | D136: 45 | F136: 45 | G136: 45 | I136: 0 | J136: 0.7 | K136: 0 | L136: ks. | O136: 0.3 | P136: 0.7 | Q136: 0 | R136: 0 | S136: 0 | U136: 45 | V136: 13.5
B137: 103. | C137: Chrumky | F137: 0 | I137: 0 | J137: 0.6 | K137: 0 | L137: ks. | O137: 0.27 | P137: 0.6 | Q137: 0 | R137: 0 | S137: 0 | U137: 0 | V137: 0
B138: 104. | F138: 0 | I138: 0 | K138: 0 | P138: 0 | Q138: 0 | R138: 0 | S138: 0 | U138: 0 | V138: 0
B139: 105. | F139: 0 | I139: 0 | K139: 0 | P139: 0 | Q139: 0 | R139: 0 | S139: 0 | U139: 0 | V139: 0
B140: 106. | F140: 0 | I140: 0 | K140: 0 | P140: 0 | Q140: 0 | R140: 0 | S140: 0 | U140: 0 | V140: 0
B141: 107. | F141: 0 | I141: 0 | K141: 0 | P141: 0 | Q141: 0 | R141: 0 | S141: 0 | U141: 0 | V141: 0
B142: 108. | F142: 0 | I142: 0 | K142: 0 | P142: 0 | Q142: 0 | R142: 0 | S142: 0 | U142: 0 | V142: 0
U143: 0 | V143: 0
D144: =SUM(D117:D142) -> 489 | G144: =SUM(G117:G142) -> 554 | J144: Celkom: | K144: =SUM(K117:K142) -> 18.5 | P144: Celkom: | Q144: =SUM(Q117:Q142) -> 18.5 | R144: =SUM(R117:R142) -> 9.718 | S144: =SUM(S117:S142) -> 7.7744 | U144: Za tovar: | V144: =SUM(V117:V142) -> 160.15
D147: Stávková: | F147: 10 | I147: Strana 1: | J147: =K55 -> 389.78 | P147: Strana 1 | Q147: =Q55 -> 389.78 | R147: =R55 -> 202.506 | S147: =S55 -> 162.0048 | U147: Strana 1: | V147: =V55 -> 1947.7872
D148: Refil: | I148: Strana 2: | J148: =K107 -> 200.4142857 | P148: Strana 2 | Q148: =Q107 -> 200.4142857 | R148: =R107 -> 37.22991429 | S148: =S107 -> 29.78393143 | U148: Strana 2: | V148: =V107 -> 879.828
D149: Výdavky: | F149: 52.5 | I149: Strana 3: | J149: =K144 -> 18.5 | P149: Strana 3 | Q149: =Q144 -> 18.5 | R149: =R144 -> 9.718 | S149: =S144 -> 7.7744 | U149: Strana 3: | V149: =V144 -> 160.15
E151: Spolu: | F151: =SUM(F147:F149) -> 62.5 | I151: Spolu: | J151: =SUM(J147:J149) -> 608.6942857 | P151: Spolu: | Q151: =SUM(Q147:Q149) -> 608.6942857 | R151: =SUM(R147:R149) -> 249.4539143 | S151: =SUM(S147:S149) -> 199.5631314 | U151: Spolu: | V151: =SUM(V147:V149) -> 2987.7652
P153: Spolu: | Q153: =Q151-F151 -> 546.1942857 | R153: =R151-G151 -> 249.4539143 | S153: =S151-H151 -> 199.5631314
I154: Celkom : | J154: =J151-F151 -> 546.1942857
C156: Zostatok hotovosť: | D156: 546
C158: rozdiel: | D158: =D156-J154 -> -0.1942857143

Sheet 3
D1: Vyučtovanie výčapu | G1: august | J1: /2019 | O1: Denný sumár
N2: Juniorka | O2: Meno: | P2: =I2 -> 0
N3: Šipulová | O3: Dátum: | P3: =I3 -> 0 | Q3: /2019
N4: Hermanová
G5: Meno:
G7: Dátum: | J7: /2019
C10: Strana 1: | O10: Strana 1:
B11: P.Č. | C11: Názov tovaru | D11: Poč. stav | E11: Denný príjem | F11: Spolu | G11: Zostatok v sklade | I11: Denný predaj | J11: Cena € | K11: Suma celkom € | L11: J.M. | O11: Nákupná cena | P11: Predajná cena | Q11: Tržba | R11: Zisk | S11: Zisk po zdanení | U11: Zostatok v krčme | V11: Suma tovaru
B13: 1. | C13: Pernštejn čap. 10˚ | D13: 193.8 | F13: =D13+E13 -> 193.8 | G13: 139.8 | I13: =D13+E13-G13 -> 54 | J13: 2 | K13: =I13*J13 -> 108 | L13: l. | O13: 1.032 | P13: =J13 -> 2 | Q13: =I13*J13 -> 108 | R13: =(P13-O13)*I13 -> 52.272 | S13: =R13*0.8 -> 41.8176 | U13: =G13 -> 139.8 | V13: =U13*O13 -> 144.2736
B14: 2. | C14: Malinovka čap. | D14: 132.8 | F14: 132.8 | G14: 102.1 | I14: 30.7 | J14: 2 | K14: =I14*J14 -> 61.4 | L14: l. | O14: 0.493 | P14: =J14 -> 2 | Q14: =I14*J14 -> 61.4 | R14: =(P14-O14)*I14 -> 46.2649 | S14: =R14*0.8 -> 37.01192 | U14: =G14 -> 102.1 | V14: =U14*O14 -> 50.3353
B15: 3. | C15: Radler čap. | D15: 34.6 | F15: 34.6 | G15: 30 | I15: 4.6 | J15: 2.6 | K15: 11.96 | L15: l. | O15: 1.52 | P15: 2.6 | Q15: 11.96 | R15: =(P15-O15)*I15 -> 4.968 | S15: 3.9744 | U15: 30 | V15: 45.6
B16: 4. | F16: 0 | I16: 0 | K16: 0 | P16: 0 | Q16: 0 | R16: 0 | S16: 0 | U16: 0 | V16: 0
B17: 5. | C17: Šariš 10˚ fľaša | D17: 33 | F17: 33 | G17: 28 | I17: 5 | J17: 0.8 | K17: 4 | L17: ks. | O17: 0.34 | P17: 0.8 | Q17: 4 | R17: 2.3 | S17: 1.84 | U17: 28 | V17: 9.52
B18: 6. | C18: Kozel 10˚ fľaša | D18: 32 | F18: 32 | G18: 26 | I18: 6 | J18: 0.9 | K18: 5.4 | L18: ks. | O18: 0.47 | P18: 0.9 | Q18: 5.4 | R18: 2.58 | S18: 2.064 | U18: 26 | V18: 12.22
B19: 7. | C19: Birell nealko fľaša | D19: 34 | F19: 34 | G19: 30 | I19: 4 | J19: 1.2 | K19: 4.8 | L19: ks. | O19: 0.64 | P19: 1.2 | Q19: 4.8 | R19: 2.24 | S19: 1.792 | U19: 30 | V19: 19.2
B20: 8. | C20: Gambrinus fľaša | D20: 37 | F20: 37 | G20: 27 | I20: 10 | J20: 0.9 | K20: 9 | L20: ks. | O20: 0.56 | P20: 0.9 | Q20: 9 | R20: 3.4 | S20: 2.72 | U20: 27 | V20: 15.12
B21: 9. | C21: Plzeň 12˚ fľaša | D21: 23 | F21: 23 | G21: 14 | I21: 9 | J21: 1.3 | K21: 11.7 | L21: ks. | O21: 0.694 | P21: 1.3 | Q21: 11.7 | R21: 5.454 | S21: 4.3632 | U21: 14 | V21: 9.716
B22: 10. | F22: 0 | I22: 0 | K22: 0 | L22: ks. | P22: 0 | Q22: 0 | R22: 0 | S22: 0 | U22: 0 | V22: 0
B23: 11. | C23: Gambrinus plech. | D23: 30 | F23: 30 | G23: 26 | I23: 4 | J23: 0.9 | K23: 3.6 | L23: ks. | O23: 0.49 | P23: 0.9 | Q23: 3.6 | R23: 1.64 | S23: 1.312 | U23: 26 | V23: 12.74
B24: 12. | F24: 0 | I24: 0 | K24: 0 | L24: ks. | O24: 0.42 | P24: 0 | Q24: 0 | R24: 0 | S24: 0 | U24: 0 | V24: 0
B25: 13. | F25: 0 | I25: 0 | K25: 0 | L25: ks. | O25: 0.75 | P25: 0 | Q25: 0 | R25: 0 | S25: 0 | U25: 0 | V25: 0
B26: 14. | F26: 0 | I26: 0 | K26: 0 | P26: 0 | Q26: 0 | R26: 0 | S26: 0 | U26: 0 | V26: 0
B27: 15. | C27: Práznde sudy | F27: 0 | I27: 0 | K27: 0 | L27: ks. | P27: 0 | Q27: 0 | R27: 0 | S27: 0 | U27: 0 | V27: 0
B28: 16. | C28: Práznde fľaše | F28: 0 | I28: 0 | K28: 0 | L28: ks. | P28: 0 | Q28: 0 | R28: 0 | S28: 0 | U28: 0 | V28: 0
B29: 17. | F29: 0 | I29: 0 | K29: 0 | P29: 0 | Q29: 0 | R29: 0 | S29: 0 | U29: 0 | V29: 0
B30: 18. | F30: 0 | I30: 0 | K30: 0 | P30: 0 | Q30: 0 | R30: 0 | S30: 0 | U30: 0 | V30: 0
B31: 19. | C31: Víno biele | D31: 42.1 | F31: 42.1 | G31: 38.2 | I31: 3.9 | J31: 3 | K31: 11.7 | L31: l. | O31: 1.29 | P31: 3 | Q31: 11.7 | R31: 6.669 | S31: 5.3352 | U31: 38.2 | V31: 49.278
B32: 20. | C32: Víno červené | D32: 23.5 | F32: 23.5 | G32: 21.8 | I32: 1.7 | J32: 3 | K32: 5.1 | L32: l. | O32: 1.29 | P32: 3 | Q32: 5.1 | R32: 2.907 | S32: 2.3256 | U32: 21.8 | V32: 28.122
B33: 21. | F33: 0 | I33: 0 | K33: 0 | P33: 0 | Q33: 0 | R33: 0 | S33: 0 | U33: 0 | V33: 0
B34: 22. | C34: Vodka | D34: 47.9 | F34: 47.9 | G34: 42 | I34: 5.9 | J34: 12 | K34: 70.8 | L34: l. | O34: 6.54 | P34: 12 | Q34: 70.8 | R34: 32.214 | S34: 25.7712 | U34: 42 | V34: 274.68
B35: 23. | C35: Borovička | D35: 62.8 | F35: 62.8 | G35: 56 | I35: 6.8 | J35: 12 | K35: 81.6 | L35: l. | O35: 6.56 | P35: 12 | Q35: 81.6 | R35: 36.992 | S35: 29.5936 | U35: 56 | V35: 367.36
B36: 24. | C36: Koniferka | D36: 10.95 | F36: 10.95 | G36: 9.7 | I36: 1.25 | J36: 14 | K36: 17.5 | L36: l. | O36: 5.95 | P36: 14 | Q36: 17.5 | R36: 10.0625 | S36: 8.05 | U36: 9.7 | V36: 57.715
B37: 25. | C37: RUM | D37: 13.5 | F37: 13.5 | G37: 12.05 | I37: 1.45 | J37: 12 | K37: 17.4 | L37: l. | O37: 5.78 | P37: 12 | Q37: 17.4 | R37: 9.019 | S37: 7.2152 | U37: 12.05 | V37: 69.649
B38: 26. | C38: Hruška | D38: 7.2 | F38: 7.2 | G38: 6.8 | I38: 0.4 | J38: 14 | K38: 5.6 | L38: l. | O38: 7.2 | P38: 14 | Q38: 5.6 | R38: 2.72 | S38: 2.176 | U38: 6.8 | V38: 48.96
B39: 27. | C39: Spišská borovička | D39: 4.1 | F39: 4.1 | G39: 4.1 | I39: 0 | J39: 14 | K39: 0 | L39: l. | O39: 8.55 | P39: 14 | Q39: 0 | R39: 0 | S39: 0 | U39: 4.1 | V39: 35.055
B40: 28. | C40: Trenčianské hradné | D40: 13.95 | F40: 13.95 | G40: 11.95 | I40: 2 | J40: 12 | K40: 24 | L40: l. | O40: 6.636 | P40: 12 | Q40: 24 | R40: 10.728 | S40: 8.5824 | U40: 11.95 | V40: 79.3002
B41: 29. | C41: Karpatská horká | D41: 9.75 | F41: 9.75 | G41: 6.7 | I41: 3.05 | J41: 12 | K41: 36.6 | L41: l. | O41: 5.32 | P41: 12 | Q41: 36.6 | R41: 20.374 | S41: 16.2992 | U41: 6.7 | V41: 35.644
B42: 30. | C42: Vodka Peach | D42: 5.4 | F42: 5.4 | G42: 4.65 | I42: 0.75 | J42: 14 | K42: 10.5 | L42: l. | O42: 4.41 | P42: 14 | Q42: 10.5 | R42: 7.1925 | S42: 5.754 | U42: 4.65 | V42: 20.5065
B43: 31. | C43: Becherovka | D43: 5.15 | F43: 5.15 | G43: 5 | I43: 0.15 | J43: 20 | K43: 3 | L43: l. | O43: 10.67 | P43: 20 | Q43: 3 | R43: 1.3995 | S43: 1.1196 | U43: 5 | V43: 53.35
B44: 32. | C44: Fernet | D44: 6 | F44: 6 | G44: 5.5 | I44: 0.5 | J44: 20 | K44: 10 | L44: l. | O44: 9.69 | P44: 20 | Q44: 10 | R44: 5.155 | S44: 4.124 | U44: 5.5 | V44: 53.295
B45: 33. | C45: Slivka | D45: 4.9 | F45: 4.9 | G45: 4.85 | I45: 0.05 | J45: 14 | K45: 0.7 | L45: l. | O45: 7.21 | P45: 14 | Q45: 0.7 | R45: 0.3395 | S45: 0.2716 | U45: 4.85 | V45: 34.9685
B46: 34. | C46: Bošácka slivovica | D46: 4.9 | F46: 4.9 | G46: 4.85 | I46: 0.05 | J46: 24 | K46: 1.2 | L46: l. | O46: 17.61 | P46: 24 | Q46: 1.2 | R46: 0.3195 | S46: 0.2556 | U46: 4.85 | V46: 85.4085
B47: 35. | C47: Karpatská KB | F47: 0 | I47: 0 | J47: 20 | K47: 0 | L47: l. | O47: 5.998 | P47: 20 | Q47: 0 | R47: 0 | S47: 0 | U47: 0 | V47: 0
B48: 36. | C48: Fernet Citrus | F48: 0 | I48: 0 | J48: 20 | K48: 0 | L48: l. | O48: 9.69 | P48: 20 | Q48: 0 | R48: 0 | S48: 0 | U48: 0 | V48: 0
B49: 37. | C49: Pepermint | D49: 5.9 | F49: 5.9 | G49: 5.4 | I49: 0.5 | J49: 12 | K49: 6 | L49: l. | O49: 5.2 | P49: 12 | Q49: 6 | R49: 3.4 | S49: 2.72 | U49: 5.4 | V49: 28.08
B50: 38. | C50: Nicolaus vodka | D50: 3.45 | F50: 3.45 | G50: 2.8 | I50: 0.65 | J50: 18 | K50: 11.7 | L50: l. | O50: 8.62 | P50: 18 | Q50: 11.7 | R50: 6.097 | S50: 4.8776 | U50: 2.8 | V50: 24.136
B51: 39. | C51: Captain Morgan | D51: 2.3 | F51: 2.3 | G51: 2.05 | I51: 0.25 | J51: 24 | K51: 6 | L51: l. | O51: 11.74 | P51: 24 | Q51: 6 | R51: 3.065 | S51: 2.452 | U51: 2.05 | V51: 24.067
B52: 40. | F52: 0 | I52: 0 | K52: 0 | P52: 0 | Q52: 0 | R52: 0 | S52: 0 | U52: 0 | V52: 0
B53: 41. | F53: 0 | I53: 0 | K53: 0 | P53: 0 | Q53: 0 | R53: 0 | S53: 0 | U53: 0 | V53: 0
P54: 0
D55: =SUM(D13:D53) -> 823.95 | G55: =SUM(G13:G53) -> 667.3 | J55: Celkom: | K55: =SUM(K13:K53) -> 539.26 | P55: Celkom: | Q55: =SUM(Q13:Q53) -> 539.26 | R55: =SUM(R13:R53) -> 279.7724 | S55: =SUM(S13:S53) -> 223.81792 | U55: Za tovar: | V55: =SUM(V13:V53) -> 1688.2996
C62: Strana 2: | O62: Strana 2:
B63: P.Č. | C63: Názov tovaru | D63: Poč. stav | E63: Denný príjem | F63: Spolu | G63: Zostatok v sklade | I63: Denný predaj | J63: Cena € | K63: Suma celkom € | O63: Nákupná cena | P63: Predajná cena | Q63: Tržba | R63: Zisk | S63: Zisk po zdanení | U63: Zostatok v krčme | V63: Suma tovaru
B65: 42. | C65: PEPSI + 7UP 0,5l | F65: =D65+E65 -> 0 | I65: =D65+E65-G65 -> 0 | J65: 1.1 | K65: =I65*J65 -> 0 | L65: ks. | O65: 0.78 | P65: =J65 -> 1.1 | Q65: =I65*J65 -> 0 | R65: =(P65-O65)*I65 -> 0 | S65: =R65*0.8 -> 0 | U65: =G65 -> 0 | V65: =U65*O65 -> 0
B66: 43. | C66: Sprite +Tonic | D66: 16.8 | F66: =D66+E66 -> 16.8 | G66: 15.1 | I66: =D66+E66-G66 -> 1.7 | J66: 2 | K66: =I66*J66 -> 3.4 | L66: ks. | O66: 0.726 | P66: =J66 -> 2 | Q66: =I66*J66 -> 3.4 | R66: =(P66-O66)*I66 -> 2.1658 | S66: =R66*0.8 -> 1.73264 | U66: =G66 -> 15.1 | V66: =U66*O66 -> 10.9626
B67: 44. | C67: Minerálka 0,5l | D67: 60 | F67: 60 | G67: 44 | I67: 16 | J67: 0.9 | K67: 14.4 | L67: ks. | O67: 0.528 | P67: 0.9 | Q67: 14.4 | R67: =(P67-O67)*I67 -> 5.952 | S67: 4.7616 | U67: 44 | V67: 23.232
B68: 45. | C68: Kofola 0,5l | D68: 12 | F68: 12 | G68: 12 | I68: 0 | J68: 1.1 | K68: 0 | L68: ks. | O68: 0.49 | P68: 1.1 | Q68: 0 | R68: 0 | S68: 0 | U68: 12 | V68: 5.88
B69: 46. | C69: Džús krabička | D69: 58 | F69: 58 | G69: 58 | I69: 0 | J69: 0.5 | K69: 0 | L69: ks. | O69: 0.17 | P69: 0.5 | Q69: 0 | R69: 0 | S69: 0 | U69: 58 | V69: 9.86
B70: 47. | C70: Energetický nápoj | D70: 4 | F70: 4 | G70: 4 | I70: 0 | J70: 1.8 | K70: 0 | L70: ks. | O70: 0.25 | P70: 1.8 | Q70: 0 | R70: 0 | S70: 0 | U70: 4 | V70: 1
B71: 48. | C71: Limo 0,33l fľaša | D71: 66 | F71: 66 | G71: 60 | I71: 6 | J71: 0.5 | K71: 3 | L71: ks. | O71: 0.1 | P71: 0.5 | Q71: 3 | R71: 2.4 | S71: 1.92 | U71: 60 | V71: 6
B72: 49. | C72: Minerálka 2l | D72: 47.6 | F72: 47.6 | G72: 44.1 | I72: 3.5 | J72: 1.5 | K72: 5.25 | L72: l. | O72: 0.23 | P72: 1.5 | Q72: 5.25 | R72: 4.445 | S72: 3.556 | U72: 44.1 | V72: 10.143
B73: 50. | C73: Relax džús fľaška | D73: 62 | F73: 62 | G73: 61 | I73: 1 | J73: 1 | K73: 1 | L73: ks. | O73: 0.55 | P73: 1 | Q73: 1 | R73: 0.45 | S73: 0.36 | U73: 61 | V73: 33.55
B74: 51. | C74: Ďžús nalievaný | D74: 15.4 | F74: 15.4 | G74: 14.2 | I74: 1.2 | J74: 3 | K74: 3.6 | L74: l. | O74: 1.188 | P74: 3 | Q74: 3.6 | R74: 2.1744 | S74: 1.73952 | U74: 14.2 | V74: 16.8696
B75: 52. | C75: Toma | D75: 23 | F75: 23 | G75: 18 | I75: 5 | J75: 1.1 | K75: 5.5 | L75: l. | O75: 0.33 | P75: 1.1 | Q75: 5.5 | R75: 3.85 | S75: 3.08 | U75: 18 | V75: 5.94
B76: 53. | C76: HELLO Jupík | D76: 33 | F76: 33 | G76: 33 | I76: 0 | J76: 0.8 | K76: 0 | L76: ks. | O76: 0.33 | P76: 0.8 | Q76: 0 | R76: 0 | S76: 0 | U76: 33 | V76: 10.89
B77: 54. | C77: COCA COLA | D77: 25 | F77: 25 | G77: 22 | I77: 3 | J77: 1.1 | K77: 3.3 | L77: ks. | O77: 0.624 | P77: 1.1 | Q77: 3.3 | R77: 1.428 | S77: 1.1424 | U77: 22 | V77: 13.728
B78: 55. | C78: Vinea | D78: 25 | F78: 25 | G78: 24 | I78: 1 | J78: 1.1 | K78: 1.1 | L78: ks. | O78: 0.504 | P78: 1.1 | Q78: 1.1 | R78: 0.596 | S78: 0.4768 | U78: 24 | V78: 12.096
B79: 56. | C79: ALOE VERA | D79: 24 | F79: 24 | G79: 19 | I79: 5 | J79: 1.2 | K79: 6 | L79: ks. | O79: 0.65 | P79: 1.2 | Q79: 6 | R79: 2.75 | S79: 2.2 | U79: 19 | V79: 12.35
B80: 57. | F80: 0 | I80: 0 | K80: 0 | P80: 0 | Q80: 0 | R80: 0 | S80: 0 | U80: 0 | V80: 0
B81: 58. | C81: Káva turecká | D81: 780 | F81: 780 | G81: 700 | I81: =(D81+E81-G81)/7 -> 11.42857143 | J81: 0.5 | K81: 5.714285714 | L81: gr. | O81: 0.034 | P81: 0.5 | Q81: =K81 -> 5.714285714 | R81: 5.325714286 | S81: 4.260571429 | U81: 700 | V81: 23.8
B82: 59. | C82: Nescafé 3v1 | D82: 52 | F82: 52 | G82: 50 | I82: 2 | J82: 0.5 | K82: 1 | L82: ks. | O82: 0.14 | P82: 0.5 | Q82: 1 | R82: 0.72 | S82: 0.576 | U82: 50 | V82: 7
B83: 60. | C83: Čaj | D83: 104 | F83: 104 | G83: 102 | I83: 2 | J83: 0.5 | K83: =I83*J83 -> 1 | L83: ks. | O83: 0.058 | P83: 0.5 | Q83: =I83*J83 -> 1 | R83: 0.884 | S83: 0.7072 | U83: 102 | V83: =U83*O84 -> 3.672
B84: 61. | C84: Mlieko do kávy | D84: 128 | F84: 128 | G84: 126 | I84: 2 | J84: 0.1 | K84: =I84*J84 -> 0.2 | L84: ks. | O84: 0.036 | P84: 0.1 | Q84: =I84*J84 -> 0.2 | R84: 0.128 | S84: 0.1024 | U84: 126 | V84: =U84*O85 -> 1.008
B85: 62. | C85: Cukor HB | D85: 1095 | F85: 1095 | G85: 1071 | I85: 24 | J85: 0.05 | K85: =I85*J85 -> 1.2 | L85: ks. | O85: 0.008 | P85: 0.05 | Q85: =I85*J85 -> 1.2 | R85: 1.008 | S85: 0.8064 | U85: 1071 | V85: =U85*O86 -> 0
B86: 63. | F86: 0 | I86: 0 | K86: =I86*J86 -> 0 | P86: 0 | Q86: =I86*J86 -> 0 | R86: 0 | S86: 0 | U86: 0 | V86: =U86*O87 -> 0
B87: 64. | F87: 0 | I87: 0 | K87: 0 | P87: 0 | Q87: 0 | R87: 0 | S87: 0 | U87: 0 | V87: 0
B88: 65. | F88: 0 | I88: 0 | K88: 0 | P88: 0 | Q88: 0 | R88: 0 | S88: 0 | U88: 0 | V88: 0
B89: 66. | C89: Golden | D89: 43 | F89: 43 | G89: 35 | I89: 8 | J89: 3.4 | K89: 27.2 | L89: ks. | O89: 3.22 | P89: 3.4 | Q89: 27.2 | R89: 1.44 | S89: 1.152 | U89: 35 | V89: 112.7
B90: 67. | C90: Petra 3,40€ | D90: 22 | F90: 22 | G90: 17 | I90: 5 | J90: 3.4 | K90: 17 | L90: ks. | O90: 3.23 | P90: 3.4 | Q90: 17 | R90: 0.85 | S90: 0.68 | U90: 17 | V90: 54.91
B91: 68. | C91: Malboro 3,70€ | D91: 14 | F91: 14 | G91: 7 | I91: 7 | J91: 3.7 | K91: 25.9 | L91: ks. | O91: 3.51 | P91: 3.7 | Q91: 25.9 | R91: 1.33 | S91: 1.064 | U91: 7 | V91: 24.57
B92: 69. | C92: LM 3,40€ | D92: 61 | F92: 61 | G92: 52 | I92: 9 | J92: 3.4 | K92: 30.6 | L92: ks. | O92: 3.23 | P92: 3.4 | Q92: 30.6 | R92: 1.53 | S92: 1.224 | U92: 52 | V92: 167.96
B93: 70. | C93: Mars | D93: 10 | F93: 10 | G93: 10 | I93: 0 | J93: 3.4 | K93: 0 | L93: ks. | O93: 3.22 | P93: 3.4 | Q93: 0 | R93: 0 | S93: 0 | U93: 10 | V93: 32.2
B94: 71. | C94: West | D94: 49 | F94: 49 | G94: 44 | I94: 5 | J94: 3.2 | K94: 16 | L94: ks. | O94: 3.04 | P94: 3.2 | Q94: 16 | R94: 0.8 | S94: 0.64 | U94: 44 | V94: 133.76
B95: 72. | F95: 0 | I95: 0 | K95: 0 | P95: 0 | Q95: 0 | R95: 0 | S95: 0 | U95: 0 | V95: 0
B96: 73. | C96: Malboro 4,00€ | F96: 0 | I96: 0 | J96: 4 | K96: 0 | L96: ks. | O96: 3.9 | P96: 4 | Q96: 0 | R96: 0 | S96: 0 | U96: 0 | V96: 0
B97: 74. | F97: 0 | I97: 0 | K97: 0 | P97: 0 | Q97: 0 | R97: 0 | S97: 0 | U97: 0 | V97: 0
B98: 75. | F98: 0 | I98: 0 | K98: 0 | P98: 0 | Q98: 0 | R98: 0 | S98: 0 | U98: 0 | V98: 0
B99: 76. | F99: 0 | I99: 0 | K99: 0 | P99: 0 | Q99: 0 | R99: 0 | S99: 0 | U99: 0 | V99: 0
B100: 77. | C100: Hyg. vreckovky | D100: 10 | F100: 10 | G100: 8 | I100: 2 | J100: 0.2 | K100: 0.4 | L100: ks. | O100: 0.089 | P100: 0.2 | Q100: 0.4 | R100: 0.222 | S100: 0.1776 | U100: 8 | V100: 0.712
B101: 78. | C101: Zapaľovač | D101: 52 | F101: 52 | G101: 51 | I101: 1 | J101: 0.5 | K101: 0.5 | L101: ks. | O101: 0.17 | P101: 0.5 | Q101: 0.5 | R101: 0.33 | S101: 0.264 | U101: 51 | V101: 8.67
B102: 79. | C102: Zápalky | D102: 46 | F102: 46 | G102: 45 | I102: 1 | J102: 0.1 | K102: 0.1 | L102: ks. | O102: 0.04 | P102: 0.1 | Q102: 0.1 | R102: 0.06 | S102: 0.048 | U102: 45 | V102: 1.8
B103: 80. | F103: 0 | I103: 0 | K103: 0 | P103: 0 | Q103: 0 | R103: 0 | S103: 0 | U103: 0 | V103: 0
B104: 81. | F104: 0 | I104: 0 | K104: 0 | P104: 0 | Q104: 0 | R104: 0 | S104: 0 | U104: 0 | V104: 0
B105: 82. | F105: 0 | I105: 0 | K105: 0 | P105: 0 | Q105: 0 | R105: 0 | S105: 0 | U105: 0 | V105: 0
D107: =SUM(D65:D105) -> 2937.8 | G107: =SUM(G65:G105) -> 2746.4 | J107: Celkom : | K107: =SUM(K65:K105) -> 173.3642857 | P107: Celkom: | Q107: =SUM(Q65:Q105) -> 173.3642857 | R107: =SUM(R65:R105) -> 40.83891429 | S107: =SUM(S65:S105) -> 32.67113143 | U107: Za tovar: | V107: =SUM(V65:V105) -> 745.2632
C114: Strana 3: | O114: Strana 3:
B115: P.Č. | C115: Názov tovaru | D115: Poč. stav | E115: Denný príjem | F115: Spolu | G115: Zostatok v sklade | I115: Denný predaj | J115: Cena € | K115: Suma celkom € | O115: Nákupná cena | P115: Predajná cena | Q115: Tržba | R115: Zisk | S115: Zisk po zdanení | U115: Zostatok v krčme | V115: Suma tovaru
B117: 83. | C117: Kinderko | F117: =D117+E117 -> 0 | I117: =D117+E117-G117 -> 0 | J117: 1.2 | K117: =I117*J117 -> 0 | L117: ks. | O117: 0.93 | P117: =J117 -> 1.2 | Q117: =I117*J117 -> 0 | R117: =(P117-O117)*I117 -> 0 | S117: =R117*0.8 -> 0 | U117: =G117 -> 0 | V117: =U117*O117 -> 0
B118: 84. | C118: Horalka | D118: 19 | F118: =D118+E118 -> 19 | G118: 17 | I118: =D118+E118-G118 -> 2 | J118: 0.6 | K118: =I118*J118 -> 1.2 | L118: ks. | O118: 0.31 | P118: =J118 -> 0.6 | Q118: =I118*J118 -> 1.2 | R118: =(P118-O118)*I118 -> 0.58 | S118: =R118*0.8 -> 0.464 | U118: =G118 -> 17 | V118: =U118*O118 -> 5.27
B119: 85. | C119: Kávenky | D119: 25 | F119: 25 | G119: 24 | I119: 1 | J119: 0.6 | K119: 0.6 | L119: ks. | O119: 0.28 | P119: 0.6 | Q119: 0.6 | R119: =(P119-O119)*I119 -> 0.32 | S119: 0.256 | U119: 24 | V119: 6.72
B120: 86. | C120: Kinder čokoláda | D120: 5 | F120: 5 | G120: 4 | I120: 1 | J120: 1.8 | K120: 1.8 | L120: ks. | O120: 0.9 | P120: 1.8 | Q120: 1.8 | R120: 0.9 | S120: 0.72 | U120: 4 | V120: 3.6
B121: 87. | C121: 3-BIT | D121: 15 | F121: 15 | G121: 15 | I121: 0 | J121: 0.6 | K121: 0 | L121: ks. | O121: 0.32 | P121: 0.6 | Q121: 0 | R121: 0 | S121: 0 | U121: 15 | V121: 4.8
B122: 88. | C122: Banán | D122: 14 | F122: 14 | G122: 14 | I122: 0 | J122: 0.6 | K122: 0 | L122: ks. | O122: 0.26 | P122: 0.6 | Q122: 0 | R122: 0 | S122: 0 | U122: 14 | V122: 3.64
B123: 89. | C123: Margot | D123: 12 | F123: 12 | G123: 8 | I123: 4 | J123: 0.6 | K123: 2.4 | L123: ks. | O123: 0.4 | P123: 0.6 | Q123: 2.4 | R123: 0.8 | S123: 0.64 | U123: 8 | V123: 3.2
B124: 90. | C124: Lízatko 2 | F124: 0 | I124: 0 | J124: 0.2 | K124: 0 | L124: ks. | O124: 0.04 | P124: 0.2 | Q124: 0 | R124: 0 | S124: 0 | U124: 0 | V124: 0
B125: 91. | C125: Mila | D125: 17 | F125: 17 | G125: 10 | I125: 7 | J125: 0.6 | K125: 4.2 | L125: ks. | O125: 0.37 | P125: 0.6 | Q125: 4.2 | R125: 1.61 | S125: 1.288 | U125: 10 | V125: 3.7
B126: 92. | C126: Lízatko | D126: 123 | F126: 123 | G126: 119 | I126: 4 | J126: 0.3 | K126: 1.2 | L126: ks. | O126: 0.1 | P126: 0.3 | Q126: 1.2 | R126: 0.8 | S126: 0.64 | U126: 119 | V126: 11.9
B127: 93. | C127: Chipsy | D127: 39 | F127: 39 | G127: 32 | I127: 7 | J127: 1 | K127: 7 | L127: ks. | O127: 0.42 | P127: 1 | Q127: 7 | R127: 4.06 | S127: 3.248 | U127: 32 | V127: 13.44
B128: 94. | C128: Tofife | D128: 9 | F128: 9 | G128: 9 | I128: 0 | J128: 3 | K128: 0 | L128: ks. | O128: 1.62 | P128: 3 | Q128: 0 | R128: 0 | S128: 0 | U128: 9 | V128: 14.58
B129: 95. | C129: Milka čok. | D129: 7 | F129: 7 | G129: 5 | I129: 2 | J129: 1.5 | K129: 3 | L129: ks. | O129: 0.73 | P129: 1.5 | Q129: 3 | R129: 1.54 | S129: 1.232 | U129: 5 | V129: 3.65
B130: 96. | C130: Tyčinky DRU | D130: 28 | F130: 28 | G130: 28 | I130: 0 | J130: 0.5 | K130: 0 | L130: ks. | O130: 0.23 | P130: 0.5 | Q130: 0 | R130: 0 | S130: 0 | U130: 28 | V130: 6.44
B131: 97. | C131: Arašidy | D131: 8 | F131: 8 | G131: 8 | I131: 0 | J131: 0.8 | K131: 0 | L131: ks. | O131: 0.41 | P131: 0.8 | Q131: 0 | R131: 0 | S131: 0 | U131: 8 | V131: 3.28
B132: 98. | C132: TIC-TAC | D132: 71 | F132: 71 | G132: 69 | I132: 2 | J132: 0.6 | K132: 1.2 | L132: ks. | O132: 0.3 | P132: 0.6 | Q132: 1.2 | R132: 0.6 | S132: 0.48 | U132: 69 | V132: 20.7
B133: 99. | C133: Žuvažky plátky | D133: 45 | F133: 45 | G133: 45 | I133: 0 | J133: 0.1 | K133: 0 | L133: ks. | O133: 0.052 | P133: 0.1 | Q133: 0 | R133: 0 | S133: 0 | U133: 45 | V133: 2.34
B134: 100. | C134: Žuvažky dražé | D134: 64 | F134: 64 | G134: 59 | I134: 5 | J134: 0.6 | K134: 3 | L134: ks. | O134: 0.37 | P134: 0.6 | Q134: 3 | R134: 1.15 | S134: 0.92 | U134: 59 | V134: 21.83
B135: 101. | C135: Hašlerky | D135: 8 | F135: 8 | G135: 8 | I135: 0 | J135: 0.9 | K135: 0 | L135: ks. | O135: 0.54 | P135: 0.9 | Q135: 0 | R135: 0 | S135: 0 | U135: 8 | V135: 4.32
B136: 102. | C136: Žuvačky guličky | D136: 45 | F136: 45 | G136: 44 | I136: 1 | J136: 0.7 | K136: 0.7 | L136: ks. | O136: 0.3 | P136: 0.7 | Q136: 0.7 | R136: 0.4 | S136: 0.32 | U136: 44 | V136: 13.2
B137: 103. | C137: Chrumky | F137: 0 | I137: 0 | J137: 0.6 | K137: 0 | L137: ks. | O137: 0.27 | P137: 0.6 | Q137: 0 | R137: 0 | S137: 0 | U137: 0 | V137: 0
B138: 104. | F138: 0 | I138: 0 | K138: 0 | P138: 0 | Q138: 0 | R138: 0 | S138: 0 | U138: 0 | V138: 0
B139: 105. | F139: 0 | I139: 0 | K139: 0 | P139: 0 | Q139: 0 | R139: 0 | S139: 0 | U139: 0 | V139: 0
B140: 106. | F140: 0 | I140: 0 | K140: 0 | P140: 0 | Q140: 0 | R140: 0 | S140: 0 | U140: 0 | V140: 0
B141: 107. | F141: 0 | I141: 0 | K141: 0 | P141: 0 | Q141: 0 | R141: 0 | S141: 0 | U141: 0 | V141: 0
B142: 108. | F142: 0 | I142: 0 | K142: 0 | P142: 0 | Q142: 0 | R142: 0 | S142: 0 | U142: 0 | V142: 0
U143: 0 | V143: 0
D144: =SUM(D117:D142) -> 554 | G144: =SUM(G117:G142) -> 518 | J144: Celkom: | K144: =SUM(K117:K142) -> 26.3 | P144: Celkom: | Q144: =SUM(Q117:Q142) -> 26.3 | R144: =SUM(R117:R142) -> 12.76 | S144: =SUM(S117:S142) -> 10.208 | U144: Za tovar: | V144: =SUM(V117:V142) -> 146.61
D147: Stávková: | I147: Strana 1: | J147: =K55 -> 539.26 | P147: Strana 1 | Q147: =Q55 -> 539.26 | R147: =R55 -> 279.7724 | S147: =S55 -> 223.81792 | U147: Strana 1: | V147: =V55 -> 1688.2996
D148: Refil: | I148: Strana 2: | J148: =K107 -> 173.3642857 | P148: Strana 2 | Q148: =Q107 -> 173.3642857 | R148: =R107 -> 40.83891429 | S148: =S107 -> 32.67113143 | U148: Strana 2: | V148: =V107 -> 745.2632
D149: Výdavky: | I149: Strana 3: | J149: =K144 -> 26.3 | P149: Strana 3 | Q149: =Q144 -> 26.3 | R149: =R144 -> 12.76 | S149: =S144 -> 10.208 | U149: Strana 3: | V149: =V144 -> 146.61
E151: Spolu: | F151: =SUM(F147:F149) -> 0 | I151: Spolu: | J151: =SUM(J147:J149) -> 738.9242857 | P151: Spolu: | Q151: =SUM(Q147:Q149) -> 738.9242857 | R151: =SUM(R147:R149) -> 333.3713143 | S151: =SUM(S147:S149) -> 266.6970514 | U151: Spolu: | V151: =SUM(V147:V149) -> 2580.1728
P153: Spolu: | Q153: =Q151-F151 -> 738.9242857 | R153: =R151-G151 -> 333.3713143 | S153: =S151-H151 -> 266.6970514
I154: Celkom : | J154: =J151-F151 -> 738.9242857
C156: Zostatok hotovosť:
C158: rozdiel: | D158: =D156-J154 -> -738.9242857
